Inv Transaction,Supplier Name,Headserv Name,Stratdir Name,Account Desription,Paid Date,Sum of Inv Amount,Proclass,merchant
3250832,Evans Halshaw Ashton-U-Lyne,Operations and Neighbourhoods,Operations and Neighbourhoods,Sub-contractor Services,08/10/21,776.14 ,361000,Public Transport
5431714,Redacted Supplier,Digital Tameside,Finance & IT,Computer Software,01/10/21,"78,400.00 ",270000,Information Communication Technology
5431847,Complete Care & Enablement Services LTD,Adult Social Care,Adults,Residential Home Long Stay Fees,01/10/21,"5,725.50 ",321000,Social Community Care Supplies & Services - Adult
5431848,Complete Care & Enablement Services LTD,Adult Social Care,Adults,Residential Home Long Stay Fees,01/10/21,"5,725.50 ",321000,Social Community Care Supplies & Services - Adult
5431849,Complete Care & Enablement Services LTD,Adult Social Care,Adults,Residential Home Long Stay Fees,01/10/21,"5,725.50 ",321000,Social Community Care Supplies & Services - Adult
5431720,HC Assessment Ltd,Adult Social Care,Adults,Professional Services,01/10/21,"2,223.85 ",260000,Human Resources
5431721,Redacted Supplier,Corporate Costs,Corporate Costs,Professional Services,01/10/21,691.50 ,360000,Public Transport
5433503,Sky High Achievers Ashton,Childrens Services,Children's Services,Nursery Services,01/10/21,658.20 ,321100,Social Community Care Supplies & Services - Children
5431796,Rainbow Fostering Services Limited,Childrens Services,Children's Services,Foster Carer Agency Fees,01/10/21,"4,238.14 ",321100,Social Community Care Supplies & Services - Children
5431723,Home Instead Senior Care,Adult Social Care,Adults,Homecare Fees,01/10/21,"1,687.50 ",321000,Social Community Care Supplies & Services - Adult
5431725,Home Instead Senior Care,Adult Social Care,Adults,Homecare Fees,01/10/21,"1,676.15 ",321000,Social Community Care Supplies & Services - Adult
5431729,YOUNG PEOPLE FIRST LIMITED,Childrens Services,Children's Services,Living With Formal Support,01/10/21,"2,100.00 ",321100,Social Community Care Supplies & Services - Children
5431729,YOUNG PEOPLE FIRST LIMITED,Childrens Services,Children's Services,Semi independent - Weekly Living Allowances,01/10/21,59.20 ,321100,Social Community Care Supplies & Services - Children
5431727,YOUNG PEOPLE FIRST LIMITED,Childrens Services,Children's Services,Living With Formal Support,01/10/21,"1,225.00 ",321100,Social Community Care Supplies & Services - Children
5431728,YOUNG PEOPLE FIRST LIMITED,Childrens Services,Children's Services,Living With Formal Support,01/10/21,850.00 ,321100,Social Community Care Supplies & Services - Children
5431732,ROC Northwest Limited,Childrens Services,Children's Services,Childrens Homes Outside Local Authority Fees,01/10/21,"14,946.03 ",321100,Social Community Care Supplies & Services - Children
5431736,G2V Recruitment Group Limited t/a Vivid Resourcing,Place,Growth,Recruitment Campaign,01/10/21,"1,000.00 ",280000,Legal Services
5431734,G2V Recruitment Group Limited t/a Vivid Resourcing,Place,Growth,Recruitment Campaign,01/10/21,"2,600.00 ",280000,Legal Services
5431733,G2V Recruitment Group Limited t/a Vivid Resourcing,Place,Growth,Agency Staff,01/10/21,"2,500.00 ",280000,Legal Services
5431735,G2V Recruitment Group Limited t/a Vivid Resourcing,Place,Growth,Recruitment Campaign,01/10/21,"2,371.70 ",280000,Legal Services
5431875,Foster Careline Ltd,Childrens Services,Children's Services,Foster Carer Agency Fees,01/10/21,"3,383.65 ",321000,Social Community Care Supplies & Services - Adult
5431868,Foster Careline Ltd,Childrens Services,Children's Services,Foster Carer Agency Fees,01/10/21,"3,520.55 ",321000,Social Community Care Supplies & Services - Adult
5431877,Foster Careline Ltd,Childrens Services,Children's Services,Foster Carer Agency Fees,01/10/21,"3,520.55 ",321000,Social Community Care Supplies & Services - Adult
5431803,Flexoptix,Digital Tameside,Finance & IT,It Control Room Equipment,01/10/21,"1,144.80 ",270000,Information Communication Technology
5431804,Next Stage 4 Life Limited,Childrens Services,Children's Services,Childrens Homes Outside Local Authority Fees,01/10/21,"21,857.10 ",321000,Social Community Care Supplies & Services - Adult
5431044,N-Compass Northwest,Adult Social Care,Adults,Professional Services,01/10/21,"14,773.75 ",-999999,Unclassifiable
5431822,Redacted Supplier,Childrens Services,Children's Services,Legal Fees,01/10/21,"2,162.50 ",UNCLASS,Unclassifiable
5431739,Care 4 Every Child Ltd,Childrens Services,Children's Services,Childrens Homes Outside Local Authority Fees,01/10/21,"34,046.86 ",401399,Social Community Care Supplies & Services - Children
5431871,LOCAL CARE FORCE,Adult Social Care,Adults,Homecare Fees,01/10/21,"2,260.16 ",310000,Healthcare
5431869,LOCAL CARE FORCE,Adult Social Care,Adults,Homecare Fees,01/10/21,"2,534.56 ",310000,Healthcare
5431865,LOCAL CARE FORCE,Adult Social Care,Adults,Homecare Fees,01/10/21,"2,448.00 ",310000,Healthcare
5431867,LOCAL CARE FORCE,Adult Social Care,Adults,Homecare Fees,01/10/21,"2,270.56 ",310000,Healthcare
5431969,Digital Gaps (Public Sector) Limited,Hosted Services,Hosted Services,Professional Consultancy Services,01/10/21,"3,900.00 ",-999999,Unclassifiable
5431740,PRO VENTURE CONSULTING,Childrens Services,Children's Services,Project Expenditure Home Office,01/10/21,"12,000.00 ",-999999,Unclassifiable
5431741,SURECARE TAMESIDE & OLDHAM,Adult Social Care,Adults,Homecare Fees,01/10/21,"2,189.98 ",111230,Catering
5431878,Redacted Supplier,Governance,Governance,Legal Fees,01/10/21,"1,122.00 ",UNCLASS,Unclassifiable
5431880,SENDCode CIC,Childrens Services,Children's Services,Community Based Activities,01/10/21,640.00 ,UNCLASS,Unclassifiable
5431742,The Market Co,Operations and Neighbourhoods,Operations and Neighbourhoods,"Marketing, Publicity and Recruitment",01/10/21,"2,350.00 ",UNCLASS,Unclassifiable
5431890,SKO Family Law Specialists,Childrens Services,Children's Services,Legal Fees,01/10/21,881.22 ,UNCLASS,Unclassifiable
5431743,Timeout Childrens Homes Ltd,Childrens Services,Children's Services,Childrens Homes Outside Local Authority Fees,01/10/21,"17,692.01 ",321100,Social Community Care Supplies & Services - Children
5431973,Environmental Engineering Partnership Ltd T/A E3P,(blank),(blank),Fees,01/10/21,"1,950.00 ",UNCLASS,Unclassifiable
5431997,Steve Smith Carpets Limited,Adult Social Care,Adults,Fixtures & Fittings Purchase,01/10/21,"1,458.00 ",UNCLASS,Unclassifiable
5431974,SAAIL,Childrens Services,Children's Services,Living With Formal Support,01/10/21,"5,465.27 ",321100,Social Community Care Supplies & Services - Children
5431744,Global knowledge,GMPF (FX),GMPF (FX),Training Course Costs,01/10/21,"1,650.00 ",UNCLASS,Unclassifiable
5431999,THE FOSTER CARE CO-OPERATIVE LTD,Childrens Services,Children's Services,Foster Carer Agency Fees,01/10/21,"3,919.02 ",321000,Social Community Care Supplies & Services - Adult
5431825,Redacted Supplier,Operations and Neighbourhoods,Operations and Neighbourhoods,Professional Services,01/10/21,"1,190.00 ",260000,Human Resources
5431717,SEASHELL TRUST,Childrens Services,Children's Services,Residential Home Short Stay Fees,01/10/21,"3,039.00 ",321000,Social Community Care Supplies & Services - Adult
5433574,PAT HIGGINS LTD,Place,Growth,Fees,01/10/21,"5,463.73 ",190000,Facilities & Management Services
5431895,VISION FOR EDUCATION LIMITED,Education,Children's Services,Professional Services,01/10/21,"1,007.00 ",170000,Education
5431885,Redacted Supplier,Childrens Services,Children's Services,Childrens Homes Outside Local Authority Fees,01/10/21,"16,363.66 ",321100,Social Community Care Supplies & Services - Children
5431886,Redacted Supplier,Childrens Services,Children's Services,Childrens Homes Outside Local Authority Fees,01/10/21,"16,363.66 ",321100,Social Community Care Supplies & Services - Children
5431709,VIP-SYSTEM LIMITED,Operations and Neighbourhoods,Operations and Neighbourhoods,Taxi Lamination Fees,01/10/21,"1,380.61 ",380000,Vehicle Management
5432551,COMFORT CALL LIMITED,Adult Social Care,Adults,Homecare Fees,01/10/21,"37,751.84 ",310000,Healthcare
5432635,COMFORT CALL LIMITED,Adult Social Care,Adults,Homecare Fees,01/10/21,"36,658.67 ",310000,Healthcare
5433032,Park Lane Minibuses LTD,Education,Children's Services,Transport Of Pupils,01/10/21,746.20 ,360000,Public Transport
5433029,Park Lane Minibuses LTD,Education,Children's Services,Transport Of Pupils,01/10/21,"1,033.20 ",360000,Public Transport
5433023,Park Lane Minibuses LTD,Education,Children's Services,Transport Of Pupils,01/10/21,631.40 ,360000,Public Transport
5433306,SALFORD CITY COUNCIL,Operations and Neighbourhoods,Operations and Neighbourhoods,General Equipment Purchase,01/10/21,"5,000.00 ",-999999,Unclassifiable
5431900,DAISY CORPORATE SERVICES TRADING LIMITED,Digital Tameside,Finance & IT,Telephone Landline Costs,01/10/21,"1,789.36 ",908001,Public Bodies
5431981,HANDICARE LIMITED,Housing,Director of Place,Improvement Grants - Final Mandatory,01/10/21,"1,205.07 ",321100,Social Community Care Supplies & Services - Children
5431670,BY THE BRIDGE NORTH WEST LTD,Childrens Services,Children's Services,Foster Carer Agency Fees,01/10/21,"4,292.40 ",908001,Public Bodies
5430378,BY THE BRIDGE NORTH WEST LTD,Childrens Services,Children's Services,Foster Carer Agency Fees,01/10/21,"2,496.60 ",908001,Public Bodies
5431680,BY THE BRIDGE NORTH WEST LTD,Childrens Services,Children's Services,Foster Carer Agency Fees,01/10/21,"4,161.00 ",908001,Public Bodies
5431690,BY THE BRIDGE NORTH WEST LTD,Childrens Services,Children's Services,Foster Carer Agency Fees,01/10/21,"3,850.65 ",908001,Public Bodies
5431674,BY THE BRIDGE NORTH WEST LTD,Childrens Services,Children's Services,Foster Carer Agency Fees,01/10/21,"3,165.00 ",908001,Public Bodies
5431701,BY THE BRIDGE NORTH WEST LTD,Childrens Services,Children's Services,Foster Carer Agency Fees,01/10/21,"3,167.10 ",908001,Public Bodies
5431685,BY THE BRIDGE NORTH WEST LTD,Childrens Services,Children's Services,Foster Carer Agency Fees,01/10/21,"4,050.00 ",908001,Public Bodies
5431661,BY THE BRIDGE NORTH WEST LTD,Childrens Services,Children's Services,Foster Carer Agency Fees,01/10/21,"4,181.37 ",908001,Public Bodies
5431698,BY THE BRIDGE NORTH WEST LTD,Childrens Services,Children's Services,Foster Carer Agency Fees,01/10/21,"3,850.65 ",908001,Public Bodies
5431708,BY THE BRIDGE NORTH WEST LTD,Childrens Services,Children's Services,Foster Carer Agency Fees,01/10/21,"3,165.00 ",908001,Public Bodies
5431677,BY THE BRIDGE NORTH WEST LTD,Childrens Services,Children's Services,Foster Carer Agency Fees,01/10/21,"4,611.30 ",908001,Public Bodies
5431901,BY THE BRIDGE NORTH WEST LTD,Childrens Services,Children's Services,Foster Carer Agency Fees,01/10/21,"4,611.30 ",908001,Public Bodies
5431693,BY THE BRIDGE NORTH WEST LTD,Childrens Services,Children's Services,Foster Carer Agency Fees,01/10/21,"3,827.25 ",908001,Public Bodies
5431705,BY THE BRIDGE NORTH WEST LTD,Childrens Services,Children's Services,Foster Carer Agency Fees,01/10/21,"4,380.00 ",908001,Public Bodies
5431818,CLOVERLEAF ADVOCACY 2000 LTD,Adult Social Care,Adults,Professional Services,01/10/21,"12,678.84 ",321000,Social Community Care Supplies & Services - Adult
5431897,CITY LIFT SERVICES (NW) LTD,Adult Social Care,Adults,General Equipment Repair & Maintenance,01/10/21,760.00 ,390000,"Works - Construction, Repair & Maintenance"
5431699,INTACT PROJECTS LTD,Childrens Services,Children's Services,Living With Formal Support,01/10/21,"1,590.00 ",-999999,Unclassifiable
5431666,CARE 4 CHILDREN RESIDENTIAL SERVICES LTD,Childrens Services,Children's Services,Foster Carer Agency Fees,01/10/21,"7,135.71 ",321100,Social Community Care Supplies & Services - Children
5431656,CARE 4 CHILDREN RESIDENTIAL SERVICES LTD,Childrens Services,Children's Services,Foster Carer Agency Fees,01/10/21,"3,351.90 ",321100,Social Community Care Supplies & Services - Children
5431657,CARE 4 CHILDREN RESIDENTIAL SERVICES LTD,Childrens Services,Children's Services,Foster Carer Agency Fees,01/10/21,"3,214.20 ",321100,Social Community Care Supplies & Services - Children
5431662,CARE 4 CHILDREN RESIDENTIAL SERVICES LTD,Childrens Services,Children's Services,Foster Carer Agency Fees,01/10/21,"3,184.20 ",321100,Social Community Care Supplies & Services - Children
5431654,CARE 4 CHILDREN RESIDENTIAL SERVICES LTD,Childrens Services,Children's Services,Foster Carer Agency Fees,01/10/21,"3,351.90 ",321100,Social Community Care Supplies & Services - Children
5431667,CARE 4 CHILDREN RESIDENTIAL SERVICES LTD,Childrens Services,Children's Services,Foster Carer Agency Fees,01/10/21,"3,232.60 ",321100,Social Community Care Supplies & Services - Children
5431659,CARE 4 CHILDREN RESIDENTIAL SERVICES LTD,Childrens Services,Children's Services,Foster Carer Agency Fees,01/10/21,"4,885.80 ",321100,Social Community Care Supplies & Services - Children
5431658,CARE 4 CHILDREN RESIDENTIAL SERVICES LTD,Childrens Services,Children's Services,Foster Carer Agency Fees,01/10/21,"2,986.70 ",321100,Social Community Care Supplies & Services - Children
5431653,CARE 4 CHILDREN RESIDENTIAL SERVICES LTD,Childrens Services,Children's Services,Foster Carer Agency Fees,01/10/21,"3,479.10 ",321100,Social Community Care Supplies & Services - Children
5431655,CARE 4 CHILDREN RESIDENTIAL SERVICES LTD,Childrens Services,Children's Services,Foster Carer Agency Fees,01/10/21,"3,351.90 ",321100,Social Community Care Supplies & Services - Children
5432003,Optima Health and Social Care Ltd,Childrens Services,Children's Services,Homecare Fees,01/10/21,504.00 ,321000,Social Community Care Supplies & Services - Children
5431986,Optima Health and Social Care Ltd,Childrens Services,Children's Services,Homecare Fees,01/10/21,"2,205.00 ",321000,Social Community Care Supplies & Services - Children
5432001,Optima Health and Social Care Ltd,Childrens Services,Children's Services,Homecare Fees,01/10/21,"2,205.00 ",321000,Social Community Care Supplies & Services - Children
5432002,Optima Health and Social Care Ltd,Childrens Services,Children's Services,Homecare Fees,01/10/21,"2,331.00 ",UNCLASS,Unclassifiable
5434259,QUEST MEDIA NETWORKS LTD,Operations and Neighbourhoods,Operations and Neighbourhoods,Statutory Advertising,01/10/21,930.00 ,UNCLASS,Unclassifiable
5431671,Redacted Supplier,Childrens Services,Children's Services,Childrens Homes Outside Local Authority Fees,01/10/21,"14,357.10 ",UNCLASS,Unclassifiable
5431673,Redacted Supplier,Childrens Services,Children's Services,Childrens Homes Outside Local Authority Fees,01/10/21,"14,910.00 ",UNCLASS,Unclassifiable
5431704,FAMILY CARE FOSTERING LTD,Childrens Services,Children's Services,Foster Carer Agency Fees,01/10/21,"4,446.30 ",321100,Social Community Care Supplies & Services - Children
5431703,FAMILY CARE FOSTERING LTD,Childrens Services,Children's Services,Foster Carer Agency Fees,01/10/21,"3,379.24 ",UNCLASS,Unclassifiable
5431702,FAMILY CARE FOSTERING LTD,Childrens Services,Children's Services,Foster Carer Agency Fees,01/10/21,"3,240.00 ",UNCLASS,Unclassifiable
5433698,CAPACITY GRID,Exchequer,Governance,Professional Services,01/10/21,"8,057.01 ",UNCLASS,Unclassifiable
5431707,PETERS LIMITED (PETERS BOOKSELLING SERVICES),Operations and Neighbourhoods,Operations and Neighbourhoods,Purchase Books,01/10/21,"1,891.83 ",170000,Education
5433855,HOMESHINE CLEANERS LTD,Housing,Director of Place,Adaptations - Jobs <#500,01/10/21,"1,220.00 ",130000,Cleaning & Janitorial
5433255,INSPIREDSPACES TAMESIDE LTD,Place,Growth,Fees,01/10/21,22.50 ,390000,"Works - Construction, Repair & Maintenance"
5433255,INSPIREDSPACES TAMESIDE LTD,Place,Growth,Repairs & Maintenance Heavy Catering Equipment,01/10/21,"1,125.34 ",390000,"Works - Construction, Repair & Maintenance"
5433253,INSPIREDSPACES TAMESIDE LTD,(blank),(blank),Fees,01/10/21,"22,498.00 ",390000,"Works - Construction, Repair & Maintenance"
5433252,INSPIREDSPACES TAMESIDE LTD,(blank),(blank),Fees,01/10/21,"7,639.80 ",390000,"Works - Construction, Repair & Maintenance"
5433250,INSPIREDSPACES TAMESIDE LTD,(blank),(blank),Fees,01/10/21,65.92 ,390000,"Works - Construction, Repair & Maintenance"
5433250,INSPIREDSPACES TAMESIDE LTD,(blank),(blank),Other Works,01/10/21,"3,296.49 ",390000,"Works - Construction, Repair & Maintenance"
5433256,INSPIREDSPACES TAMESIDE LTD,Place,Growth,Fees,01/10/21,"3,234.41 ",390000,"Works - Construction, Repair & Maintenance"
5431904,SERVELEC EDUCATION LIMITED,Education,Children's Services,Computer Software Maintenance Costs,01/10/21,"32,398.69 ",170000,Education
5428626,BRANAS ISAF LTD,Childrens Services,Children's Services,Childrens Homes Outside Local Authority Fees,01/10/21,"21,700.00 ",321100,Social Community Care Supplies & Services - Children
5431683,BRANAS ISAF LTD,Childrens Services,Children's Services,Childrens Homes Outside Local Authority Fees,01/10/21,"21,214.20 ",321100,Social Community Care Supplies & Services - Children
5432623,CARELINE HOMECARE LTD,Adult Social Care,Adults,Homecare Fees,01/10/21,"1,399.44 ",321000,Social Community Care Supplies & Services - Adult
5431819,CARETECH COMMUNITY SERVICES LIMITED,Adult Social Care,Adults,Residential Home Long Stay Fees,01/10/21,"9,837.60 ",321000,Social Community Care Supplies & Services - Adult
5431834,CARETECH COMMUNITY SERVICES LIMITED,Adult Social Care,Adults,Residential Home Long Stay Fees,01/10/21,"6,766.50 ",321000,Social Community Care Supplies & Services - Adult
5431809,CARETECH COMMUNITY SERVICES LIMITED,Adult Social Care,Adults,Homecare Fees,01/10/21,"5,725.50 ",321000,Social Community Care Supplies & Services - Adult
5431833,CARETECH COMMUNITY SERVICES LIMITED,Adult Social Care,Adults,Residential Home Long Stay Fees,01/10/21,"5,673.60 ",321000,Social Community Care Supplies & Services - Adult
5431831,CARETECH COMMUNITY SERVICES LIMITED,Adult Social Care,Adults,Residential Home Long Stay Fees,01/10/21,"7,287.00 ",321000,Social Community Care Supplies & Services - Adult
5431827,CARETECH COMMUNITY SERVICES LIMITED,Adult Social Care,Adults,Residential Home Long Stay Fees,01/10/21,"4,632.60 ",321000,Social Community Care Supplies & Services - Adult
5431814,CARETECH COMMUNITY SERVICES LIMITED,Adult Social Care,Adults,Residential Home Long Stay Fees,01/10/21,"6,066.30 ",321000,Social Community Care Supplies & Services - Adult
5431820,CARETECH COMMUNITY SERVICES LIMITED,Adult Social Care,Adults,Residential Home Long Stay Fees,01/10/21,"4,981.80 ",321000,Social Community Care Supplies & Services - Adult
5431813,CARETECH COMMUNITY SERVICES LIMITED,Adult Social Care,Adults,Homecare Fees,01/10/21,"14,195.40 ",321000,Social Community Care Supplies & Services - Adult
5431811,CARETECH COMMUNITY SERVICES LIMITED,Adult Social Care,Adults,Residential Home Long Stay Fees,01/10/21,"3,123.00 ",321000,Social Community Care Supplies & Services - Adult
5431836,CARETECH COMMUNITY SERVICES LIMITED,Adult Social Care,Adults,Residential Home Long Stay Fees,01/10/21,"4,164.00 ",321000,Social Community Care Supplies & Services - Adult
5431838,CARETECH COMMUNITY SERVICES LIMITED,Adult Social Care,Adults,Residential Home Long Stay Fees,01/10/21,"3,934.20 ",321000,Social Community Care Supplies & Services - Adult
5431544,CARETECH COMMUNITY SERVICES LIMITED,Childrens Services,Children's Services,Living With Formal Support,01/10/21,"23,782.00 ",321000,Social Community Care Supplies & Services - Adult
5431839,CARETECH COMMUNITY SERVICES LIMITED,Adult Social Care,Adults,Residential Home Long Stay Fees,01/10/21,"3,643.50 ",321000,Social Community Care Supplies & Services - Adult
5431824,CARETECH COMMUNITY SERVICES LIMITED,Adult Social Care,Adults,Residential Home Long Stay Fees,01/10/21,"7,287.00 ",321000,Social Community Care Supplies & Services - Adult
5431790,CARETECH COMMUNITY SERVICES LIMITED,Adult Social Care,Adults,Residential Home Long Stay Fees,01/10/21,"4,461.30 ",321000,Social Community Care Supplies & Services - Adult
5431788,CARETECH COMMUNITY SERVICES LIMITED,Adult Social Care,Adults,Residential Home Long Stay Fees,01/10/21,"4,632.60 ",321000,Social Community Care Supplies & Services - Adult
5431842,CARETECH COMMUNITY SERVICES LIMITED,Adult Social Care,Adults,Residential Home Long Stay Fees,01/10/21,"6,766.50 ",321000,Social Community Care Supplies & Services - Adult
5431817,CARETECH COMMUNITY SERVICES LIMITED,Adult Social Care,Adults,Residential Home Long Stay Fees,01/10/21,"5,725.50 ",321000,Social Community Care Supplies & Services - Adult
5431841,CARETECH COMMUNITY SERVICES LIMITED,Adult Social Care,Adults,Residential Home Long Stay Fees,01/10/21,"5,465.40 ",321000,Social Community Care Supplies & Services - Adult
5431810,CARETECH COMMUNITY SERVICES LIMITED,Adult Social Care,Adults,Residential Home Long Stay Fees,01/10/21,"3,123.00 ",321000,Social Community Care Supplies & Services - Adult
5431858,THE ADOLESCENT & CHILDRENS TRUST,Childrens Services,Children's Services,Foster Carer Agency Fees,01/10/21,"3,941.99 ",321100,Social Community Care Supplies & Services - Children
5431855,THE ADOLESCENT & CHILDRENS TRUST,Childrens Services,Children's Services,Foster Carer Agency Fees,01/10/21,"3,029.94 ",321100,Social Community Care Supplies & Services - Children
5431857,THE ADOLESCENT & CHILDRENS TRUST,Childrens Services,Children's Services,Foster Carer Agency Fees,01/10/21,"3,170.22 ",321100,Social Community Care Supplies & Services - Children
5431859,THE ADOLESCENT & CHILDRENS TRUST,Childrens Services,Children's Services,Foster Carer Agency Fees,01/10/21,"3,029.94 ",321100,Social Community Care Supplies & Services - Children
5431896,Redacted Supplier,Digital Tameside,Finance & IT,Professional Services,01/10/21,"1,200.00 ",270000,Information Communication Technology
5432030,ROUTES HEALTHCARE (NORTH) LIMITED,Adult Social Care,Adults,Homecare Fees,01/10/21,"7,632.96 ",321100,Social Community Care Supplies & Services - Children
5431846,ROUTES HEALTHCARE (NORTH) LIMITED,Adult Social Care,Adults,Homecare Fees,01/10/21,"7,686.82 ",321100,Social Community Care Supplies & Services - Children
5431639,INSPIRE COMMUNITY SERVICES LIMITED,Childrens Services,Children's Services,Living With Formal Support,01/10/21,"4,216.31 ",170000,Education
5431644,INSPIRE COMMUNITY SERVICES LIMITED,Childrens Services,Children's Services,Living With Formal Support,01/10/21,"1,088.08 ",170000,Education
5431644,INSPIRE COMMUNITY SERVICES LIMITED,Childrens Services,Children's Services,Semi independent - Weekly Living Allowances,01/10/21,67.68 ,170000,Education
5431646,INSPIRE COMMUNITY SERVICES LIMITED,Childrens Services,Children's Services,Living With Formal Support,01/10/21,"4,216.31 ",170000,Education
5431638,INSPIRE COMMUNITY SERVICES LIMITED,Childrens Services,Children's Services,Living With Formal Support,01/10/21,"4,279.24 ",170000,Education
5431776,DHL Parcel UK Ltd (UK Mail),Exchequer,Governance,Printing And Stationery,01/10/21,"9,037.34 ",300000,Mail Services
5432035,Smartway Health and Social Care Limited,Adult Social Care,Adults,Homecare Fees,01/10/21,"6,325.67 ",321000,Social Community Care Supplies & Services - Adult
5431821,Olive Branch Fostering LTD,Childrens Services,Children's Services,Foster Carer Agency Fees,01/10/21,"3,682.73 ",321100,Social Community Care Supplies & Services - Children
5431856,The Fabularium LTD,Operations and Neighbourhoods,Operations and Neighbourhoods,Professional Entertainment Services,01/10/21,"1,200.00 ",290000,Arts & Leisure Services
5431854,The Fabularium LTD,Operations and Neighbourhoods,Operations and Neighbourhoods,Professional Entertainment Services,01/10/21,980.00 ,290000,Arts & Leisure Services
5431984,Northern Community Pathways Limited,Childrens Services,Children's Services,"Childrens Allowances (Weekly,Xmas,Festive,Clothing)",01/10/21,589.00 ,321100,Social Community Care Supplies & Services - Children
5431823,Northern Community Pathways Limited,Adult Social Care,Adults,Homecare Fees,01/10/21,"2,680.00 ",321100,Social Community Care Supplies & Services - Children
5432039,Oasis Adolescent Services,Childrens Services,Children's Services,Childrens Homes Outside Local Authority Fees,01/10/21,"21,428.70 ",-999999,Unclassifiable
5432037,Oasis Adolescent Services,Childrens Services,Children's Services,Childrens Homes Outside Local Authority Fees,01/10/21,"4,262.50 ",-999999,Unclassifiable
5431487,Excel Fostering Limited,Childrens Services,Children's Services,Foster Carer Agency Fees,01/10/21,"6,385.80 ",-999999,Unclassifiable
5431489,Excel Fostering Limited,Childrens Services,Children's Services,Foster Carer Agency Fees,01/10/21,"6,385.80 ",-999999,Unclassifiable
5431490,Excel Fostering Limited,Childrens Services,Children's Services,Foster Carer Agency Fees,01/10/21,"6,385.80 ",-999999,Unclassifiable
5431861,Bright Opportunities,Adult Social Care,Adults,Homecare Fees,01/10/21,"1,725.00 ",-999999,Unclassifiable
5431905,Bright Opportunities,Adult Social Care,Adults,Homecare Fees,01/10/21,"1,500.00 ",-999999,Unclassifiable
5431835,FRESHWORKS,Digital Tameside,Finance & IT,Computer Software,01/10/21,"25,056.03 ",270000,Information Communication Technology
5431585,PARALLEL PARENTS,Childrens Services,Children's Services,Foster Carer Agency Fees,01/10/21,"1,036.00 ",321100,Social Community Care Supplies & Services - Children
5431584,PARALLEL PARENTS,Childrens Services,Children's Services,Foster Carer Agency Fees,01/10/21,"3,241.05 ",321100,Social Community Care Supplies & Services - Children
5431583,PARALLEL PARENTS,Childrens Services,Children's Services,Foster Carer Agency Fees,01/10/21,"3,039.55 ",321100,Social Community Care Supplies & Services - Children
5431564,PARALLEL PARENTS,Childrens Services,Children's Services,Foster Carer Agency Fees,01/10/21,"3,874.64 ",321100,Social Community Care Supplies & Services - Children
5431578,PARALLEL PARENTS,Childrens Services,Children's Services,Foster Carer Agency Fees,01/10/21,"4,242.04 ",321100,Social Community Care Supplies & Services - Children
5431569,PARALLEL PARENTS,Childrens Services,Children's Services,Foster Carer Agency Fees,01/10/21,"3,526.87 ",321100,Social Community Care Supplies & Services - Children
5431575,PARALLEL PARENTS,Childrens Services,Children's Services,Foster Carer Agency Fees,01/10/21,"3,259.96 ",321100,Social Community Care Supplies & Services - Children
5431568,PARALLEL PARENTS,Childrens Services,Children's Services,Foster Carer Agency Fees,01/10/21,"3,241.05 ",321100,Social Community Care Supplies & Services - Children
5431570,PARALLEL PARENTS,Childrens Services,Children's Services,Foster Carer Agency Fees,01/10/21,"5,314.33 ",321100,Social Community Care Supplies & Services - Children
5431567,PARALLEL PARENTS,Childrens Services,Children's Services,Foster Carer Agency Fees,01/10/21,"3,336.22 ",321100,Social Community Care Supplies & Services - Children
5431565,PARALLEL PARENTS,Childrens Services,Children's Services,Foster Carer Agency Fees,01/10/21,"3,807.42 ",321100,Social Community Care Supplies & Services - Children
5431566,PARALLEL PARENTS,Childrens Services,Children's Services,Foster Carer Agency Fees,01/10/21,"3,096.90 ",321100,Social Community Care Supplies & Services - Children
5431581,PARALLEL PARENTS,Childrens Services,Children's Services,Foster Carer Agency Fees,01/10/21,"3,712.87 ",321100,Social Community Care Supplies & Services - Children
5431579,PARALLEL PARENTS,Childrens Services,Children's Services,Foster Carer Agency Fees,01/10/21,"4,242.04 ",321100,Social Community Care Supplies & Services - Children
5431586,PARALLEL PARENTS,Childrens Services,Children's Services,Foster Carer Agency Fees,01/10/21,"4,241.73 ",321100,Social Community Care Supplies & Services - Children
5431573,PARALLEL PARENTS,Childrens Services,Children's Services,Foster Carer Agency Fees,01/10/21,"2,883.93 ",321100,Social Community Care Supplies & Services - Children
5431571,PARALLEL PARENTS,Childrens Services,Children's Services,Foster Carer Agency Fees,01/10/21,"3,483.78 ",321100,Social Community Care Supplies & Services - Children
5431576,PARALLEL PARENTS,Childrens Services,Children's Services,Foster Carer Agency Fees,01/10/21,"3,431.70 ",321100,Social Community Care Supplies & Services - Children
5431577,PARALLEL PARENTS,Childrens Services,Children's Services,Foster Carer Agency Fees,01/10/21,"4,242.04 ",321100,Social Community Care Supplies & Services - Children
5431582,PARALLEL PARENTS,Childrens Services,Children's Services,Foster Carer Agency Fees,01/10/21,"3,807.42 ",321100,Social Community Care Supplies & Services - Children
5431580,PARALLEL PARENTS,Childrens Services,Children's Services,Foster Carer Agency Fees,01/10/21,"4,242.04 ",321100,Social Community Care Supplies & Services - Children
5433515,TAMESIDE SPORTS TRUST,Population Health,Population Health,Grants to Organisations,01/10/21,"15,380.00 ",290000,Arts & Leisure Services
5433495,TAMESIDE SPORTS TRUST,Childrens Services,Children's Services,Short Breaks (Respite),01/10/21,"1,152.00 ",290000,Arts & Leisure Services
5433494,TAMESIDE SPORTS TRUST,Childrens Services,Children's Services,Short Breaks (Respite),01/10/21,800.00 ,290000,Arts & Leisure Services
5433472,TAMESIDE SPORTS TRUST,Childrens Services,Children's Services,Short Breaks (Respite),01/10/21,640.00 ,290000,Arts & Leisure Services
5433469,TAMESIDE SPORTS TRUST,Adult Social Care,Adults,Professional Services,01/10/21,"1,325.00 ",290000,Arts & Leisure Services
5433478,TAMESIDE SPORTS TRUST,Adult Social Care,Adults,Professional Services,01/10/21,"1,325.00 ",290000,Arts & Leisure Services
5433483,TAMESIDE SPORTS TRUST,Adult Social Care,Adults,Professional Services,01/10/21,"1,656.25 ",290000,Arts & Leisure Services
5433502,TAMESIDE SPORTS TRUST,Childrens Services,Children's Services,Short Breaks (Respite),01/10/21,640.00 ,290000,Arts & Leisure Services
5433474,TAMESIDE SPORTS TRUST,Childrens Services,Children's Services,Short Breaks (Respite),01/10/21,720.00 ,290000,Arts & Leisure Services
5433488,TAMESIDE SPORTS TRUST,Population Health,Population Health,Grants to Organisations,01/10/21,"15,380.00 ",290000,Arts & Leisure Services
5433529,TAMESIDE SPORTS TRUST,Adult Social Care,Adults,Professional Services,01/10/21,993.75 ,290000,Arts & Leisure Services
5433487,TAMESIDE SPORTS TRUST,Adult Social Care,Adults,Professional Services,01/10/21,"1,656.25 ",290000,Arts & Leisure Services
5433442,TAMESIDE LINK,Adult Social Care,Adults,Homecare Fees,01/10/21,"3,729.60 ",321000,Social Community Care Supplies & Services - Adult
5432027,TREASURED MEMORIES LTD,Operations and Neighbourhoods,Operations and Neighbourhoods,Plaques,01/10/21,682.45 ,120000,Cemetery & Crematorium
5431598,Redacted Supplier,Childrens Services,Children's Services,Childrens Homes Outside Local Authority Fees,01/10/21,"18,600.00 ",321100,Social Community Care Supplies & Services - Children
5431812,Redacted Supplier,Childrens Services,Children's Services,Foster Carer Agency Fees,01/10/21,"4,207.01 ",321100,Social Community Care Supplies & Services - Children
5431599,Redacted Supplier,Childrens Services,Children's Services,Childrens Homes Outside Local Authority Fees,01/10/21,"18,600.00 ",321100,Social Community Care Supplies & Services - Children
5431815,Redacted Supplier,Childrens Services,Children's Services,Childrens Homes Outside Local Authority Fees,01/10/21,"12,178.66 ",321100,Social Community Care Supplies & Services - Children
5431604,CREATIVE SUPPORT LTD,Adult Social Care,Adults,Homecare Fees,01/10/21,"19,013.67 ",321000,Social Community Care Supplies & Services - Adult
5431862,Redacted Supplier,Childrens Services,Children's Services,Childrens Homes Outside Local Authority Fees,01/10/21,"18,267.68 ",321100,Social Community Care Supplies & Services - Children
5431864,Redacted Supplier,Childrens Services,Children's Services,Childrens Homes Outside Local Authority Fees,01/10/21,"11,713.66 ",321100,Social Community Care Supplies & Services - Children
5431863,Redacted Supplier,Childrens Services,Children's Services,Childrens Homes Outside Local Authority Fees,01/10/21,"12,377.99 ",321100,Social Community Care Supplies & Services - Children
5431860,Redacted Supplier,Childrens Services,Children's Services,Childrens Homes Outside Local Authority Fees,01/10/21,"14,149.33 ",321100,Social Community Care Supplies & Services - Children
5431376,CAPSTONE FOSTER CARE,Childrens Services,Children's Services,Foster Carer Agency Fees,01/10/21,"3,512.63 ",321000,Social Community Care Supplies & Services - Adult
5431370,CAPSTONE FOSTER CARE,Childrens Services,Children's Services,Foster Carer Agency Fees,01/10/21,"3,835.80 ",321000,Social Community Care Supplies & Services - Adult
5431433,CAPSTONE FOSTER CARE,Childrens Services,Children's Services,Foster Carer Agency Fees,01/10/21,"3,177.90 ",321000,Social Community Care Supplies & Services - Adult
5431372,CAPSTONE FOSTER CARE,Childrens Services,Children's Services,Foster Carer Agency Fees,01/10/21,"3,420.00 ",321000,Social Community Care Supplies & Services - Adult
5431369,CAPSTONE FOSTER CARE,Childrens Services,Children's Services,Foster Carer Agency Fees,01/10/21,"3,420.00 ",321000,Social Community Care Supplies & Services - Adult
5431371,CAPSTONE FOSTER CARE,Childrens Services,Children's Services,Foster Carer Agency Fees,01/10/21,"3,420.00 ",321000,Social Community Care Supplies & Services - Adult
5431377,CAPSTONE FOSTER CARE,Childrens Services,Children's Services,Foster Carer Agency Fees,01/10/21,"3,420.00 ",321000,Social Community Care Supplies & Services - Adult
5431373,CAPSTONE FOSTER CARE,Childrens Services,Children's Services,Foster Carer Agency Fees,01/10/21,"3,385.80 ",321000,Social Community Care Supplies & Services - Adult
5431375,CAPSTONE FOSTER CARE,Childrens Services,Children's Services,Foster Carer Agency Fees,01/10/21,"3,512.63 ",321000,Social Community Care Supplies & Services - Adult
5431434,CAPSTONE FOSTER CARE,Childrens Services,Children's Services,Foster Carer Agency Fees,01/10/21,"6,555.09 ",321000,Social Community Care Supplies & Services - Adult
5431436,CAPSTONE FOSTER CARE,Childrens Services,Children's Services,Foster Carer Agency Fees,01/10/21,"6,555.09 ",321000,Social Community Care Supplies & Services - Adult
5433824,THRESHOLD HOUSING PROJECT,Operations and Neighbourhoods,Operations and Neighbourhoods,Other Accomodation Related Costs,01/10/21,"45,339.48 ",250000,Housing Management
5431612,SWIIS FOSTER CARE LTD,Childrens Services,Children's Services,Foster Carer Agency Fees,01/10/21,"1,694.98 ",321100,Social Community Care Supplies & Services - Children
5431609,SWIIS FOSTER CARE LTD,Childrens Services,Children's Services,Foster Carer Agency Fees,01/10/21,760.48 ,321100,Social Community Care Supplies & Services - Children
5431610,SWIIS FOSTER CARE LTD,Childrens Services,Children's Services,Foster Carer Agency Fees,01/10/21,696.99 ,321100,Social Community Care Supplies & Services - Children
5431608,SWIIS FOSTER CARE LTD,Childrens Services,Children's Services,Foster Carer Agency Fees,01/10/21,787.78 ,321100,Social Community Care Supplies & Services - Children
5433791,E PETCH PRINTERS LTD,Policy and Communications,Governance,Printing And Stationery,01/10/21,"1,165.00 ",190000,Facilities & Management Services
5433384,STALYBRIDGE READYMIX LTD,Operations and Neighbourhoods,Operations and Neighbourhoods,Building Works,01/10/21,"1,155.00 ",231200,Highway Equipment & Materials
5433703,JACKSON & TAYLOR LTD,Housing,Director of Place,Improvement Grants - Final Mandatory,01/10/21,"4,956.92 ",390000,"Works - Construction, Repair & Maintenance"
5432044,CAMPEY TURF CARE SYSTEMS,Operations and Neighbourhoods,Operations and Neighbourhoods,General Equipment Repair & Maintenance,01/10/21,"1,528.78 ",240000,Horticultural
5431615,TAMESIDE CITIZENS ADVICE BUREAU LTD,Operations and Neighbourhoods,Operations and Neighbourhoods,Grants to Citizens' Advice Bureau,01/10/21,"9,666.00 ",321000,Social Community Care Supplies & Services - Adult
5431616,ELECTORAL REFORM SERVICES,Governance,Governance,Printing And Stationery,01/10/21,736.34 ,-999999,Unclassifiable
5431770,Redacted Supplier,Childrens Services,Children's Services,Childrens Homes Outside Local Authority Fees,01/10/21,"13,148.42 ",321100,Social Community Care Supplies & Services - Children
5431772,Redacted Supplier,Childrens Services,Children's Services,Childrens Homes Outside Local Authority Fees,01/10/21,"13,148.42 ",321100,Social Community Care Supplies & Services - Children
5431773,Redacted Supplier,Childrens Services,Children's Services,Childrens Homes Outside Local Authority Fees,01/10/21,"13,148.42 ",321100,Social Community Care Supplies & Services - Children
470926,AGGREGATE INDUSTRIES UK LIMITED,Operations and Neighbourhoods,Operations and Neighbourhoods,General Materials,04/10/21,"6,884.01 ",230000,Highway Equipment & Materials
470926,FAIRWAY LANDSCAPES LTD,Operations and Neighbourhoods,Operations and Neighbourhoods,Sub-contractor Services,04/10/21,"2,950.00 ",399999,"Works - Construction, Repair & Maintenance"
470926,MARWOOD ELECTRICAL CO,Operations and Neighbourhoods,Operations and Neighbourhoods,General Materials,04/10/21,"35,844.04 ",230000,Highway Equipment & Materials
470926,Saint-Gobain Building Distribution Limited t/a Benchmark Building Supplies,Civil Engineers,Director of Place,Debits Goods Received,04/10/21,246.00 ,100000,Building Construction Materials
470926,Saint-Gobain Building Distribution Limited t/a Benchmark Building Supplies,Operations and Neighbourhoods,Operations and Neighbourhoods,General Materials,04/10/21,"1,353.34 ",100000,Building Construction Materials
470926,CASTINGS SERVICES LTD,Civil Engineers,Director of Place,Debits Goods Received,04/10/21,"1,595.00 ",100000,Building Construction Materials
470926,NORTHWEST UTILITY SOLUTIONS LTD,Operations and Neighbourhoods,Operations and Neighbourhoods,Sub-contractor Services,04/10/21,"2,000.00 ",370000,Utilities
470926,ROWAN ASHWORTH LIMITED,Operations and Neighbourhoods,Operations and Neighbourhoods,Sub-contractor Services,04/10/21,"17,425.00 ",-999999,Unclassifiable
470926,ZODION LTD,Civil Engineers,Director of Place,Debits Goods Received,04/10/21,622.40 ,230000,Highway Equipment & Materials
470926,ROSGAL CIVIL ENGINEERING LTD,Operations and Neighbourhoods,Operations and Neighbourhoods,General Materials,04/10/21,"4,400.00 ",230000,Highway Equipment & Materials
5431963,Hillgate Health Group Limited,Childrens Services,Children's Services,Living With Formal Support,04/10/21,"2,159.36 ",-999999,Unclassifiable
5431966,Hillgate Health Group Limited,Childrens Services,Children's Services,Living With Formal Support,04/10/21,"1,179.36 ",-999999,Unclassifiable
5434667,Carrington West Ltd,Place,Growth,Professional Services,04/10/21,900.90 ,-999999,Unclassifiable
5434810,Gallagher Bassett fee acc,Finance,Finance & IT,Professional Services,04/10/21,"6,561.00 ",260000,Human Resources
5434811,Gallagher Bassett fee acc,Multiple Heads of Service,Multiple Strategic Directorates,Public Liability Insurance Claims,04/10/21,"1,950.00 ",UNCLASS,Unclassifiable
5434811,Gallagher Bassett fee acc,Finance,Finance & IT,Professional Services,04/10/21,"7,355.00 ",260000,Human Resources
5434123,TPR Care Services Ltd,Childrens Services,Children's Services,Living With Formal Support,04/10/21,"1,544.20 ",321100,Social Community Care Supplies & Services - Children
5434121,TPR Care Services Ltd,Childrens Services,Children's Services,Living With Formal Support,04/10/21,"1,544.20 ",321100,Social Community Care Supplies & Services - Children
5434122,TPR Care Services Ltd,Childrens Services,Children's Services,Living With Formal Support,04/10/21,"1,229.20 ",321100,Social Community Care Supplies & Services - Children
5427218,Greater Manchester Immigration Aid Unit,Childrens Services,Children's Services,Fees,04/10/21,600.00 ,200000,Financial Services
5433981,TAMESIDE AND GLOSSOP INTEGRATED CARE NHS FOUNDATION TRUST,Adult Social Care,Adults,External Secondments,04/10/21,"3,950.48 ",310000,Healthcare
5429957,G4S CASH SOLUTIONS (UK) LIMITED,Finance,Finance & IT,Security Services,04/10/21,576.02 ,190000,Facilities & Management Services
5433577,PERSON CENTRED CARE SERVICES LIMITED,Adult Social Care,Adults,Homecare Fees,04/10/21,"8,677.50 ",310000,Healthcare
5433578,PERSON CENTRED CARE SERVICES LIMITED,Adult Social Care,Adults,Homecare Fees,04/10/21,"8,928.75 ",310000,Healthcare
5433300,ABLE CARE AND SUPPORT SERVICES LTD,Adult Social Care,Adults,Homecare Fees,04/10/21,"12,284.56 ",321000,Social Community Care Supplies & Services - Adult
5434807,WEIGHTMANS LLP,Multiple Heads of Service,Multiple Strategic Directorates,Public Liability Insurance Claims,04/10/21,978.38 ,-999999,Unclassifiable
5434545,INSPIREDSPACES TAMESIDE LTD,(blank),(blank),New Accommodation Works,04/10/21,"211,918.44 ",390000,"Works - Construction, Repair & Maintenance"
5433920,Headsets4Business Limited,Digital Tameside,Finance & IT,It Equipment,04/10/21,"2,640.00 ",270000,Information Communication Technology
5434361,Hyde Accessible Transport Limited,Education,Children's Services,Transport Of Pupils,04/10/21,"2,850.00 ",360000,Public Transport
5434364,Hyde Accessible Transport Limited,Education,Children's Services,Transport Of Pupils,04/10/21,"2,375.00 ",360000,Public Transport
5434383,Hyde Accessible Transport Limited,Education,Children's Services,Transport Of Pupils,04/10/21,"1,330.00 ",360000,Public Transport
5434326,Hyde Accessible Transport Limited,Education,Children's Services,Transport Of Pupils,04/10/21,"2,625.00 ",360000,Public Transport
5434328,Hyde Accessible Transport Limited,Education,Children's Services,Transport Of Pupils,04/10/21,"2,625.00 ",360000,Public Transport
5434331,Hyde Accessible Transport Limited,Education,Children's Services,Transport Of Pupils,04/10/21,"2,137.50 ",360000,Public Transport
5434333,Hyde Accessible Transport Limited,Education,Children's Services,Transport Of Pupils,04/10/21,"2,137.50 ",360000,Public Transport
5434340,Hyde Accessible Transport Limited,Education,Children's Services,Transport Of Pupils,04/10/21,997.50 ,360000,Public Transport
5434342,Hyde Accessible Transport Limited,Education,Children's Services,Transport Of Pupils,04/10/21,"1,425.00 ",360000,Public Transport
5434347,Hyde Accessible Transport Limited,Education,Children's Services,Transport Of Post 16 Pupils,04/10/21,"2,137.50 ",360000,Public Transport
5434350,Hyde Accessible Transport Limited,Education,Children's Services,Transport Of Ola Pupils,04/10/21,"2,137.50 ",360000,Public Transport
5434357,Hyde Accessible Transport Limited,Education,Children's Services,Transport Of Ola Pupils,04/10/21,587.50 ,360000,Public Transport
5434388,Hyde Accessible Transport Limited,Education,Children's Services,Transport Of Pupils,04/10/21,"1,470.00 ",360000,Public Transport
5434390,Hyde Accessible Transport Limited,Education,Children's Services,Transport Of Ola Pupils,04/10/21,"3,011.50 ",360000,Public Transport
5434395,Hyde Accessible Transport Limited,Education,Children's Services,Transport Of Post 16 Pupils,04/10/21,"2,375.00 ",360000,Public Transport
5434398,Hyde Accessible Transport Limited,Education,Children's Services,Transport Of Ola Pupils,04/10/21,"2,232.50 ",360000,Public Transport
5434403,Hyde Accessible Transport Limited,Education,Children's Services,Transport Of Pupils,04/10/21,"1,710.00 ",360000,Public Transport
5434358,Hyde Accessible Transport Limited,Education,Children's Services,Transport Of Pupils,04/10/21,"2,460.50 ",360000,Public Transport
5434360,Hyde Accessible Transport Limited,Education,Children's Services,Transport Of Pupils,04/10/21,"1,710.00 ",360000,Public Transport
5434365,Hyde Accessible Transport Limited,Education,Children's Services,Transport Of Pupils,04/10/21,"2,375.00 ",360000,Public Transport
5434367,Hyde Accessible Transport Limited,Education,Children's Services,Transport Of Pupils,04/10/21,"1,900.00 ",360000,Public Transport
5434387,Hyde Accessible Transport Limited,Education,Children's Services,Transport Of Pupils,04/10/21,"2,625.00 ",360000,Public Transport
5434327,Hyde Accessible Transport Limited,Education,Children's Services,Transport Of Pupils,04/10/21,"2,625.00 ",360000,Public Transport
5434336,Hyde Accessible Transport Limited,Education,Children's Services,Transport Of Pupils,04/10/21,"1,710.00 ",360000,Public Transport
5434338,Hyde Accessible Transport Limited,Education,Children's Services,Transport Of Pupils,04/10/21,"2,137.50 ",360000,Public Transport
5434339,Hyde Accessible Transport Limited,Education,Children's Services,Transport Of Post 16 Pupils,04/10/21,"2,375.00 ",360000,Public Transport
5434343,Hyde Accessible Transport Limited,Education,Children's Services,Transport Of Post 16 Pupils,04/10/21,"2,137.50 ",360000,Public Transport
5434346,Hyde Accessible Transport Limited,Education,Children's Services,Transport Of Post 16 Pupils,04/10/21,"2,375.00 ",360000,Public Transport
5434356,Hyde Accessible Transport Limited,Education,Children's Services,Transport Of Pupils,04/10/21,625.00 ,360000,Public Transport
5434391,Hyde Accessible Transport Limited,Education,Children's Services,Transport Of Ola Pupils,04/10/21,"2,460.50 ",360000,Public Transport
5434394,Hyde Accessible Transport Limited,Education,Children's Services,Transport Of Ola Pupils,04/10/21,"2,679.00 ",360000,Public Transport
5434402,Hyde Accessible Transport Limited,Education,Children's Services,Transport Of Pupils,04/10/21,"1,425.00 ",360000,Public Transport
5434406,Hyde Accessible Transport Limited,Education,Children's Services,Transport Of Ola Pupils,04/10/21,"2,565.00 ",360000,Public Transport
5434362,Hyde Accessible Transport Limited,Education,Children's Services,Transport Of Pupils,04/10/21,"2,137.50 ",360000,Public Transport
5434370,Hyde Accessible Transport Limited,Education,Children's Services,Transport Of Pupils,04/10/21,"1,330.00 ",360000,Public Transport
5434380,Hyde Accessible Transport Limited,Education,Children's Services,Transport Of Post 16 Pupils,04/10/21,900.00 ,360000,Public Transport
5434329,Hyde Accessible Transport Limited,Education,Children's Services,Transport Of Pupils,04/10/21,"1,890.00 ",UNCLASS,Unclassifiable
5434335,Hyde Accessible Transport Limited,Education,Children's Services,Transport Of Pupils,04/10/21,"2,375.00 ",UNCLASS,Unclassifiable
5434345,Hyde Accessible Transport Limited,Education,Children's Services,Transport Of Post 16 Pupils,04/10/21,"2,137.50 ",360000,Public Transport
5434348,Hyde Accessible Transport Limited,Education,Children's Services,Transport Of Post 16 Pupils,04/10/21,"1,425.00 ",360000,Public Transport
5434355,Hyde Accessible Transport Limited,Education,Children's Services,Transport Of Ola Pupils,04/10/21,"2,565.00 ",360000,Public Transport
5434393,Hyde Accessible Transport Limited,Education,Children's Services,Transport Of Post 16 Pupils,04/10/21,"1,710.00 ",360000,Public Transport
5434396,Hyde Accessible Transport Limited,Education,Children's Services,Transport Of Post 16 Pupils,04/10/21,"2,137.50 ",360000,Public Transport
5434404,Hyde Accessible Transport Limited,Education,Children's Services,Transport Of Pupils,04/10/21,"2,698.00 ",360000,Public Transport
5434405,Hyde Accessible Transport Limited,Education,Children's Services,Transport Of Pupils,04/10/21,"2,375.00 ",360000,Public Transport
5434363,Hyde Accessible Transport Limited,Education,Children's Services,Transport Of Pupils,04/10/21,"2,375.00 ",360000,Public Transport
5434371,Hyde Accessible Transport Limited,Education,Children's Services,Transport Of Pupils,04/10/21,997.50 ,360000,Public Transport
5434330,Hyde Accessible Transport Limited,Education,Children's Services,Transport Of Pupils,04/10/21,"2,362.50 ",360000,Public Transport
5434344,Hyde Accessible Transport Limited,Education,Children's Services,Transport Of Pupils,04/10/21,"2,375.00 ",360000,Public Transport
5434349,Hyde Accessible Transport Limited,Education,Children's Services,Transport Of Post 16 Pupils,04/10/21,"1,710.00 ",360000,Public Transport
5434392,Hyde Accessible Transport Limited,Education,Children's Services,Transport Of Pupils,04/10/21,"2,137.50 ",360000,Public Transport
5434397,Hyde Accessible Transport Limited,Education,Children's Services,Transport Of Ola Pupils,04/10/21,"1,786.00 ",360000,Public Transport
5433486,TAMESIDE SPORTS TRUST,Adult Social Care,Adults,Professional Services,04/10/21,640.00 ,290000,Arts & Leisure Services
5433525,TAMESIDE SPORTS TRUST,Adult Social Care,Adults,Professional Services,04/10/21,662.50 ,290000,Arts & Leisure Services
5434247,CREATIVE SUPPORT LTD,Adult Social Care,Adults,Age Concern Fees,04/10/21,"34,775.09 ",321000,Social Community Care Supplies & Services - Adult
5432691,CREATIVE SUPPORT LTD,Adult Social Care,Adults,Independent Sector Care Fees,04/10/21,"84,528.09 ",321000,Social Community Care Supplies & Services - Adult
5433155,ATKINS LIMITED,(blank),(blank),Engineers - Internal Recharge,05/10/21,"9,309.52 ",180000,Environmental Services
5433155,ATKINS LIMITED,Operations and Neighbourhoods,Operations and Neighbourhoods,Engineers - Internal Recharge,05/10/21,43.28 ,180000,Environmental Services
5433511,Bloom Procurement Services Limited,(blank),(blank),External  Consultants,05/10/21,"7,246.50 ",150000,Consultancy
5433509,Bloom Procurement Services Limited,(blank),(blank),External  Consultants,05/10/21,"6,834.50 ",150000,Consultancy
5431970,Shabach Health Care Ltd,Adult Social Care,Adults,Homecare Fees,05/10/21,"1,748.25 ",321000,Social Community Care Supplies & Services - Adult
5435100,N D OLIVER & CO LTD,Operations and Neighbourhoods,Operations and Neighbourhoods,Professional Services,05/10/21,550.00 ,260000,Human Resources
5434847,MOSSLEY PRIVATE HIRE,Education,Children's Services,Transport Of Ola Pupils,05/10/21,"2,451.00 ",360000,Public Transport
5434852,MOSSLEY PRIVATE HIRE,Education,Children's Services,Transport Of Pupils,05/10/21,"2,375.00 ",360000,Public Transport
5434849,MOSSLEY PRIVATE HIRE,Education,Children's Services,Transport Of Pupils,05/10/21,"2,375.00 ",360000,Public Transport
5434848,MOSSLEY PRIVATE HIRE,Education,Children's Services,Transport Of Pupils,05/10/21,"2,625.00 ",360000,Public Transport
5434850,MOSSLEY PRIVATE HIRE,Education,Children's Services,Transport Of Pupils,05/10/21,"2,375.00 ",360000,Public Transport
5434853,MOSSLEY PRIVATE HIRE,Education,Children's Services,Transport Of Pupils,05/10/21,"1,330.00 ",360000,Public Transport
5434846,MOSSLEY PRIVATE HIRE,Education,Children's Services,Transport Of Pupils,05/10/21,"2,375.00 ",360000,Public Transport
5434851,MOSSLEY PRIVATE HIRE,Education,Children's Services,Transport Of Pupils,05/10/21,"2,232.50 ",360000,Public Transport
5432214,CITY LIFT SERVICES (NW) LTD,Adult Social Care,Adults,General Equipment Repair & Maintenance,05/10/21,"1,230.00 ",UNCLASS,Unclassifiable
5434341,Hyde Accessible Transport Limited,Operations and Neighbourhoods,Operations and Neighbourhoods,Hired Transport,05/10/21,600.00 ,UNCLASS,Unclassifiable
5434385,Hyde Accessible Transport Limited,Operations and Neighbourhoods,Operations and Neighbourhoods,Hired Transport,05/10/21,"1,185.00 ",360000,Public Transport
5434399,Hyde Accessible Transport Limited,Education,Children's Services,Transport Of Pupils,05/10/21,"1,900.00 ",360000,Public Transport
5434845,Hyde Accessible Transport Limited,Education,Children's Services,Transport Of Pupils,05/10/21,997.50 ,360000,Public Transport
5434352,Hyde Accessible Transport Limited,Operations and Neighbourhoods,Operations and Neighbourhoods,Hired Transport,05/10/21,"1,870.00 ",360000,Public Transport
5434332,Hyde Accessible Transport Limited,Education,Children's Services,Transport Of Pupils,05/10/21,"3,150.00 ",360000,Public Transport
5434353,Hyde Accessible Transport Limited,Operations and Neighbourhoods,Operations and Neighbourhoods,Hired Transport,05/10/21,630.00 ,360000,Public Transport
5434382,Hyde Accessible Transport Limited,Operations and Neighbourhoods,Operations and Neighbourhoods,Hired Transport,05/10/21,"1,000.00 ",360000,Public Transport
5434334,Hyde Accessible Transport Limited,Operations and Neighbourhoods,Operations and Neighbourhoods,Hired Transport,05/10/21,"2,625.00 ",360000,Public Transport
5434351,Hyde Accessible Transport Limited,Operations and Neighbourhoods,Operations and Neighbourhoods,Hired Transport,05/10/21,"1,980.00 ",360000,Public Transport
5434354,Hyde Accessible Transport Limited,Operations and Neighbourhoods,Operations and Neighbourhoods,Hired Transport,05/10/21,"1,380.00 ",360000,Public Transport
5434366,Hyde Accessible Transport Limited,Education,Children's Services,Transport Of Pupils,05/10/21,"2,375.00 ",360000,Public Transport
5434389,Hyde Accessible Transport Limited,Education,Children's Services,Transport Of Pupils,05/10/21,"3,150.00 ",360000,Public Transport
5434447,Redacted Supplier,Education,Children's Services,Transport Of Pupils,05/10/21,"2,375.00 ",360000,Public Transport
5434451,Redacted Supplier,Education,Children's Services,Transport Of Post 16 Pupils,05/10/21,"2,137.50 ",360000,Public Transport
5434446,Redacted Supplier,Education,Children's Services,Transport Of Pupils,05/10/21,"2,850.00 ",360000,Public Transport
5434448,Redacted Supplier,Education,Children's Services,Transport Of Pupils,05/10/21,"2,375.00 ",360000,Public Transport
5434450,Redacted Supplier,Education,Children's Services,Transport Of Pupils,05/10/21,"2,375.00 ",360000,Public Transport
5434054,JACKSON & TAYLOR LTD,Housing,Director of Place,Improvement Grants - Final Mandatory,05/10/21,"4,992.04 ",390000,"Works - Construction, Repair & Maintenance"
5434072,MHR International UK Limited,People and Workforce Development,Governance,Computer Software,05/10/21,"22,978.20 ",270000,Information Communication Technology
5434252,MHR International UK Limited,People and Workforce Development,Governance,Computer Software,05/10/21,"33,860.54 ",270000,Information Communication Technology
5432136,Restorative Social Care Services,Childrens Services,Children's Services,Living With Formal Support,06/10/21,"3,011.34 ",321100,Social Community Care Supplies & Services - Children
5432136,Restorative Social Care Services,Childrens Services,Children's Services,Semi independent - Weekly Living Allowances,06/10/21,261.33 ,321100,Social Community Care Supplies & Services - Children
5432139,Restorative Social Care Services,Childrens Services,Children's Services,Living With Formal Support,06/10/21,"2,307.33 ",321100,Social Community Care Supplies & Services - Children
5432139,Restorative Social Care Services,Childrens Services,Children's Services,Semi independent - Weekly Living Allowances,06/10/21,261.33 ,321100,Social Community Care Supplies & Services - Children
5432143,iCare Solutions,Adult Social Care,Adults,Homecare Fees,06/10/21,"10,381.28 ",310000,Healthcare
5432141,iCare Solutions,Adult Social Care,Adults,Homecare Fees,06/10/21,"9,794.36 ",310000,Healthcare
5432144,iCare Solutions,Adult Social Care,Adults,Homecare Fees,06/10/21,"10,281.38 ",310000,Healthcare
5432133,Furniture Resource Centre Ltd,Operations and Neighbourhoods,Operations and Neighbourhoods,Fixtures & Fittings Purchase,06/10/21,559.37 ,UNCLASS,Unclassifiable
5432135,Furniture Resource Centre Ltd,Operations and Neighbourhoods,Operations and Neighbourhoods,Fixtures & Fittings Purchase,06/10/21,"1,446.34 ",UNCLASS,Unclassifiable
5432152,ARB MATTERS LTD,Operations and Neighbourhoods,Operations and Neighbourhoods,General Materials,06/10/21,500.00 ,340000,Stationery
5432156,Pre Paid Financial Services,Adult Social Care,Adults,Subscriptions,06/10/21,"1,053.70 ",UNCLASS,Unclassifiable
5432158,Supporting Futures LTD,Childrens Services,Children's Services,Childrens Homes Outside Local Authority Fees,06/10/21,"21,102.01 ",310000,Healthcare
5435065,Redacted Supplier,Operations and Neighbourhoods,Operations and Neighbourhoods,Professional Entertainment Services,06/10/21,"1,600.00 ",290000,Arts & Leisure Services
5432162,Shabach Health Care Ltd,Adult Social Care,Adults,Homecare Fees,06/10/21,"2,045.12 ",321000,Social Community Care Supplies & Services - Adult
5432164,Amore Social Care Ltd,Childrens Services,Children's Services,Childrens Homes Outside Local Authority Fees,06/10/21,"12,543.36 ",310000,Healthcare
5432165,SURECARE TAMESIDE & OLDHAM,Adult Social Care,Adults,Homecare Fees,06/10/21,"2,098.40 ",111230,Catering
5432148,CPOMS,Individual Schools Budget,Children's Services,Licences,06/10/21,685.00 ,UNCLASS,Unclassifiable
5435093,TPR Care Services Ltd,Childrens Services,Children's Services,Living With Formal Support,06/10/21,"1,229.20 ",321100,Social Community Care Supplies & Services - Children
5435095,TPR Care Services Ltd,Childrens Services,Children's Services,Living With Formal Support,06/10/21,"1,544.20 ",321100,Social Community Care Supplies & Services - Children
5432167,DOMAIN CARE NORTH WEST LTD,Adult Social Care,Adults,Homecare Fees,06/10/21,"1,256.68 ",321100,Social Community Care Supplies & Services - Children
5432174,Randstad Public Services Limited,Individual Schools Budget,Children's Services,Agency Staff,06/10/21,995.00 ,170000,Education
5432172,ALPHA BIOLABS,Childrens Services,Children's Services,Professional Medical Services,06/10/21,645.00 ,180000,Environmental Services
5432118,Redacted Supplier,Childrens Services,Children's Services,Childrens Homes Outside Local Authority Fees,06/10/21,"17,571.43 ",321100,Social Community Care Supplies & Services - Children
5432117,Redacted Supplier,Childrens Services,Children's Services,Childrens Homes Outside Local Authority Fees,06/10/21,"17,571.43 ",321100,Social Community Care Supplies & Services - Children
5432119,Redacted Supplier,Childrens Services,Children's Services,Childrens Homes Outside Local Authority Fees,06/10/21,"17,571.43 ",321100,Social Community Care Supplies & Services - Children
5432177,Transunion Internal UK Limited,Hosted Services,Hosted Services,Professional Services,06/10/21,"16,800.00 ",150000,Consultancy
5432185,THE COPYRIGHT LICENSING AGENCY LTD,Corporate Costs,Corporate Costs,Licences,06/10/21,"12,394.14 ",280000,Legal Services
5432181,LEGGETT PSYCHOLOGY LTD,Education,Children's Services,Professional Services,06/10/21,"1,100.00 ",170000,Education
5432179,Redacted Supplier,Education,Children's Services,Independent School Fees,06/10/21,"19,500.00 ",UNCLASS,Unclassifiable
5432182,ORACLE CARE LTD,Childrens Services,Children's Services,Childrens Homes Outside Local Authority Fees,06/10/21,"19,500.00 ",321100,Social Community Care Supplies & Services - Children
5432093,NATIONAL FOSTERING AGENCY LTD,Childrens Services,Children's Services,Foster Carer Agency Fees,06/10/21,"3,116.74 ",321100,Social Community Care Supplies & Services - Children
5432103,NATIONAL FOSTERING AGENCY LTD,Childrens Services,Children's Services,Foster Carer Agency Fees,06/10/21,"3,542.99 ",321100,Social Community Care Supplies & Services - Children
5432115,NATIONAL FOSTERING AGENCY LTD,Childrens Services,Children's Services,Foster Carer Agency Fees,06/10/21,"3,493.70 ",321100,Social Community Care Supplies & Services - Children
5432102,NATIONAL FOSTERING AGENCY LTD,Childrens Services,Children's Services,Foster Carer Agency Fees,06/10/21,"3,092.25 ",321100,Social Community Care Supplies & Services - Children
5432088,NATIONAL FOSTERING AGENCY LTD,Childrens Services,Children's Services,Foster Carer Agency Fees,06/10/21,"3,218.42 ",321100,Social Community Care Supplies & Services - Children
5432101,NATIONAL FOSTERING AGENCY LTD,Childrens Services,Children's Services,Foster Carer Agency Fees,06/10/21,"3,116.74 ",321100,Social Community Care Supplies & Services - Children
5432146,COMPUTEAM LTD,Individual Schools Budget,Children's Services,Licences,06/10/21,"2,333.52 ",270000,Information Communication Technology
5432169,RH ENVIRONMENTAL,Operations and Neighbourhoods,Operations and Neighbourhoods,General Equipment Purchase,06/10/21,"2,680.00 ",260000,Human Resources
5433096,MEDACS HEALTHCARE,Adult Social Care,Adults,Homecare Fees,06/10/21,"18,042.62 ",150000,Consultancy
5432130,SMS Coaching LTD,Education,Children's Services,Non-Maintained School Fees,06/10/21,"10,115.00 ",-999999,Unclassifiable
5434337,Hyde Accessible Transport Limited,Operations and Neighbourhoods,Operations and Neighbourhoods,Hired Transport,06/10/21,"1,825.00 ",360000,Public Transport
5432128,CIPFA BUSINESS LIMITED,Engineers Client,Director of Place,Survey/Surveyors Fees,06/10/21,"1,495.00 ",200000,Financial Services
5432127,MOSSCARE HOUSING LTD,Adult Social Care,Adults,Non-Authority Accommodation Rental,06/10/21,"30,385.90 ",321000,Social Community Care Supplies & Services - Adult
5432126,PROGRESS CARE HOUSING ASSOCIATION LIMITED,Adult Social Care,Adults,Non-Authority Accommodation Rental,06/10/21,"5,661.49 ",250000,Housing Management
5432124,Redacted Supplier,Adult Social Care,Adults,Homecare Fees,06/10/21,"2,219.76 ",321000,Social Community Care Supplies & Services - Adult
5433095,CREATIVE SUPPORT LTD,Adult Social Care,Adults,Residential Home Long Stay Fees,06/10/21,"1,817.20 ",321000,Social Community Care Supplies & Services - Adult
5434063,WESSEX LIFT CO. LIMITED,Housing,Director of Place,Improvement Grants - Final Mandatory,06/10/21,"15,897.00 ",390000,"Works - Construction, Repair & Maintenance"
5432106,LEXISNEXIS UK,Governance,Governance,Subscriptions,06/10/21,"2,898.00 ",270000,Information Communication Technology
5432086,ALPHA PLUS FOSTERING LIMITED,Childrens Services,Children's Services,Foster Carer Agency Fees,06/10/21,608.99 ,321000,Social Community Care Supplies & Services - Adult
5432085,ALPHA PLUS FOSTERING LIMITED,Childrens Services,Children's Services,Foster Carer Agency Fees,06/10/21,"3,542.99 ",321000,Social Community Care Supplies & Services - Adult
5432090,ALPHA PLUS FOSTERING LIMITED,Childrens Services,Children's Services,Foster Carer Agency Fees,06/10/21,608.99 ,321000,Social Community Care Supplies & Services - Adult
5432087,ALPHA PLUS FOSTERING LIMITED,Childrens Services,Children's Services,Foster Carer Agency Fees,06/10/21,621.42 ,321000,Social Community Care Supplies & Services - Adult
5432089,ALPHA PLUS FOSTERING LIMITED,Childrens Services,Children's Services,Foster Carer Agency Fees,06/10/21,"5,867.99 ",321000,Social Community Care Supplies & Services - Adult
5432082,Water Plus,Place,Growth,Metered Water Costs,06/10/21,"1,911.47 ",370000,Utilities
5432080,Water Plus,Operations and Neighbourhoods,Operations and Neighbourhoods,Metered Water Costs,06/10/21,643.13 ,370000,Utilities
5432080,Water Plus,Place,Growth,Metered Water Costs,06/10/21,288.02 ,370000,Utilities
5432081,Water Plus,Place,Growth,Metered Water Costs,06/10/21,"1,717.28 ",370000,Utilities
5434058,K P DODD CONSTRUCTION LTD,Housing,Director of Place,Improvement Grants - Final Mandatory,06/10/21,"4,376.00 ",399999,"Works - Construction, Repair & Maintenance"
5433841,Social Work Solutions NW Limited,Adult Social Care,Adults,Professional Services,07/10/21,538.50 ,321000,Social Community Care Supplies & Services - Adult
5433943,GREENSCAPE,Adult Social Care,Adults,Professional Services,07/10/21,"1,111.44 ",390000,"Works - Construction, Repair & Maintenance"
5433945,GREENSCAPE,Adult Social Care,Adults,Professional Services,07/10/21,"1,044.08 ",UNCLASS,Unclassifiable
5433944,GREENSCAPE,Adult Social Care,Adults,Professional Services,07/10/21,"1,044.08 ",390000,"Works - Construction, Repair & Maintenance"
5432193,AUTISM INITIATIVES (UK),Adult Social Care,Adults,Homecare Fees,07/10/21,"2,962.56 ",321100,Social Community Care Supplies & Services - Children
5432200,AUTISM INITIATIVES (UK),Adult Social Care,Adults,Professional Bailiff Services,07/10/21,927.88 ,321100,Social Community Care Supplies & Services - Children
5432202,AUTISM INITIATIVES (UK),Adult Social Care,Adults,Homecare Fees,07/10/21,"2,962.56 ",321100,Social Community Care Supplies & Services - Children
5432417,BOOTS UK LTD,Population Health,Population Health,Local Enhanced Services,07/10/21,"1,371.30 ",150000,Consultancy
5432205,Redacted Supplier,Digital Tameside,Finance & IT,It Equipment,07/10/21,562.00 ,270000,Information Communication Technology
5432282,BREAKEY & NUTTALL,Place,Growth,Fees,07/10/21,975.00 ,192400,Facilities & Management Services
5435418,PRD PROPERTY SERVICES LTD,Governance,Governance,Legal Fees,07/10/21,"6,940.00 ",190000,Facilities & Management Services
5432197,VIRGIN CARE SERVICES - NON SURREY,Population Health,Population Health,Professional Services,07/10/21,786.00 ,150000,Consultancy
5434028,ABLE CARE AND SUPPORT SERVICES LTD,Adult Social Care,Adults,Homecare Fees,07/10/21,"11,672.76 ",321000,Social Community Care Supplies & Services - Adult
5432215,TUDOR (UK) LTD T/A TUDOR ENVIRONMENTAL,Operations and Neighbourhoods,Operations and Neighbourhoods,General Equipment Purchase,07/10/21,403.56 ,240000,Horticultural
5432215,TUDOR (UK) LTD T/A TUDOR ENVIRONMENTAL,Operations and Neighbourhoods,Operations and Neighbourhoods,Nursery Services,07/10/21,135.45 ,240000,Horticultural
5434048,HOMESHINE CLEANERS LTD,Housing,Director of Place,Adaptations - Jobs <#500,07/10/21,650.00 ,130000,Cleaning & Janitorial
5432521,STRUCTEC (NW) LTD,Housing,Director of Place,Improvement Grants - Final Mandatory,07/10/21,"5,230.91 ",321000,Social Community Care Supplies & Services - Adult
5433161,CARELINE HOMECARE LTD,Adult Social Care,Adults,Homecare Fees,07/10/21,"35,104.33 ",321000,Social Community Care Supplies & Services - Adult
5433163,CARELINE HOMECARE LTD,Adult Social Care,Adults,Homecare Fees,07/10/21,"33,832.21 ",321000,Social Community Care Supplies & Services - Adult
5432263,Redacted Supplier,Digital Tameside,Finance & IT,Computer Hardware Rental,07/10/21,950.00 ,270000,Information Communication Technology
5435220,ELITE CARE SERVICES (UK) LTD,Adult Social Care,Adults,Homecare Fees,07/10/21,579.33 ,321000,Social Community Care Supplies & Services - Adult
5435015,Hyde Accessible Transport Limited,Operations and Neighbourhoods,Operations and Neighbourhoods,Hired Transport,07/10/21,"1,980.00 ",360000,Public Transport
5432230,Exclusec Security Solutions Ltd,Operations and Neighbourhoods,Operations and Neighbourhoods,Security Services,07/10/21,"21,609.00 ",-999999,Unclassifiable
5433484,TAMESIDE SPORTS TRUST,Adult Social Care,Adults,Professional Services,07/10/21,"1,325.00 ",290000,Arts & Leisure Services
5433527,TAMESIDE SPORTS TRUST,Adult Social Care,Adults,Professional Services,07/10/21,993.75 ,290000,Arts & Leisure Services
5433485,TAMESIDE SPORTS TRUST,Adult Social Care,Adults,Professional Services,07/10/21,"1,325.00 ",290000,Arts & Leisure Services
5433528,TAMESIDE SPORTS TRUST,Adult Social Care,Adults,Professional Services,07/10/21,"1,987.50 ",290000,Arts & Leisure Services
5433530,TAMESIDE SPORTS TRUST,Adult Social Care,Adults,Professional Services,07/10/21,828.13 ,290000,Arts & Leisure Services
5433532,TAMESIDE SPORTS TRUST,Adult Social Care,Adults,Professional Services,07/10/21,"1,325.00 ",290000,Arts & Leisure Services
5435019,PHONAK UK LIMITED,Education,Children's Services,Educational Equipment,07/10/21,"5,470.00 ",321100,Social Community Care Supplies & Services - Children
5435020,PHONAK UK LIMITED,Education,Children's Services,Educational Equipment,07/10/21,"1,020.00 ",321100,Social Community Care Supplies & Services - Children
5435021,PHONAK UK LIMITED,Education,Children's Services,Educational Equipment,07/10/21,510.00 ,321100,Social Community Care Supplies & Services - Children
5435590,AD HOC CHAPS PAYMENT,Operations and Neighbourhoods,Operations and Neighbourhoods,Other Accomodation Related Costs,07/10/21,"1,065.00 ",400002,Chaps Payments
5435553,AD HOC CHAPS PAYMENT,Operations and Neighbourhoods,Operations and Neighbourhoods,Other Accomodation Related Costs,07/10/21,960.00 ,400002,Chaps Payments
5435486,AD HOC CHAPS PAYMENT,Contingency,Contingency,COVID-19 Infection Control Fund,07/10/21,"7,653.38 ",400002,Chaps Payments
5435048,AD HOC CHAPS PAYMENT,Multiple Heads of Service,Multiple Strategic Directorates,Debits Superann Local Govt,07/10/21,"535,397.37 ",400002,Chaps Payments
5435048,AD HOC CHAPS PAYMENT,(blank),(blank),Debits Superann Local Govt,07/10/21,"1,107.19 ",400002,Chaps Payments
5435517,AD HOC CHAPS PAYMENT,Multiple Heads of Service,Multiple Strategic Directorates,Debits Superann Teachers,07/10/21,"1,192,490.57 ",400002,Chaps Payments
5435494,AD HOC CHAPS PAYMENT,Multiple Heads of Service,Multiple Strategic Directorates,Debits,07/10/21,900.00 ,400002,Chaps Payments
5435513,AD HOC CHAPS PAYMENT,Operations and Neighbourhoods,Operations and Neighbourhoods,Other Accomodation Related Costs,07/10/21,"1,618.75 ",400002,Chaps Payments
5435508,AD HOC CHAPS PAYMENT,Finance,Finance & IT,Computer Software,07/10/21,"28,030.00 ",400002,Chaps Payments
5435491,AD HOC CHAPS PAYMENT,Multiple Heads of Service,Multiple Strategic Directorates,Salaries & Wages Advances(Hold),07/10/21,"1,138.87 ",400002,Chaps Payments
5435489,AD HOC CHAPS PAYMENT,Contingency,Contingency,COVID-19 Infection Control Fund,07/10/21,"29,922.63 ",400002,Chaps Payments
5435498,AD HOC CHAPS PAYMENT,Multiple Heads of Service,Multiple Strategic Directorates,Salaries & Wages Advances(Hold),07/10/21,800.00 ,400002,Chaps Payments
5435584,AD HOC CHAPS PAYMENT,Multiple Heads of Service,Multiple Strategic Directorates,Debits,07/10/21,660.00 ,400002,Chaps Payments
5432510,Redacted Supplier,Corporate Costs,Corporate Costs,Professional Services,08/10/21,"1,534.50 ",360000,Public Transport
5435014,Montrose Recruitment Limited TA Montrose Living,Childrens Services,Children's Services,Living With Formal Support,08/10/21,"1,395.00 ",321100,Social Community Care Supplies & Services - Children
5434110,CBS Building and Maintenance,Operations and Neighbourhoods,Operations and Neighbourhoods,Building Maintenance,08/10/21,"1,890.00 ",100000,Building Construction Materials
3250833,DENNIS EAGLE LTD,Transport,Director of Place,Debits Goods Received,08/10/21,452.34 ,380000,Vehicle Management
3250833,DENNIS EAGLE LTD,Operations and Neighbourhoods,Operations and Neighbourhoods,General Materials,08/10/21,"2,622.76 ",380000,Vehicle Management
3250833,DENNIS EAGLE LTD,Operations and Neighbourhoods,Operations and Neighbourhoods,Sub-contractor Services,08/10/21,257.50 ,380000,Vehicle Management
3250833,G B OILS TA CARLTON FUELS,Transport,Director of Place,Diesel Fuel,08/10/21,"19,005.66 ",380000,Vehicle Management
3250833,GUNN JCB LTD,Operations and Neighbourhoods,Operations and Neighbourhoods,General Materials,08/10/21,"1,459.81 ",380000,Vehicle Management
3250833,TERBERG MATEC UK LTD,Transport,Director of Place,Debits Goods Received,08/10/21,"1,144.42 ",180000,Environmental Services
3250833,TERBERG MATEC UK LTD,Operations and Neighbourhoods,Operations and Neighbourhoods,General Materials,08/10/21,247.70 ,180000,Environmental Services
3250833,AEBI SCHMIDT UK LTD,Transport,Director of Place,Debits Goods Received,08/10/21,902.45 ,380000,Vehicle Management
3250833,AEBI SCHMIDT UK LTD,Operations and Neighbourhoods,Operations and Neighbourhoods,General Materials,08/10/21,"1,960.36 ",380000,Vehicle Management
3250833,AEBI SCHMIDT UK LTD,Operations and Neighbourhoods,Operations and Neighbourhoods,Sub-contractor Services,08/10/21,350.43 ,380000,Vehicle Management
3250833,Teletrac Navman UK LTD (in corporating Navman Wireless UK LTD),Operations and Neighbourhoods,Operations and Neighbourhoods,General Equipment Repair & Maintenance,08/10/21,"5,385.33 ",360000,Public Transport
3250833,JOHNSONS APPARELMASTER LTD,Operations and Neighbourhoods,Operations and Neighbourhoods,Protective Clothing,08/10/21,662.74 ,141300,Clothing
3250833,LEEDS COMMERCIAL LTD T/A LC VEHICLE HIRE,Operations and Neighbourhoods,Operations and Neighbourhoods,Additional Hire,08/10/21,"4,290.00 ",380000,Vehicle Management
3250833,TRUCTYRE ATS,Operations and Neighbourhoods,Operations and Neighbourhoods,Tyre Costs,08/10/21,987.33 ,380000,Vehicle Management
3250833,MOTUS COMMERCIALS (OLDHAM),Transport,Director of Place,Debits Goods Received,08/10/21,184.27 ,380000,Vehicle Management
3250833,MOTUS COMMERCIALS (OLDHAM),Operations and Neighbourhoods,Operations and Neighbourhoods,General Materials,08/10/21,345.38 ,380000,Vehicle Management
3250833,MOTUS COMMERCIALS (OLDHAM),Operations and Neighbourhoods,Operations and Neighbourhoods,Sub-contractor Services,08/10/21,"3,268.05 ",380000,Vehicle Management
3250833,HTF TYRE SERVICES LTD,Operations and Neighbourhoods,Operations and Neighbourhoods,Tyre Costs,08/10/21,"1,997.07 ",380000,Vehicle Management
3250833,INDUSTRIAL & HYDRAULIC SERVICES,Operations and Neighbourhoods,Operations and Neighbourhoods,General Equipment Repair & Maintenance,08/10/21,655.22 ,100000,Building Construction Materials
3250833,INDUSTRIAL & HYDRAULIC SERVICES,Operations and Neighbourhoods,Operations and Neighbourhoods,General Materials,08/10/21,274.85 ,100000,Building Construction Materials
3250833,INDUSTRIAL & HYDRAULIC SERVICES,Operations and Neighbourhoods,Operations and Neighbourhoods,Sub-contractor Services,08/10/21,443.49 ,100000,Building Construction Materials
3250833,RRG GROUP  LTD,Operations and Neighbourhoods,Operations and Neighbourhoods,General Materials,08/10/21,"1,007.90 ",380000,Vehicle Management
5432337,YOUNG PEOPLE FIRST LIMITED,Childrens Services,Children's Services,Living With Formal Support,08/10/21,"2,100.00 ",321100,Social Community Care Supplies & Services - Children
5432337,YOUNG PEOPLE FIRST LIMITED,Childrens Services,Children's Services,Semi independent - Weekly Living Allowances,08/10/21,59.20 ,321100,Social Community Care Supplies & Services - Children
5432338,YOUNG PEOPLE FIRST LIMITED,Childrens Services,Children's Services,Living With Formal Support,08/10/21,850.00 ,321100,Social Community Care Supplies & Services - Children
5432340,Furniture Resource Centre Ltd,Operations and Neighbourhoods,Operations and Neighbourhoods,Fixtures & Fittings Purchase,08/10/21,824.36 ,UNCLASS,Unclassifiable
5432343,Furniture Resource Centre Ltd,Operations and Neighbourhoods,Operations and Neighbourhoods,Fixtures & Fittings Purchase,08/10/21,"1,109.97 ",UNCLASS,Unclassifiable
5432354,Furniture Resource Centre Ltd,Operations and Neighbourhoods,Operations and Neighbourhoods,Fixtures & Fittings Purchase,08/10/21,"1,047.04 ",UNCLASS,Unclassifiable
5432346,Furniture Resource Centre Ltd,Operations and Neighbourhoods,Operations and Neighbourhoods,Fixtures & Fittings Purchase,08/10/21,929.62 ,UNCLASS,Unclassifiable
5432352,Furniture Resource Centre Ltd,Operations and Neighbourhoods,Operations and Neighbourhoods,Fixtures & Fittings Purchase,08/10/21,696.83 ,UNCLASS,Unclassifiable
5432349,Furniture Resource Centre Ltd,Operations and Neighbourhoods,Operations and Neighbourhoods,Fixtures & Fittings Purchase,08/10/21,861.88 ,UNCLASS,Unclassifiable
5432366,G2V Recruitment Group Limited t/a Vivid Resourcing,Place,Growth,Recruitment Campaign,08/10/21,"2,600.00 ",280000,Legal Services
5432365,G2V Recruitment Group Limited t/a Vivid Resourcing,Place,Growth,Agency Staff,08/10/21,"2,000.00 ",280000,Legal Services
5432362,G2V Recruitment Group Limited t/a Vivid Resourcing,Place,Growth,Recruitment Campaign,08/10/21,500.00 ,280000,Legal Services
5432360,G2V Recruitment Group Limited t/a Vivid Resourcing,Place,Growth,Recruitment Campaign,08/10/21,"2,099.28 ",280000,Legal Services
5432642,SMI Group,Operations and Neighbourhoods,Operations and Neighbourhoods,Protective Clothing,08/10/21,"1,427.20 ",140000,Clothing
5434298,Twins Firwood Carpets Ltd,Adult Social Care,Adults,Fixtures & Fittings Purchase,08/10/21,"1,765.00 ",160000,Domestic Goods
5434657,Pure Care Homes Ltd,Childrens Services,Children's Services,Childrens Homes Outside Local Authority Fees,08/10/21,"15,642.90 ",321000,Social Community Care Supplies & Services - Adult
5432630,N-Compass Northwest,Adult Social Care,Adults,Professional Services,08/10/21,"14,773.75 ",-999999,Unclassifiable
5433593,N-Compass Northwest,Adult Social Care,Adults,Professional Services,08/10/21,"14,773.75 ",-999999,Unclassifiable
5432190,Kids Planet Dukinfield,Childrens Services,Children's Services,Nursery Services,08/10/21,624.80 ,171040,Education
5432382,LOCAL CARE FORCE,Adult Social Care,Adults,Homecare Fees,08/10/21,"2,189.28 ",310000,Healthcare
5432385,Brookfield House,Childrens Services,Children's Services,Childrens Homes Outside Local Authority Fees,08/10/21,"12,400.00 ",-999999,Unclassifiable
5435067,Wellbeing Property Solutions Ltd,Childrens Services,Children's Services,Childrens Homes Outside Local Authority Fees,08/10/21,700.00 ,261000,Human Resources
5435068,Positive Care Solutions Ltd,Childrens Services,Children's Services,Childrens Homes Outside Local Authority Fees,08/10/21,"7,300.00 ",261000,Human Resources
5432386,PINDAR CREATIVE LTD,Policy and Communications,Governance,Printing And Stationery,08/10/21,742.00 ,300000,Mail Services
5432388,Timeout Childrens Homes Ltd,Education,Children's Services,Independent School Fees,08/10/21,"6,000.00 ",UNCLASS,Unclassifiable
5432399,EON ENERGY,Adult Social Care,Adults,Electricity,08/10/21,919.71 ,370000,Utilities
5435088,TPR Care Services Ltd,Childrens Services,Children's Services,Living With Formal Support,08/10/21,"2,339.24 ",321100,Social Community Care Supplies & Services - Children
5435421,NSL LIMITED,Operations and Neighbourhoods,Operations and Neighbourhoods,NSL Fees,08/10/21,"47,618.98 ",350000,Street & Traffic Management
5435283,NSL LIMITED,Operations and Neighbourhoods,Operations and Neighbourhoods,Security Services,08/10/21,"1,387.55 ",350000,Street & Traffic Management
5416973,MERIDIAN HEALTHCARE LTD,Contingency,Contingency,Nursing Home Long Stay Fees,08/10/21,"22,987.61 ",321000,Social Community Care Supplies & Services - Adult
5432396,CATHOLIC BLIND INSTITUTE,Education,Children's Services,Non-Maintained School Fees,08/10/21,"9,170.00 ",321100,Social Community Care Supplies & Services - Children
5432401,NEC Software Solutions UK Ltd,Digital Tameside,Finance & IT,Professional Services,08/10/21,"1,100.00 ",260000,Human Resources
5432403,WELL PHARMACY,Population Health,Population Health,Local Enhanced Services,08/10/21,829.10 ,310000,Healthcare
5432611,WELL PHARMACY,Population Health,Population Health,Local Enhanced Services,08/10/21,"2,081.34 ",310000,Healthcare
5434189,GREENSCAPE,Operations and Neighbourhoods,Operations and Neighbourhoods,General Materials,08/10/21,670.00 ,390000,"Works - Construction, Repair & Maintenance"
5434172,GREENSCAPE,Adult Social Care,Adults,Professional Services,08/10/21,"2,967.00 ",390000,"Works - Construction, Repair & Maintenance"
5434192,GREENSCAPE,Adult Social Care,Adults,Professional Services,08/10/21,"1,044.08 ",390000,"Works - Construction, Repair & Maintenance"
5432557,HECTARE 8 CONTRACTS LTD T/A COMPLETE WEED CONTROL (MANCHESTER),Operations and Neighbourhoods,Operations and Neighbourhoods,General Materials,08/10/21,"3,190.00 ",390000,"Works - Construction, Repair & Maintenance"
5432429,BOOTS UK LTD,Population Health,Population Health,Local Enhanced Services,08/10/21,"2,166.52 ",150000,Consultancy
5432372,VISION FOR EDUCATION LIMITED,Education,Children's Services,Professional Services,08/10/21,988.00 ,170000,Education
5434473,STEP AHEAD RESOURCE SERVICES,Adult Social Care,Adults,Homecare Fees,08/10/21,"1,226.16 ",321000,Social Community Care Supplies & Services - Adult
5434465,STEP AHEAD RESOURCE SERVICES,Adult Social Care,Adults,Homecare Fees,08/10/21,"1,553.14 ",321000,Social Community Care Supplies & Services - Adult
5434470,STEP AHEAD RESOURCE SERVICES,Adult Social Care,Adults,Homecare Fees,08/10/21,"1,226.16 ",321000,Social Community Care Supplies & Services - Adult
5434471,STEP AHEAD RESOURCE SERVICES,Adult Social Care,Adults,Homecare Fees,08/10/21,"1,226.16 ",321000,Social Community Care Supplies & Services - Adult
5434474,STEP AHEAD RESOURCE SERVICES,Adult Social Care,Adults,Homecare Fees,08/10/21,"1,226.16 ",321000,Social Community Care Supplies & Services - Adult
5434466,STEP AHEAD RESOURCE SERVICES,Adult Social Care,Adults,Homecare Fees,08/10/21,"1,553.14 ",321000,Social Community Care Supplies & Services - Adult
5434468,STEP AHEAD RESOURCE SERVICES,Adult Social Care,Adults,Homecare Fees,08/10/21,"1,553.14 ",321000,Social Community Care Supplies & Services - Adult
5434469,STEP AHEAD RESOURCE SERVICES,Adult Social Care,Adults,Homecare Fees,08/10/21,"1,226.16 ",321000,Social Community Care Supplies & Services - Adult
5434472,STEP AHEAD RESOURCE SERVICES,Adult Social Care,Adults,Homecare Fees,08/10/21,"1,226.16 ",321000,Social Community Care Supplies & Services - Adult
5434476,STEP AHEAD RESOURCE SERVICES,Adult Social Care,Adults,Homecare Fees,08/10/21,"1,226.16 ",321000,Social Community Care Supplies & Services - Adult
5434478,STEP AHEAD RESOURCE SERVICES,Adult Social Care,Adults,Homecare Fees,08/10/21,"1,226.16 ",321000,Social Community Care Supplies & Services - Adult
5434464,STEP AHEAD RESOURCE SERVICES,Adult Social Care,Adults,Homecare Fees,08/10/21,"1,553.14 ",321000,Social Community Care Supplies & Services - Adult
5434219,HUGH MASON PROPERTIES LIMITED,Adult Social Care,Adults,Non-Authority Accommodation Rental,08/10/21,"2,778.49 ",190000,Facilities & Management Services
5434224,HUGH MASON PROPERTIES LIMITED,Adult Social Care,Adults,Non-Authority Accommodation Rental,08/10/21,"2,468.23 ",UNCLASS,Unclassifiable
5434226,HUGH MASON PROPERTIES LIMITED,Adult Social Care,Adults,Non-Authority Accommodation Rental,08/10/21,"2,450.46 ",190000,Facilities & Management Services
5432374,POSITIVE STEPS OLDHAM,Place,Growth,Professional Services,08/10/21,"75,205.48 ",261400,Human Resources
5434750,PERSON CENTRED CARE SERVICES LIMITED,Adult Social Care,Adults,Homecare Fees,08/10/21,"8,902.44 ",310000,Healthcare
5434230,NORTHERN PROPERTIES LTD,Adult Social Care,Adults,Non-Authority Accommodation Rental,08/10/21,"1,959.94 ",190000,Facilities & Management Services
5435452,COMFORT CALL LIMITED,Adult Social Care,Adults,Homecare Fees,08/10/21,"36,135.80 ",310000,Healthcare
5434605,STUART CARPETS (DENTON) LIMITED,Childrens Services,Children's Services,"Fixtures,Fittings & Furniture Purchase (Service Users)",08/10/21,"1,030.00 ",100000,Building Construction Materials
5430224,MERIDIAN HEALTH CARE LTD TAS GUIDE LANE,Contingency,Contingency,Nursing Home Long Stay Fees,08/10/21,"6,287.45 ",321000,Social Community Care Supplies & Services - Adult
5430205,MERIDIAN HEALTH CARE LTD TAS GUIDE LANE,Contingency,Contingency,Nursing Home Long Stay Fees,08/10/21,"10,462.77 ",321000,Social Community Care Supplies & Services - Adult
5432367,ALPHA BIOLABS,Childrens Services,Children's Services,Professional Medical Services,08/10/21,"1,690.00 ",180000,Environmental Services
5432380,ALPHA BIOLABS,Childrens Services,Children's Services,Professional Medical Services,08/10/21,730.00 ,180000,Environmental Services
5432451,SYMOLOGY LIMITED,Operations and Neighbourhoods,Operations and Neighbourhoods,Computer Software,08/10/21,"44,539.87 ",270000,Information Communication Technology
5432449,AECOM LTD,(blank),(blank),Fees,08/10/21,"11,391.00 ",-999999,Unclassifiable
5434235,HOMES FOR LIFE LTD,Adult Social Care,Adults,Non-Authority Accommodation Rental,08/10/21,890.52 ,-999999,Unclassifiable
5434220,HOMES FOR LIFE LTD,Adult Social Care,Adults,Non-Authority Accommodation Rental,08/10/21,848.95 ,-999999,Unclassifiable
5434234,HOMES FOR LIFE LTD,Adult Social Care,Adults,Non-Authority Accommodation Rental,08/10/21,890.52 ,-999999,Unclassifiable
5434217,HOMES FOR LIFE LTD,Adult Social Care,Adults,Fixtures & Fittings Purchase,08/10/21,902.99 ,-999999,Unclassifiable
5434236,HOMES FOR LIFE LTD,Adult Social Care,Adults,Non-Authority Accommodation Rental,08/10/21,808.19 ,-999999,Unclassifiable
5432547,THREE CIRCLES FOSTERING LTD,Childrens Services,Children's Services,Foster Carer Agency Fees,08/10/21,"3,794.00 ",321100,Social Community Care Supplies & Services - Children
5432543,THREE CIRCLES FOSTERING LTD,Childrens Services,Children's Services,Foster Carer Agency Fees,08/10/21,"4,185.00 ",321100,Social Community Care Supplies & Services - Children
5432540,THREE CIRCLES FOSTERING LTD,Childrens Services,Children's Services,Foster Carer Agency Fees,08/10/21,"4,101.30 ",321100,Social Community Care Supplies & Services - Children
5432537,THREE CIRCLES FOSTERING LTD,Childrens Services,Children's Services,Foster Carer Agency Fees,08/10/21,"3,896.26 ",UNCLASS,Unclassifiable
5432531,THREE CIRCLES FOSTERING LTD,Childrens Services,Children's Services,Foster Carer Agency Fees,08/10/21,"3,534.00 ",321100,Social Community Care Supplies & Services - Children
5432528,THREE CIRCLES FOSTERING LTD,Childrens Services,Children's Services,Foster Carer Agency Fees,08/10/21,"3,463.32 ",321100,Social Community Care Supplies & Services - Children
5432541,THREE CIRCLES FOSTERING LTD,Childrens Services,Children's Services,Foster Carer Agency Fees,08/10/21,"5,301.00 ",321100,Social Community Care Supplies & Services - Children
5432477,THREE CIRCLES FOSTERING LTD,Childrens Services,Children's Services,Foster Carer Agency Fees,08/10/21,"1,939.71 ",321100,Social Community Care Supplies & Services - Children
5432550,THREE CIRCLES FOSTERING LTD,Childrens Services,Children's Services,Foster Carer Agency Fees,08/10/21,"3,794.00 ",321100,Social Community Care Supplies & Services - Children
5432508,THREE CIRCLES FOSTERING LTD,Childrens Services,Children's Services,Foster Carer Agency Fees,08/10/21,"3,993.69 ",321100,Social Community Care Supplies & Services - Children
5432544,THREE CIRCLES FOSTERING LTD,Childrens Services,Children's Services,Foster Carer Agency Fees,08/10/21,"3,993.69 ",321100,Social Community Care Supplies & Services - Children
5432542,THREE CIRCLES FOSTERING LTD,Childrens Services,Children's Services,Foster Carer Agency Fees,08/10/21,"3,913.53 ",321100,Social Community Care Supplies & Services - Children
5432548,THREE CIRCLES FOSTERING LTD,Childrens Services,Children's Services,Foster Carer Agency Fees,08/10/21,"3,896.26 ",321100,Social Community Care Supplies & Services - Children
5432483,THREE CIRCLES FOSTERING LTD,Childrens Services,Children's Services,Foster Carer Agency Fees,08/10/21,"5,546.79 ",321100,Social Community Care Supplies & Services - Children
5432534,THREE CIRCLES FOSTERING LTD,Childrens Services,Children's Services,Foster Carer Agency Fees,08/10/21,"3,405.17 ",UNCLASS,Unclassifiable
5432502,THREE CIRCLES FOSTERING LTD,Childrens Services,Children's Services,Foster Carer Agency Fees,08/10/21,"4,185.00 ",321100,Social Community Care Supplies & Services - Children
5432527,THREE CIRCLES FOSTERING LTD,Childrens Services,Children's Services,Foster Carer Agency Fees,08/10/21,"3,993.69 ",321100,Social Community Care Supplies & Services - Children
5432512,THREE CIRCLES FOSTERING LTD,Childrens Services,Children's Services,Foster Carer Agency Fees,08/10/21,"3,534.00 ",321100,Social Community Care Supplies & Services - Children
5432525,INTACT PROJECTS LTD,Childrens Services,Children's Services,Living With Formal Support,08/10/21,"2,044.28 ",UNCLASS,Unclassifiable
5434486,ABLE CARE AND SUPPORT SERVICES LTD,Adult Social Care,Adults,Homecare Fees,08/10/21,"11,698.78 ",321000,Social Community Care Supplies & Services - Adult
5432447,HEXAGON CARE SERVICES LTD,Education,Children's Services,Independent School Fees,08/10/21,"23,000.00 ",321000,Social Community Care Supplies & Services - Adult
5432444,HEXAGON CARE SERVICES LTD,Education,Children's Services,Independent School Fees,08/10/21,"14,333.33 ",321000,Social Community Care Supplies & Services - Adult
5432591,SIGNIS LTD,Quality and Safeguarding,Quality and Safeguarding,Professional Services,08/10/21,830.00 ,-999999,Unclassifiable
5433927,INSPIREDSPACES TAMESIDE LTD,Place,Growth,Building Maintenance,08/10/21,"1,605.00 ",390000,"Works - Construction, Repair & Maintenance"
5433927,INSPIREDSPACES TAMESIDE LTD,Place,Growth,Fees,08/10/21,32.09 ,390000,"Works - Construction, Repair & Maintenance"
5433931,INSPIREDSPACES TAMESIDE LTD,Place,Growth,Fees,08/10/21,"2,197.91 ",390000,"Works - Construction, Repair & Maintenance"
5433931,INSPIREDSPACES TAMESIDE LTD,Place,Growth,Refreshments,08/10/21,"109,895.58 ",390000,"Works - Construction, Repair & Maintenance"
5433852,INSPIREDSPACES TAMESIDE LTD,(blank),(blank),Adaptations - Jobs <#500,08/10/21,"38,595.43 ",390000,"Works - Construction, Repair & Maintenance"
5433852,INSPIREDSPACES TAMESIDE LTD,(blank),(blank),Fees,08/10/21,771.91 ,390000,"Works - Construction, Repair & Maintenance"
5433932,INSPIREDSPACES TAMESIDE LTD,(blank),(blank),New Accommodation Works,08/10/21,"127,872.37 ",390000,"Works - Construction, Repair & Maintenance"
5433933,INSPIREDSPACES TAMESIDE LTD,Place,Growth,Fees,08/10/21,84.41 ,390000,"Works - Construction, Repair & Maintenance"
5433933,INSPIREDSPACES TAMESIDE LTD,Place,Growth,Repairs & Maintenance Heavy Catering Equipment,08/10/21,"4,221.15 ",390000,"Works - Construction, Repair & Maintenance"
5433925,INSPIREDSPACES TAMESIDE LTD,(blank),(blank),Electrical Works,08/10/21,"52,413.04 ",390000,"Works - Construction, Repair & Maintenance"
5433930,INSPIREDSPACES TAMESIDE LTD,(blank),(blank),External  Consultants,08/10/21,947.97 ,390000,"Works - Construction, Repair & Maintenance"
5433924,INSPIREDSPACES TAMESIDE LTD,(blank),(blank),Electrical Works,08/10/21,"67,230.55 ",390000,"Works - Construction, Repair & Maintenance"
5432509,COMPUTEAM LTD,Individual Schools Budget,Children's Services,Computer Hardware Purchase,08/10/21,"1,342.00 ",270000,Information Communication Technology
5435455,CARELINE HOMECARE LTD,Adult Social Care,Adults,Homecare Fees,08/10/21,"33,662.10 ",321000,Social Community Care Supplies & Services - Adult
5432506,Redacted Supplier,Digital Tameside,Finance & IT,Computer Hardware Rental,08/10/21,"23,327.00 ",270000,Information Communication Technology
5432499,DHL Parcel UK Ltd (UK Mail),Exchequer,Governance,Printing And Stationery,08/10/21,"2,721.54 ",300000,Mail Services
5434430,Smartway Health and Social Care Limited,Adult Social Care,Adults,Homecare Fees,08/10/21,"7,832.44 ",321000,Social Community Care Supplies & Services - Adult
5432498,Next Stage 'A Way Forward' Youth Development LTD,Childrens Services,Children's Services,Living With Formal Support,08/10/21,"4,805.00 ",321100,Social Community Care Supplies & Services - Children
5432493,Next Stage 'A Way Forward' Youth Development LTD,Childrens Services,Children's Services,Living With Formal Support,08/10/21,"4,805.00 ",321100,Social Community Care Supplies & Services - Children
5432500,Next Stage 'A Way Forward' Youth Development LTD,Childrens Services,Children's Services,Living With Formal Support,08/10/21,930.00 ,321100,Social Community Care Supplies & Services - Children
5432260,Northern Community Pathways Limited,Childrens Services,Children's Services,Non-Authority Accommodation Rental,08/10/21,"1,801.43 ",321100,Social Community Care Supplies & Services - Children
5434518,Viva Minibus LTD,Childrens Services,Children's Services,Transport Of Pupils,08/10/21,660.00 ,230000,Highway Equipment & Materials
5434516,Viva Minibus LTD,Education,Children's Services,Transport Of Pupils,08/10/21,"2,090.00 ",230000,Highway Equipment & Materials
5434517,Viva Minibus LTD,Education,Children's Services,Transport Of Pupils,08/10/21,"2,090.00 ",230000,Highway Equipment & Materials
5434309,Viva Minibus LTD,Education,Children's Services,Transport Of Pupils,08/10/21,"2,470.00 ",230000,Highway Equipment & Materials
5434714,Arrow Cabs LTD,Education,Children's Services,Transport Of Ola Pupils,08/10/21,"3,325.00 ",360000,Public Transport
5434758,Arrow Cabs LTD,Education,Children's Services,Transport Of Ola Pupils,08/10/21,"3,885.00 ",360000,Public Transport
5434760,Joes Travel LTD,Education,Children's Services,Transport Of Post 16 Pupils,08/10/21,880.00 ,360000,Public Transport
5434716,Joes Travel LTD,Education,Children's Services,Transport Of Pupils,08/10/21,"2,351.25 ",360000,Public Transport
5434759,Joes Travel LTD,Education,Children's Services,Transport Of Ola Pupils,08/10/21,"1,805.00 ",360000,Public Transport
5434386,Hyde Accessible Transport Limited,Operations and Neighbourhoods,Operations and Neighbourhoods,Hired Transport,08/10/21,680.00 ,360000,Public Transport
5430158,Greatwood House t/a Meridian Healthcare LTD,Contingency,Contingency,Nursing Home Long Stay Fees,08/10/21,"5,932.29 ",321000,Social Community Care Supplies & Services - Adult
5432634,F G MARSHALL LTD,Operations and Neighbourhoods,Operations and Neighbourhoods,Plaques,08/10/21,551.25 ,120000,Cemetery & Crematorium
5432470,CREATIVE SUPPORT LTD,Adult Social Care,Adults,Homecare Fees,08/10/21,"14,581.59 ",321000,Social Community Care Supplies & Services - Adult
5432469,CREATIVE SUPPORT LTD,Adult Social Care,Adults,Homecare Fees,08/10/21,"13,888.24 ",321000,Social Community Care Supplies & Services - Adult
5434761,J & R TAXIS LTD,Education,Children's Services,Transport Of Ola Pupils,08/10/21,"1,953.00 ",360000,Public Transport
5432440,BRAKE BROS LTD,Operations and Neighbourhoods,Operations and Neighbourhoods,General Materials,08/10/21,654.06 ,110000,Catering
5434435,ATLAS TRADING GROUP LTD,Operations and Neighbourhoods,Operations and Neighbourhoods,General Equipment Purchase,08/10/21,592.92 ,100000,Building Construction Materials
5432487,EQUIFAX LTD,Hosted Services,Hosted Services,Professional Services,08/10/21,"1,071.30 ",200000,Financial Services
5432607,GL EDUCATION GROUP,Education,Children's Services,Educational/Instructional Materials,08/10/21,"4,486.37 ",170000,Education
5434427,R & P PRINTERS,Operations and Neighbourhoods,Operations and Neighbourhoods,General Materials,08/10/21,676.00 ,190000,Facilities & Management Services
5434324,R & P PRINTERS,GMPF (FX),GMPF (FX),Printing And Stationery,08/10/21,682.94 ,190000,Facilities & Management Services
5435229,WILDE CONSULTING ENGINEERS,Engineers Client,Director of Place,Engineers -External,08/10/21,"1,279.12 ",150000,Consultancy
5435229,WILDE CONSULTING ENGINEERS,(blank),(blank),Engineers -External,08/10/21,"1,783.07 ",150000,Consultancy
5435229,WILDE CONSULTING ENGINEERS,District Assemblies,"Community,Environmental,Adult and Health Services",Engineers -External,08/10/21,309.96 ,150000,Consultancy
5435230,WILDE CONSULTING ENGINEERS,Engineers Client,Director of Place,Engineers -External,08/10/21,"2,114.91 ",150000,Consultancy
5435230,WILDE CONSULTING ENGINEERS,(blank),(blank),Engineers -External,08/10/21,"2,429.99 ",150000,Consultancy
5435230,WILDE CONSULTING ENGINEERS,District Assemblies,"Community,Environmental,Adult and Health Services",Engineers -External,08/10/21,994.59 ,150000,Consultancy
5435231,WILDE CONSULTING ENGINEERS,Tameside Investment Partnership,Director of Place,Engineers -External,08/10/21,"17,459.45 ",150000,Consultancy
5432395,SWIIS FOSTER CARE LTD,Childrens Services,Children's Services,Foster Carer Agency Fees,08/10/21,760.48 ,321100,Social Community Care Supplies & Services - Children
5432397,SWIIS FOSTER CARE LTD,Childrens Services,Children's Services,Foster Carer Agency Fees,08/10/21,787.78 ,321100,Social Community Care Supplies & Services - Children
5432392,SWIIS FOSTER CARE LTD,Childrens Services,Children's Services,Foster Carer Agency Fees,08/10/21,"1,694.98 ",321100,Social Community Care Supplies & Services - Children
5432394,SWIIS FOSTER CARE LTD,Childrens Services,Children's Services,Foster Carer Agency Fees,08/10/21,696.99 ,321100,Social Community Care Supplies & Services - Children
5434637,TONY MORETON INSULATIONS LTD,Operations and Neighbourhoods,Operations and Neighbourhoods,General Materials,08/10/21,675.00 ,390000,"Works - Construction, Repair & Maintenance"
5432588,CHILD ACTION NORTHWEST,Childrens Services,Children's Services,Professional Child Services,08/10/21,"1,165.69 ",-999999,Unclassifiable
5432587,CHILD ACTION NORTHWEST,Adult Social Care,Adults,Professional Services,08/10/21,"1,060.81 ",-999999,Unclassifiable
5434257,STAMFORD PROPERTIES,Adult Social Care,Adults,Non-Authority Accommodation Rental,08/10/21,"1,011.83 ",-999999,Unclassifiable
5434706,TAMESIDE ARTS LTD,Childrens Services,Children's Services,Community Based Activities,08/10/21,780.00 ,290000,Arts & Leisure Services
5434600,STAMFORD CARS UK LTD,Education,Children's Services,Transport Of Ola Pupils,08/10/21,"3,135.00 ",360000,Public Transport
5434602,STAMFORD CARS UK LTD,Education,Children's Services,Transport Of Ola Pupils,08/10/21,650.00 ,360000,Public Transport
5434624,STAMFORD CARS UK LTD,Education,Children's Services,Transport Of Pupils,08/10/21,"1,757.50 ",360000,Public Transport
5434642,STAMFORD CARS UK LTD,Education,Children's Services,Transport Of Pupils,08/10/21,"1,757.50 ",360000,Public Transport
5434647,STAMFORD CARS UK LTD,Education,Children's Services,Transport Of Pupils,08/10/21,"1,805.00 ",360000,Public Transport
5434571,STAMFORD CARS UK LTD,Education,Children's Services,Transport Of Pupils,08/10/21,"1,900.00 ",360000,Public Transport
5434608,STAMFORD CARS UK LTD,Education,Children's Services,Transport Of Pupils,08/10/21,"1,140.00 ",360000,Public Transport
5434622,STAMFORD CARS UK LTD,Education,Children's Services,Transport Of Pupils,08/10/21,"1,260.00 ",360000,Public Transport
5434618,STAMFORD CARS UK LTD,Education,Children's Services,Transport Of Post 16 Pupils,08/10/21,"1,235.00 ",360000,Public Transport
5434566,STAMFORD CARS UK LTD,Education,Children's Services,Transport Of Ola Pupils,08/10/21,"1,472.50 ",360000,Public Transport
5434569,STAMFORD CARS UK LTD,Education,Children's Services,Transport Of Ola Pupils,08/10/21,"2,802.50 ",360000,Public Transport
5434563,STAMFORD CARS UK LTD,Education,Children's Services,Transport Of Pupils,08/10/21,"2,090.00 ",360000,Public Transport
5434641,STAMFORD CARS UK LTD,Education,Children's Services,Transport Of Pupils,08/10/21,"1,805.00 ",360000,Public Transport
5434565,STAMFORD CARS UK LTD,Education,Children's Services,Transport Of Ola Pupils,08/10/21,"1,947.50 ",360000,Public Transport
5434548,STAMFORD CARS UK LTD,Education,Children's Services,Transport Of Pupils,08/10/21,"1,140.00 ",360000,Public Transport
5434579,STAMFORD CARS UK LTD,Education,Children's Services,Transport Of Pupils,08/10/21,"1,140.00 ",360000,Public Transport
5434590,STAMFORD CARS UK LTD,Education,Children's Services,Transport Of Post 16 Pupils,08/10/21,"1,275.00 ",360000,Public Transport
5434638,STAMFORD CARS UK LTD,Education,Children's Services,Transport Of Post 16 Pupils,08/10/21,"1,472.50 ",UNCLASS,Unclassifiable
5434567,STAMFORD CARS UK LTD,Education,Children's Services,Transport Of Ola Pupils,08/10/21,"2,517.50 ",UNCLASS,Unclassifiable
5434564,STAMFORD CARS UK LTD,Education,Children's Services,Transport Of Post 16 Pupils,08/10/21,"2,090.00 ",360000,Public Transport
5434631,STAMFORD CARS UK LTD,Education,Children's Services,Transport Of Post 16 Pupils,08/10/21,"2,090.00 ",360000,Public Transport
5434572,STAMFORD CARS UK LTD,Education,Children's Services,Transport Of Ola Pupils,08/10/21,"2,000.00 ",360000,Public Transport
5434615,STAMFORD CARS UK LTD,Education,Children's Services,Transport Of Pupils,08/10/21,"1,805.00 ",360000,Public Transport
5434628,STAMFORD CARS UK LTD,Education,Children's Services,Transport Of Ola Pupils,08/10/21,"1,620.00 ",360000,Public Transport
5434592,STAMFORD CARS UK LTD,Education,Children's Services,Transport Of Pupils,08/10/21,"1,567.50 ",360000,Public Transport
5434575,STAMFORD CARS UK LTD,Education,Children's Services,Transport Of Ola Pupils,08/10/21,"1,520.00 ",360000,Public Transport
5434577,STAMFORD CARS UK LTD,Education,Children's Services,Transport Of Pupils,08/10/21,"1,520.00 ",360000,Public Transport
5434595,STAMFORD CARS UK LTD,Education,Children's Services,Transport Of Ola Pupils,08/10/21,"1,710.00 ",360000,Public Transport
5434598,STAMFORD CARS UK LTD,Education,Children's Services,Transport Of Ola Pupils,08/10/21,"2,470.00 ",360000,Public Transport
5434587,STAMFORD CARS UK LTD,Education,Children's Services,Transport Of Pupils,08/10/21,"1,757.50 ",360000,Public Transport
5434644,STAMFORD CARS UK LTD,Education,Children's Services,Transport Of Pupils,08/10/21,"1,995.00 ",360000,Public Transport
5434574,STAMFORD CARS UK LTD,Education,Children's Services,Transport Of Pupils,08/10/21,"1,900.00 ",360000,Public Transport
5434576,STAMFORD CARS UK LTD,Education,Children's Services,Transport Of Ola Pupils,08/10/21,"1,900.00 ",360000,Public Transport
5434556,STAMFORD CARS UK LTD,Education,Children's Services,Transport Of Post 16 Pupils,08/10/21,760.00 ,360000,Public Transport
5434635,STAMFORD CARS UK LTD,Education,Children's Services,Transport Of Pupils,08/10/21,902.50 ,UNCLASS,Unclassifiable
5434570,STAMFORD CARS UK LTD,Education,Children's Services,Transport Of Pupils,08/10/21,950.00 ,UNCLASS,Unclassifiable
5434552,STAMFORD CARS UK LTD,Education,Children's Services,Transport Of Ola Pupils,08/10/21,"1,472.50 ",360000,Public Transport
5435430,ISW CSC Limited,Childrens Services,Children's Services,Living With Formal Support,11/10/21,"1,700.00 ",260000,Human Resources
5435432,ISW CSC Limited,Childrens Services,Children's Services,Living With Formal Support,11/10/21,"2,500.00 ",260000,Human Resources
5435448,ISW CSC Limited,Childrens Services,Children's Services,Living With Formal Support,11/10/21,"2,500.00 ",260000,Human Resources
5435448,ISW CSC Limited,Childrens Services,Children's Services,Living With Formal Support,11/10/21,117.80 ,260000,Human Resources
5435449,ISW CSC Limited,Childrens Services,Children's Services,Living With Formal Support,11/10/21,"2,680.00 ",260000,Human Resources
5435449,ISW CSC Limited,Childrens Services,Children's Services,Semi independent - Weekly Living Allowances,11/10/21,117.80 ,260000,Human Resources
5435425,ISW CSC Limited,Childrens Services,Children's Services,Living With Formal Support,11/10/21,"2,320.00 ",260000,Human Resources
5435429,ISW CSC Limited,Childrens Services,Children's Services,Living With Formal Support,11/10/21,"2,320.00 ",260000,Human Resources
5435429,ISW CSC Limited,Childrens Services,Children's Services,Living With Formal Support,11/10/21,117.80 ,260000,Human Resources
5435434,ISW CSC Limited,Childrens Services,Children's Services,Living With Formal Support,11/10/21,"2,680.00 ",260000,Human Resources
5435434,ISW CSC Limited,Childrens Services,Children's Services,Living With Formal Support,11/10/21,117.80 ,260000,Human Resources
5435444,ISW CSC Limited,Childrens Services,Children's Services,Living With Formal Support,11/10/21,"2,320.00 ",260000,Human Resources
5435450,ISW CSC Limited,Childrens Services,Children's Services,Living With Formal Support,11/10/21,"2,500.00 ",260000,Human Resources
5435450,ISW CSC Limited,Childrens Services,Children's Services,Living With Formal Support,11/10/21,117.80 ,260000,Human Resources
5435422,ISW CSC Limited,Childrens Services,Children's Services,Living With Formal Support,11/10/21,"2,680.00 ",260000,Human Resources
5435424,ISW CSC Limited,Childrens Services,Children's Services,Living With Formal Support,11/10/21,"2,500.00 ",260000,Human Resources
5435427,ISW CSC Limited,Childrens Services,Children's Services,Living With Formal Support,11/10/21,"2,500.00 ",260000,Human Resources
5435433,ISW CSC Limited,Childrens Services,Children's Services,Living With Formal Support,11/10/21,"1,960.00 ",260000,Human Resources
5435443,ISW CSC Limited,Childrens Services,Children's Services,Living With Formal Support,11/10/21,"2,320.00 ",260000,Human Resources
5435447,ISW CSC Limited,Childrens Services,Children's Services,Living With Formal Support,11/10/21,"2,320.00 ",260000,Human Resources
5435447,ISW CSC Limited,Childrens Services,Children's Services,Living With Formal Support,11/10/21,117.80 ,260000,Human Resources
5435426,ISW CSC Limited,Childrens Services,Children's Services,Living With Formal Support,11/10/21,"2,140.00 ",260000,Human Resources
5435438,ISW CSC Limited,Childrens Services,Children's Services,Living With Formal Support,11/10/21,"1,380.00 ",260000,Human Resources
5420590,G2V Recruitment Group Limited t/a Vivid Resourcing,Place,Growth,Recruitment Campaign,11/10/21,"1,625.00 ",280000,Legal Services
5435815,Speedadmin Aps,Education,Children's Services,Licences,11/10/21,"1,614.15 ",-999999,Unclassifiable
5416827,Komplex Community Ltd,Childrens Services,Children's Services,Childrens Homes Outside Local Authority Fees,11/10/21,"15,428.57 ",-999999,Unclassifiable
5416825,Komplex Community Ltd,Childrens Services,Children's Services,Childrens Homes Outside Local Authority Fees,11/10/21,"3,673.77 ",-999999,Unclassifiable
5434997,AWBURN HOUSE MEDICAL PRACTICE,Population Health,Population Health,Local Enhanced Services,11/10/21,749.00 ,150000,Consultancy
5433967,Redacted Supplier,Contingency,Contingency,COVID-19 Test and Trace Support Payments - Statutory,11/10/21,500.00 ,UNCLASS,Unclassifiable
5433774,TPR Care Services Ltd,Childrens Services,Children's Services,Living With Formal Support,11/10/21,"1,544.20 ",321100,Social Community Care Supplies & Services - Children
5435817,Redacted Supplier,Contingency,Contingency,COVID-19 Test and Trace Support Payments - Discretionary,11/10/21,500.00 ,UNCLASS,Unclassifiable
5434789,Redacted Supplier,Education,Children's Services,Transport Of Pupils,11/10/21,"2,527.00 ",360000,Public Transport
5434843,Redacted Supplier,Education,Children's Services,Transport Of Pupils,11/10/21,"1,710.00 ",360000,Public Transport
5434946,Redacted Supplier,Education,Children's Services,Transport Of Post 16 Pupils,11/10/21,"1,836.00 ",360000,Public Transport
5434938,Park Lane Minibuses LTD,Education,Children's Services,Transport Of Pupils,11/10/21,"2,748.92 ",360000,Public Transport
5434793,Park Lane Minibuses LTD,Education,Children's Services,Transport Of Pupils,11/10/21,"2,184.24 ",360000,Public Transport
5434792,Park Lane Minibuses LTD,Education,Children's Services,Transport Of Pupils,11/10/21,"2,705.60 ",360000,Public Transport
5434882,Park Lane Minibuses LTD,Education,Children's Services,Transport Of Post 16 Pupils,11/10/21,973.00 ,360000,Public Transport
5434932,Park Lane Minibuses LTD,Education,Children's Services,Transport Of Pupils,11/10/21,"2,437.32 ",360000,Public Transport
5434791,Park Lane Minibuses LTD,Operations and Neighbourhoods,Operations and Neighbourhoods,Hired Transport,11/10/21,"4,611.60 ",360000,Public Transport
5434794,Park Lane Minibuses LTD,Operations and Neighbourhoods,Operations and Neighbourhoods,Hired Transport,11/10/21,"4,831.20 ",360000,Public Transport
5434895,Park Lane Minibuses LTD,Education,Children's Services,Transport Of Pupils,11/10/21,"2,540.92 ",360000,Public Transport
5431942,ROCHDALE MBC,Hosted Services,Hosted Services,Chief/Ground Rent,11/10/21,"2,100.00 ",UNCLASS,Unclassifiable
5431942,ROCHDALE MBC,Hosted Services,Hosted Services,Sub-contractor Services,11/10/21,"4,600.00 ",UNCLASS,Unclassifiable
5435005,THE BROOKE SURGERY,Population Health,Population Health,Local Enhanced Services,11/10/21,"1,259.60 ",150000,Consultancy
5432183,FORENSIC TESTING SERVICE LTD,Childrens Services,Children's Services,Professional Medical Services,11/10/21,"2,177.60 ",180000,Environmental Services
5434051,INSPIREDSPACES TAMESIDE LTD,Place,Growth,Fees,11/10/21,63.01 ,390000,"Works - Construction, Repair & Maintenance"
5434051,INSPIREDSPACES TAMESIDE LTD,Place,Growth,Other Accomodation Related Costs,11/10/21,"3,150.93 ",390000,"Works - Construction, Repair & Maintenance"
5434053,INSPIREDSPACES TAMESIDE LTD,(blank),(blank),Fees,11/10/21,"16,589.71 ",390000,"Works - Construction, Repair & Maintenance"
5434055,INSPIREDSPACES TAMESIDE LTD,(blank),(blank),Adaptations - Jobs <#500,11/10/21,"9,470.57 ",390000,"Works - Construction, Repair & Maintenance"
5434055,INSPIREDSPACES TAMESIDE LTD,(blank),(blank),Fees,11/10/21,189.40 ,390000,"Works - Construction, Repair & Maintenance"
5434064,INSPIREDSPACES TAMESIDE LTD,Place,Growth,Fees,11/10/21,87.51 ,390000,"Works - Construction, Repair & Maintenance"
5434064,INSPIREDSPACES TAMESIDE LTD,Place,Growth,Professional Services,11/10/21,"4,376.00 ",390000,"Works - Construction, Repair & Maintenance"
5434065,INSPIREDSPACES TAMESIDE LTD,Place,Growth,Engineers -External,11/10/21,"3,354.45 ",390000,"Works - Construction, Repair & Maintenance"
5434065,INSPIREDSPACES TAMESIDE LTD,Place,Growth,Fees,11/10/21,67.08 ,390000,"Works - Construction, Repair & Maintenance"
5434050,INSPIREDSPACES TAMESIDE LTD,Place,Growth,Fees,11/10/21,122.74 ,390000,"Works - Construction, Repair & Maintenance"
5434050,INSPIREDSPACES TAMESIDE LTD,Place,Growth,PFI Facilities Management Services,11/10/21,"6,136.89 ",390000,"Works - Construction, Repair & Maintenance"
5434060,INSPIREDSPACES TAMESIDE LTD,Tameside Investment Partnership,Director of Place,Adaptations - Small Jobs,11/10/21,"10,558.76 ",390000,"Works - Construction, Repair & Maintenance"
5434060,INSPIREDSPACES TAMESIDE LTD,Tameside Investment Partnership,Director of Place,Fees,11/10/21,211.17 ,390000,"Works - Construction, Repair & Maintenance"
5434052,INSPIREDSPACES TAMESIDE LTD,Operations and Neighbourhoods,Operations and Neighbourhoods,Building Maintenance,11/10/21,"2,665.37 ",390000,"Works - Construction, Repair & Maintenance"
5434052,INSPIREDSPACES TAMESIDE LTD,Operations and Neighbourhoods,Operations and Neighbourhoods,Fees,11/10/21,53.30 ,390000,"Works - Construction, Repair & Maintenance"
5434061,INSPIREDSPACES TAMESIDE LTD,(blank),(blank),Asbestos Removal,11/10/21,"8,390.14 ",390000,"Works - Construction, Repair & Maintenance"
5434056,INSPIREDSPACES TAMESIDE LTD,(blank),(blank),Refurbish Accommodation Works,11/10/21,"65,372.67 ",390000,"Works - Construction, Repair & Maintenance"
5435796,The Shed Tameside,Adult Social Care,Adults,Professional Services,11/10/21,"3,772.16 ",321000,Social Community Care Supplies & Services - Adult
5435658,Oxygen Finance Limited,People and Workforce Development,Governance,Professional Services,11/10/21,"2,545.27 ",200000,Financial Services
5434749,Adlard Transport LTD,Education,Children's Services,Transport Of Pupils,11/10/21,"1,900.00 ",360000,Public Transport
5434748,Adlard Transport LTD,Education,Children's Services,Transport Of Pupils,11/10/21,"2,000.00 ",360000,Public Transport
5434802,M G DOMESTIC,Adult Social Care,Adults,Fixtures & Fittings Purchase,11/10/21,515.83 ,160000,Domestic Goods
5434678,ROYALE MINICOACHES,Education,Children's Services,Transport Of Pupils,11/10/21,"1,976.00 ",UNCLASS,Unclassifiable
5435270,MANLEC ELECTRICAL(MANCHESTER) LTD,Housing,Director of Place,Adaptations - Small Jobs,11/10/21,800.00 ,390000,"Works - Construction, Repair & Maintenance"
5434801,BESSEGES LTD,Adult Social Care,Adults,Firefighting Equipment,11/10/21,830.00 ,-999999,Unclassifiable
5434937,STAMFORD CARS UK LTD,Operations and Neighbourhoods,Operations and Neighbourhoods,Hired Transport,11/10/21,"1,600.00 ",360000,Public Transport
5434901,STAMFORD CARS UK LTD,Operations and Neighbourhoods,Operations and Neighbourhoods,Hired Transport,11/10/21,"1,125.00 ",360000,Public Transport
5434903,STAMFORD CARS UK LTD,Education,Children's Services,Transport Of Ola Pupils,11/10/21,"2,125.00 ",360000,Public Transport
5434779,STAMFORD CARS UK LTD,Operations and Neighbourhoods,Operations and Neighbourhoods,Hired Transport,11/10/21,585.00 ,360000,Public Transport
5434986,STAMFORD CARS UK LTD,Education,Children's Services,Transport Of Ola Pupils,11/10/21,"2,185.00 ",360000,Public Transport
5434781,STAMFORD CARS UK LTD,Operations and Neighbourhoods,Operations and Neighbourhoods,Hired Transport,11/10/21,967.50 ,360000,Public Transport
5434950,STAMFORD CARS UK LTD,Operations and Neighbourhoods,Operations and Neighbourhoods,Transport Of Pupils,11/10/21,587.50 ,360000,Public Transport
5434983,STAMFORD CARS UK LTD,Operations and Neighbourhoods,Operations and Neighbourhoods,Hired Transport,11/10/21,850.00 ,360000,Public Transport
5434985,STAMFORD CARS UK LTD,Operations and Neighbourhoods,Operations and Neighbourhoods,Hired Transport,11/10/21,910.00 ,360000,Public Transport
5434778,STAMFORD CARS UK LTD,Operations and Neighbourhoods,Operations and Neighbourhoods,Hired Transport,11/10/21,"1,377.50 ",360000,Public Transport
5434949,STAMFORD CARS UK LTD,Operations and Neighbourhoods,Operations and Neighbourhoods,Hired Transport,11/10/21,935.00 ,360000,Public Transport
5434992,STAMFORD CARS UK LTD,Education,Children's Services,Transport Of Pupils,11/10/21,"1,805.00 ",360000,Public Transport
5434777,STAMFORD CARS UK LTD,Operations and Neighbourhoods,Operations and Neighbourhoods,Hired Transport,11/10/21,572.50 ,360000,Public Transport
5434991,STAMFORD CARS UK LTD,Operations and Neighbourhoods,Operations and Neighbourhoods,Hired Transport,11/10/21,"1,160.50 ",360000,Public Transport
470927,AGGREGATE INDUSTRIES UK LIMITED,Operations and Neighbourhoods,Operations and Neighbourhoods,General Materials,12/10/21,"13,313.69 ",230000,Highway Equipment & Materials
470927,ARCO LIMITED,Civil Engineers,Director of Place,Debits Goods Received,12/10/21,"1,014.28 ",140000,Clothing
470927,ARCO LIMITED,Operations and Neighbourhoods,Operations and Neighbourhoods,General Materials,12/10/21,458.86 ,140000,Clothing
470927,EAGLE CIVIL ENGINEERING LTD,Operations and Neighbourhoods,Operations and Neighbourhoods,Sub-contractor Services,12/10/21,"2,738.25 ",391411,"Works - Construction, Repair & Maintenance"
470927,TARMAC CENTRAL LIMITED,Operations and Neighbourhoods,Operations and Neighbourhoods,General Materials,12/10/21,"6,065.05 ",230000,Highway Equipment & Materials
470927,GRAFTON MERCHANTING GB LTD,Civil Engineers,Director of Place,Debits Goods Received,12/10/21,"1,435.01 ",100000,Building Construction Materials
470927,CHALLENGER SITE SERVICES LLP,Operations and Neighbourhoods,Operations and Neighbourhoods,General Materials,12/10/21,995.00 ,190000,Facilities & Management Services
470927,NORTHWEST UTILITY SOLUTIONS LTD,Operations and Neighbourhoods,Operations and Neighbourhoods,Sub-contractor Services,12/10/21,"3,900.00 ",370000,Utilities
470927,TRAFFIC DIRECT LTD,Operations and Neighbourhoods,Operations and Neighbourhoods,Sub-contractor Services,12/10/21,"6,738.50 ",350000,Street & Traffic Management
470927,GARIC LTD,Operations and Neighbourhoods,Operations and Neighbourhoods,General Materials,12/10/21,836.00 ,-999999,Unclassifiable
470927,LIMELIGHT SIGNS LIMITED,Engineers Client,Director of Place,General Materials,12/10/21,"1,900.80 ",230000,Highway Equipment & Materials
470927,LIMELIGHT SIGNS LIMITED,Operations and Neighbourhoods,Operations and Neighbourhoods,General Materials,12/10/21,792.00 ,230000,Highway Equipment & Materials
470927,ROSGAL CIVIL ENGINEERING LTD,Operations and Neighbourhoods,Operations and Neighbourhoods,Sub-contractor Services,12/10/21,715.00 ,230000,Highway Equipment & Materials
470927,CBS Building and Maintenance,Operations and Neighbourhoods,Operations and Neighbourhoods,General Materials,12/10/21,621.16 ,100000,Building Construction Materials
470927,CBS Building and Maintenance,Operations and Neighbourhoods,Operations and Neighbourhoods,Sub-contractor Services,12/10/21,436.77 ,100000,Building Construction Materials
470927,Valmont Stainton LTD,Operations and Neighbourhoods,Operations and Neighbourhoods,General Materials,12/10/21,"5,645.40 ",230000,Highway Equipment & Materials
5435013,Montrose Recruitment Limited TA Montrose Living,Childrens Services,Children's Services,Living With Formal Support,12/10/21,"4,071.43 ",321100,Social Community Care Supplies & Services - Children
5435013,Montrose Recruitment Limited TA Montrose Living,Childrens Services,Children's Services,Semi independent - Weekly Living Allowances,12/10/21,252.43 ,321100,Social Community Care Supplies & Services - Children
5435437,ISW CSC Limited,Childrens Services,Children's Services,Living With Formal Support,12/10/21,"2,420.00 ",260000,Human Resources
5435437,ISW CSC Limited,Childrens Services,Children's Services,Semi independent - Weekly Living Allowances,12/10/21,117.80 ,260000,Human Resources
5435435,ISW CSC Limited,Childrens Services,Children's Services,Living With Formal Support,12/10/21,"1,880.00 ",260000,Human Resources
5435435,ISW CSC Limited,Childrens Services,Children's Services,Living With Formal Support,12/10/21,117.80 ,260000,Human Resources
5435439,ISW CSC Limited,Childrens Services,Children's Services,Living With Formal Support,12/10/21,"1,980.00 ",260000,Human Resources
5435431,ISW CSC Limited,Childrens Services,Children's Services,Living With Formal Support,12/10/21,"2,320.00 ",260000,Human Resources
5434116,Bloom Procurement Services Limited,Tameside Investment Partnership,Director of Place,Consultancies,12/10/21,"23,000.00 ",150000,Consultancy
5435066,Wellbeing Property Solutions Ltd,Childrens Services,Children's Services,Childrens Homes Outside Local Authority Fees,12/10/21,700.00 ,261000,Human Resources
5435069,Positive Care Solutions Ltd,Childrens Services,Children's Services,Childrens Homes Outside Local Authority Fees,12/10/21,"8,700.00 ",261000,Human Resources
5435802,TPR Care Services Ltd,Childrens Services,Children's Services,Living With Formal Support,12/10/21,"1,544.20 ",321100,Social Community Care Supplies & Services - Children
5435801,TPR Care Services Ltd,Childrens Services,Children's Services,Living With Formal Support,12/10/21,"1,229.20 ",321100,Social Community Care Supplies & Services - Children
5433418,CYCLESCHEME LTD,(blank),(blank),Debits,12/10/21,891.67 ,-999999,Unclassifiable
5435659,MATTHEWS ENVIRONMENTAL SOLUTIONS LTD,Contingency,Contingency,Engineers -External,12/10/21,"13,763.48 ",390000,"Works - Construction, Repair & Maintenance"
5433534,Smartway Health and Social Care Limited,Adult Social Care,Adults,Homecare Fees,12/10/21,"8,218.16 ",321000,Social Community Care Supplies & Services - Adult
5434359,Hyde Accessible Transport Limited,Operations and Neighbourhoods,Operations and Neighbourhoods,Hired Transport,12/10/21,"2,750.00 ",360000,Public Transport
5434384,Hyde Accessible Transport Limited,Operations and Neighbourhoods,Operations and Neighbourhoods,Hired Transport,12/10/21,"2,750.00 ",360000,Public Transport
5434401,Hyde Accessible Transport Limited,Education,Children's Services,Transport Of Pupils,12/10/21,"1,016.50 ",360000,Public Transport
5434745,TAMESIDE ARTS LTD,Adult Social Care,Adults,Homecare Fees,12/10/21,"1,994.40 ",290000,Arts & Leisure Services
5433604,Inspire Scotland Limited,Childrens Services,Children's Services,Childrens Homes Outside Local Authority Fees,13/10/21,"19,285.71 ",321100,Social Community Care Supplies & Services - Children
5432769,YOUNG PEOPLE FIRST LIMITED,Childrens Services,Children's Services,Living With Formal Support,13/10/21,"1,225.00 ",321100,Social Community Care Supplies & Services - Children
5432770,YOUNG PEOPLE FIRST LIMITED,Childrens Services,Children's Services,Living With Formal Support,13/10/21,"2,100.00 ",321100,Social Community Care Supplies & Services - Children
5432770,YOUNG PEOPLE FIRST LIMITED,Childrens Services,Children's Services,Semi independent - Weekly Living Allowances,13/10/21,59.20 ,321100,Social Community Care Supplies & Services - Children
5432771,YOUNG PEOPLE FIRST LIMITED,Childrens Services,Children's Services,Living With Formal Support,13/10/21,850.00 ,321100,Social Community Care Supplies & Services - Children
5432748,Zeno Ltd,Adult Social Care,Adults,Homecare Fees,13/10/21,"10,256.66 ",UNCLASS,Unclassifiable
5432776,Paramount Children's Services,Childrens Services,Children's Services,Childrens Homes Outside Local Authority Fees,13/10/21,"20,554.29 ",321018,Social Community Care Supplies & Services
5432777,LOCAL CARE FORCE,Adult Social Care,Adults,Homecare Fees,13/10/21,"2,316.16 ",310000,Healthcare
5432768,Wraparound Partnership,Hosted Services,Hosted Services,Professional Services,13/10/21,600.00 ,-999999,Unclassifiable
5435982,Wellbeing Property Solutions Ltd,Childrens Services,Children's Services,Childrens Homes Outside Local Authority Fees,13/10/21,700.00 ,261000,Human Resources
5435984,Wellbeing Property Solutions Ltd,Childrens Services,Children's Services,Childrens Homes Outside Local Authority Fees,13/10/21,700.00 ,261000,Human Resources
5435990,Positive Care Solutions Ltd,Childrens Services,Children's Services,Childrens Homes Outside Local Authority Fees,13/10/21,"7,300.00 ",261000,Human Resources
5435987,Positive Care Solutions Ltd,Childrens Services,Children's Services,Childrens Homes Outside Local Authority Fees,13/10/21,"8,700.00 ",261000,Human Resources
5432763,Restore Harrow Green,(blank),(blank),Fees,13/10/21,"3,069.70 ",UNCLASS,Unclassifiable
5432759,KONICA MINOLTA BUSINESS SOLUTIONS (UK) LTD,Individual Schools Budget,Children's Services,Photo Print Charges,13/10/21,999.77 ,UNCLASS,Unclassifiable
5432723,FOSTERING SOLUTIONS LTD,Childrens Services,Children's Services,Foster Carer Agency Fees,13/10/21,"3,414.90 ",321000,Social Community Care Supplies & Services - Adult
5432719,FOSTERING SOLUTIONS LTD,Childrens Services,Children's Services,Foster Carer Agency Fees,13/10/21,"3,195.99 ",UNCLASS,Unclassifiable
5432705,FOSTERING SOLUTIONS LTD,Childrens Services,Children's Services,Foster Carer Agency Fees,13/10/21,"3,191.53 ",UNCLASS,Unclassifiable
5432698,FOSTERING SOLUTIONS LTD,Childrens Services,Children's Services,Foster Carer Agency Fees,13/10/21,"3,042.90 ",UNCLASS,Unclassifiable
5432726,FOSTERING SOLUTIONS LTD,Childrens Services,Children's Services,Foster Carer Agency Fees,13/10/21,"2,890.76 ",UNCLASS,Unclassifiable
5432718,FOSTERING SOLUTIONS LTD,Childrens Services,Children's Services,Foster Carer Agency Fees,13/10/21,"2,829.77 ",321000,Social Community Care Supplies & Services - Adult
5432717,FOSTERING SOLUTIONS LTD,Childrens Services,Children's Services,Foster Carer Agency Fees,13/10/21,"3,379.25 ",UNCLASS,Unclassifiable
5432731,FOSTERING SOLUTIONS LTD,Childrens Services,Children's Services,Foster Carer Agency Fees,13/10/21,"3,230.93 ",321000,Social Community Care Supplies & Services - Adult
5432709,FOSTERING SOLUTIONS LTD,Childrens Services,Children's Services,Foster Carer Agency Fees,13/10/21,"2,829.77 ",UNCLASS,Unclassifiable
5432706,FOSTERING SOLUTIONS LTD,Childrens Services,Children's Services,Foster Carer Agency Fees,13/10/21,"3,414.90 ",UNCLASS,Unclassifiable
5432725,FOSTERING SOLUTIONS LTD,Childrens Services,Children's Services,Foster Carer Agency Fees,13/10/21,"3,236.75 ",321000,Social Community Care Supplies & Services - Adult
5432729,FOSTERING SOLUTIONS LTD,Childrens Services,Children's Services,Foster Carer Agency Fees,13/10/21,"2,890.76 ",321000,Social Community Care Supplies & Services - Adult
5434790,Redacted Supplier,Education,Children's Services,Transport Of Pupils,13/10/21,"2,160.00 ",360000,Public Transport
5435951,FUSION CARE,Adult Social Care,Adults,Residential Home Long Stay Fees,13/10/21,"7,147.32 ",321100,Social Community Care Supplies & Services - Children
5435950,FUSION CARE,Childrens Services,Children's Services,Living With Formal Support,13/10/21,"2,635.00 ",321100,Social Community Care Supplies & Services - Children
5432761,MERIDIAN HEALTH CARE LTD TAS GUIDE LANE,Contingency,Contingency,Nursing Home Long Stay Fees,13/10/21,"6,287.45 ",321000,Social Community Care Supplies & Services - Adult
5432756,MERIDIAN HEALTH CARE LTD TAS GUIDE LANE,Contingency,Contingency,Nursing Home Long Stay Fees,13/10/21,"10,462.77 ",321000,Social Community Care Supplies & Services - Adult
5432766,MERIDIAN HEALTH CARE LTD TAS GUIDE LANE,Contingency,Contingency,Nursing Home Long Stay Fees,13/10/21,"3,662.92 ",321000,Social Community Care Supplies & Services - Adult
5432732,NEW BRIDGE HORIZONS,Adult Social Care,Adults,Homecare Fees,13/10/21,889.00 ,321000,Social Community Care Supplies & Services - Adult
5432738,NEW BRIDGE HORIZONS,Adult Social Care,Adults,Homecare Fees,13/10/21,"1,984.75 ",321000,Social Community Care Supplies & Services - Adult
5432734,NEW BRIDGE HORIZONS,Adult Social Care,Adults,Homecare Fees,13/10/21,"1,381.25 ",321000,Social Community Care Supplies & Services - Adult
5432735,NEW BRIDGE HORIZONS,Adult Social Care,Adults,Homecare Fees,13/10/21,"1,672.80 ",UNCLASS,Unclassifiable
5432740,NEW BRIDGE HORIZONS,Adult Social Care,Adults,Homecare Fees,13/10/21,"1,530.00 ",UNCLASS,Unclassifiable
5432739,NEW BRIDGE HORIZONS,Adult Social Care,Adults,Homecare Fees,13/10/21,"1,517.75 ",321000,Social Community Care Supplies & Services - Adult
5432727,GRANART LIMITED,Operations and Neighbourhoods,Operations and Neighbourhoods,Plaques,13/10/21,507.00 ,120000,Cemetery & Crematorium
5432728,GRANART LIMITED,Operations and Neighbourhoods,Operations and Neighbourhoods,Plaques,13/10/21,"2,960.00 ",120000,Cemetery & Crematorium
5432712,BLOOMSBURY PROFESSIONAL,Governance,Governance,Subscriptions,13/10/21,575.00 ,200000,Financial Services
5436034,ELITE CARE SERVICES (UK) LTD,Adult Social Care,Adults,Homecare Fees,13/10/21,500.50 ,321000,Social Community Care Supplies & Services - Adult
5412298,GREATER MANCHESTER COMBINED AUTHORITY,Operations and Neighbourhoods,Operations and Neighbourhoods,Passenger Transport Levy,13/10/21,"844,834.00 ",-999999,Unclassifiable
5412311,GREATER MANCHESTER COMBINED AUTHORITY,Operations and Neighbourhoods,Operations and Neighbourhoods,Passenger Transport Levy,13/10/21,"692,494.00 ",-999999,Unclassifiable
5433599,CREATIVE SUPPORT LTD,Adult Social Care,Adults,Homecare Fees,13/10/21,"14,367.25 ",321000,Social Community Care Supplies & Services - Adult
5432683,YORKSHIRE PURCHASING ORGANISATION,Population Health,Population Health,"Activity (Materials, Trips)",13/10/21,"1,059.35 ",170000,Education
5432682,ASKEWS  AND HOLTS LIBRARY SERVICES LTD,Operations and Neighbourhoods,Operations and Neighbourhoods,Purchase Books,13/10/21,"4,343.96 ",170000,Education
5434522,QUALITY PROTECTS CHILDREN LTD,Childrens Services,Children's Services,Childrens Homes Outside Local Authority Fees,13/10/21,"31,000.00 ",-999999,Unclassifiable
5434521,QUALITY PROTECTS CHILDREN LTD,Childrens Services,Children's Services,Childrens Homes Outside Local Authority Fees,13/10/21,"38,500.00 ",-999999,Unclassifiable
5432680,BACK CARE SOLUTIONS LTD,Adult Social Care,Adults,Fixtures & Fittings Purchase,13/10/21,994.14 ,310000,Healthcare
5432679,NPOWER LIMITED,Place,Growth,Electricity,13/10/21,"24,520.95 ",370000,Utilities
5434722,TAMESIDE ARTS LTD,Childrens Services,Children's Services,Community Based Activities,13/10/21,546.00 ,290000,Arts & Leisure Services
5432678,Water Plus,Place,Growth,Metered Water Costs,13/10/21,"1,317.43 ",370000,Utilities
5432677,Water Plus,Place,Growth,Metered Water Costs,13/10/21,"2,439.97 ",370000,Utilities
5432674,Water Plus,Place,Growth,Metered Water Costs,13/10/21,"1,284.37 ",370000,Utilities
5435049,PAUL BURROWS PHOTOGRAPHY LTD,Policy and Communications,Governance,"Marketing, Publicity and Recruitment",14/10/21,"1,500.00 ",190000,Facilities & Management Services
5432816,Independent Together Limited,Childrens Services,Children's Services,Living With Formal Support,14/10/21,"3,407.14 ",321000,Social Community Care Supplies & Services - Adult
5432818,Independent Together Limited,Childrens Services,Children's Services,Living With Formal Support,14/10/21,"3,407.14 ",321000,Social Community Care Supplies & Services - Adult
5432822,Independent Together Limited,Childrens Services,Children's Services,Living With Formal Support,14/10/21,"3,000.00 ",321000,Social Community Care Supplies & Services - Adult
5432813,Independent Together Limited,Childrens Services,Children's Services,Living With Formal Support,14/10/21,"2,978.57 ",321000,Social Community Care Supplies & Services - Adult
5432815,Independent Together Limited,Childrens Services,Children's Services,Living With Formal Support,14/10/21,"2,550.00 ",321000,Social Community Care Supplies & Services - Adult
5432819,Independent Together Limited,Childrens Services,Children's Services,Living With Formal Support,14/10/21,"3,000.00 ",321000,Social Community Care Supplies & Services - Adult
5432821,Independent Together Limited,Childrens Services,Children's Services,Living With Formal Support,14/10/21,"4,264.29 ",321000,Social Community Care Supplies & Services - Adult
3250834,BURNT TREE GROUP LIMITED,Operations and Neighbourhoods,Operations and Neighbourhoods,Additional Hire,14/10/21,"3,428.55 ",380000,Vehicle Management
3250834,BURNT TREE GROUP LIMITED,Operations and Neighbourhoods,Operations and Neighbourhoods,Replacement Hire,14/10/21,632.64 ,380000,Vehicle Management
3250834,DENNIS EAGLE LTD,Transport,Director of Place,Debits Goods Received,14/10/21,"2,659.88 ",380000,Vehicle Management
3250834,DENNIS EAGLE LTD,Operations and Neighbourhoods,Operations and Neighbourhoods,General Materials,14/10/21,"2,284.96 ",380000,Vehicle Management
3250834,DENNIS EAGLE LTD,Operations and Neighbourhoods,Operations and Neighbourhoods,Sub-contractor Services,14/10/21,"1,498.80 ",380000,Vehicle Management
3250834,G B OILS TA CARLTON FUELS,Transport,Director of Place,Diesel Fuel,14/10/21,"34,583.60 ",380000,Vehicle Management
3250834,G B OILS TA CARLTON FUELS,Transport,Director of Place,Gas - Oil Fuel,14/10/21,"9,750.65 ",380000,Vehicle Management
3250834,A & J MOTORSPARES,Operations and Neighbourhoods,Operations and Neighbourhoods,General Materials,14/10/21,898.52 ,380000,Vehicle Management
3250834,CALIBRATION &CONSULTANCYSERVICES (UK) LTD,Operations and Neighbourhoods,Operations and Neighbourhoods,General Equipment Repair & Maintenance,14/10/21,538.45 ,150000,Consultancy
3250834,TRUCTYRE ATS,Operations and Neighbourhoods,Operations and Neighbourhoods,Tyre Costs,14/10/21,"2,821.09 ",380000,Vehicle Management
3250834,PETER DOUGLASS PLATFORMS,Operations and Neighbourhoods,Operations and Neighbourhoods,Replacement Hire,14/10/21,"1,584.00 ",380000,Vehicle Management
3250834,HTF TYRE SERVICES LTD,Operations and Neighbourhoods,Operations and Neighbourhoods,Tyre Costs,14/10/21,"2,356.60 ",380000,Vehicle Management
3250834,GARIC LTD,Operations and Neighbourhoods,Operations and Neighbourhoods,Additional Hire,14/10/21,"2,675.20 ",-999999,Unclassifiable
3250834,WASTE PARTS UK LTD,Transport,Director of Place,Debits Goods Received,14/10/21,525.00 ,182200,Waste Management
3250834,Endurance Vehicle Solutions,Operations and Neighbourhoods,Operations and Neighbourhoods,Additional Hire,14/10/21,"3,705.00 ",380000,Vehicle Management
3250834,MUNICIPAL VEHICLE SERVICES LTD,Operations and Neighbourhoods,Operations and Neighbourhoods,Sub-contractor Services,14/10/21,"10,091.36 ",361000,Public Transport
5432849,Rite Directions Ltd,Childrens Services,Children's Services,Living With Formal Support,14/10/21,"6,133.57 ",390000,"Works - Construction, Repair & Maintenance"
5432849,Rite Directions Ltd,Childrens Services,Children's Services,Semi independent - Weekly Living Allowances,14/10/21,260.84 ,390000,"Works - Construction, Repair & Maintenance"
5432841,Rite Directions Ltd,Childrens Services,Children's Services,Living With Formal Support,14/10/21,"6,133.57 ",390000,"Works - Construction, Repair & Maintenance"
5432841,Rite Directions Ltd,Childrens Services,Children's Services,Semi independent - Weekly Living Allowances,14/10/21,260.84 ,390000,"Works - Construction, Repair & Maintenance"
5432843,Rite Directions Ltd,Childrens Services,Children's Services,Living With Formal Support,14/10/21,"6,200.00 ",390000,"Works - Construction, Repair & Maintenance"
5432827,Pennine Medical Supplies Ltd T/A Pennine Workwear,Operations and Neighbourhoods,Operations and Neighbourhoods,Protective Clothing,14/10/21,669.80 ,MEDICAL,Medical
5432829,KB Extruders Ltd,Operations and Neighbourhoods,Operations and Neighbourhoods,General Materials,14/10/21,"1,903.20 ",230000,Highway Equipment & Materials
5436164,Carrington West Ltd,Place,Growth,Professional Services,14/10/21,900.90 ,-999999,Unclassifiable
5436168,Carrington West Ltd,Place,Growth,Professional Services,14/10/21,900.90 ,-999999,Unclassifiable
5432826,Three Angels Healthcare,Adult Social Care,Adults,Homecare Fees,14/10/21,"1,761.50 ",-999999,Unclassifiable
5432831,Three Angels Healthcare,Adult Social Care,Adults,Homecare Fees,14/10/21,"1,761.50 ",-999999,Unclassifiable
5432839,Three Angels Healthcare,Adult Social Care,Adults,Homecare Fees,14/10/21,"1,761.50 ",-999999,Unclassifiable
5432836,Three Angels Healthcare,Adult Social Care,Adults,Homecare Fees,14/10/21,"1,761.50 ",-999999,Unclassifiable
5432840,Three Angels Healthcare,Adult Social Care,Adults,Homecare Fees,14/10/21,"1,761.50 ",-999999,Unclassifiable
5432833,Engage Support LTD,Childrens Services,Children's Services,Living With Formal Support,14/10/21,"9,180.00 ",-999999,Unclassifiable
5432867,Shabach Health Care Ltd,Adult Social Care,Adults,Homecare Fees,14/10/21,"2,118.71 ",321000,Social Community Care Supplies & Services - Adult
5432869,Redacted Supplier,(blank),(blank),Miscellaneous Expenses,14/10/21,"2,000.00 ",191700,Facilities & Management Services
5432845,Achieve Care Homes Ltd,Childrens Services,Children's Services,Childrens Homes Outside Local Authority Fees,14/10/21,"9,214.20 ",321100,Social Community Care Supplies & Services - Children
5432846,Achieve Care Homes Ltd,Childrens Services,Children's Services,Childrens Homes Outside Local Authority Fees,14/10/21,"16,585.00 ",321100,Social Community Care Supplies & Services - Children
5434884,Redacted Supplier,Education,Children's Services,Transport Of Pupils,14/10/21,"1,577.00 ",360000,Public Transport
5435952,FUSION CARE,Adult Social Care,Adults,Homecare Fees,14/10/21,"2,840.60 ",321100,Social Community Care Supplies & Services - Children
5435953,FUSION CARE,Adult Social Care,Adults,Homecare Fees,14/10/21,"2,431.88 ",321100,Social Community Care Supplies & Services - Children
5432837,REGENDA LIMITED,Adult Social Care,Adults,Non-Authority Accommodation Rental,14/10/21,"2,130.92 ",250000,Housing Management
5432838,REGENDA LIMITED,Adult Social Care,Adults,Fixtures & Fittings Purchase,14/10/21,"15,883.61 ",250000,Housing Management
5435128,PERSON CENTRED CARE SERVICES LIMITED,Adult Social Care,Adults,Homecare Fees,14/10/21,"1,198.80 ",310000,Healthcare
5435127,PERSON CENTRED CARE SERVICES LIMITED,Adult Social Care,Adults,Homecare Fees,14/10/21,"1,265.40 ",310000,Healthcare
5433849,COMFORT CALL LIMITED,Adult Social Care,Adults,Homecare Fees,14/10/21,"35,110.35 ",310000,Healthcare
5432787,PULSE HEALTHCARE LTD,Childrens Services,Children's Services,Professional Medical Services,14/10/21,"1,133.94 ",321200,Social Community Care Supplies & Services - Children
5432792,PULSE HEALTHCARE LTD,Childrens Services,Children's Services,Professional Medical Services,14/10/21,"1,085.08 ",321200,Social Community Care Supplies & Services - Children
5432795,PULSE HEALTHCARE LTD,Childrens Services,Children's Services,Professional Medical Services,14/10/21,678.38 ,321200,Social Community Care Supplies & Services - Children
5432800,PULSE HEALTHCARE LTD,Childrens Services,Children's Services,Professional Medical Services,14/10/21,559.98 ,321200,Social Community Care Supplies & Services - Children
5432781,PULSE HEALTHCARE LTD,Childrens Services,Children's Services,Professional Medical Services,14/10/21,551.21 ,321200,Social Community Care Supplies & Services - Children
5432786,PULSE HEALTHCARE LTD,Childrens Services,Children's Services,Professional Medical Services,14/10/21,559.98 ,321200,Social Community Care Supplies & Services - Children
5432794,PULSE HEALTHCARE LTD,Childrens Services,Children's Services,Professional Medical Services,14/10/21,"1,586.40 ",321200,Social Community Care Supplies & Services - Children
5432785,PULSE HEALTHCARE LTD,Childrens Services,Children's Services,Professional Medical Services,14/10/21,678.38 ,321200,Social Community Care Supplies & Services - Children
5432790,PULSE HEALTHCARE LTD,Childrens Services,Children's Services,Professional Medical Services,14/10/21,678.02 ,UNCLASS,Unclassifiable
5432793,PULSE HEALTHCARE LTD,Childrens Services,Children's Services,Professional Medical Services,14/10/21,621.37 ,321200,Social Community Care Supplies & Services - Children
5432788,PULSE HEALTHCARE LTD,Childrens Services,Children's Services,Professional Medical Services,14/10/21,612.60 ,321200,Social Community Care Supplies & Services - Children
5432791,PULSE HEALTHCARE LTD,Childrens Services,Children's Services,Professional Medical Services,14/10/21,"1,119.96 ",321200,Social Community Care Supplies & Services - Children
5432875,TURNING POINT,Adult Social Care,Adults,Homecare Fees,14/10/21,"1,868.59 ",321000,Social Community Care Supplies & Services - Adult
5432877,FOSTERING PEOPLE LTD,Childrens Services,Children's Services,Foster Carer Agency Fees,14/10/21,"3,149.62 ",321100,Social Community Care Supplies & Services - Children
5435150,NEW CHARTER HOUSING TRUST GROUP,Childrens Services,Children's Services,Living With Formal Support,14/10/21,"1,296.00 ",-999999,Unclassifiable
5435169,NEW CHARTER HOUSING TRUST GROUP,Childrens Services,Children's Services,Living With Formal Support,14/10/21,"1,307.32 ",-999999,Unclassifiable
5435145,NEW CHARTER HOUSING TRUST GROUP,Childrens Services,Children's Services,Living With Formal Support,14/10/21,518.40 ,-999999,Unclassifiable
5435147,NEW CHARTER HOUSING TRUST GROUP,Childrens Services,Children's Services,Living With Formal Support,14/10/21,"1,036.80 ",-999999,Unclassifiable
5435170,NEW CHARTER HOUSING TRUST GROUP,Childrens Services,Children's Services,Living With Formal Support,14/10/21,"1,634.15 ",-999999,Unclassifiable
5435175,NEW CHARTER HOUSING TRUST GROUP,Childrens Services,Children's Services,Living With Formal Support,14/10/21,"1,634.15 ",-999999,Unclassifiable
5435166,NEW CHARTER HOUSING TRUST GROUP,Childrens Services,Children's Services,Living With Formal Support,14/10/21,"1,307.32 ",-999999,Unclassifiable
5435168,NEW CHARTER HOUSING TRUST GROUP,Childrens Services,Children's Services,Living With Formal Support,14/10/21,"1,307.32 ",-999999,Unclassifiable
5435176,NEW CHARTER HOUSING TRUST GROUP,Childrens Services,Children's Services,Living With Formal Support,14/10/21,"1,307.32 ",-999999,Unclassifiable
5433863,CARELINE HOMECARE LTD,Adult Social Care,Adults,Homecare Fees,14/10/21,"1,347.23 ",321000,Social Community Care Supplies & Services - Adult
5436064,CARELINE HOMECARE LTD,Adult Social Care,Adults,Homecare Fees,14/10/21,"1,458.24 ",321000,Social Community Care Supplies & Services - Adult
5433862,CARELINE HOMECARE LTD,Adult Social Care,Adults,Homecare Fees,14/10/21,"33,686.64 ",321000,Social Community Care Supplies & Services - Adult
5432891,Cabinet Office,Corporate Costs,Corporate Costs,Contributions,14/10/21,"4,200.00 ",280000,Legal Services
5435420,Smartway Health and Social Care Limited,Adult Social Care,Adults,Homecare Fees,14/10/21,"8,895.26 ",321000,Social Community Care Supplies & Services - Adult
5432873,Redacted Supplier,(blank),(blank),Professional Entertainment Services,14/10/21,"2,000.00 ",290000,Arts & Leisure Services
5435117,NMA Travel LTD,Education,Children's Services,Transport Of Pupils,14/10/21,"2,604.00 ",360000,Public Transport
5435182,NMA Travel LTD,Education,Children's Services,Transport Of Pupils,14/10/21,"2,242.00 ",360000,Public Transport
5435199,FENTONS TAXIS,Education,Children's Services,Transport Of Pupils,14/10/21,"1,852.50 ",360000,Public Transport
5435221,FENTONS TAXIS,Education,Children's Services,Transport Of Pupils,14/10/21,"1,852.50 ",360000,Public Transport
5432887,FOSTER CARE ASSOCIATES LTD (FCA),Childrens Services,Children's Services,Foster Carer Agency Fees,14/10/21,"2,738.15 ",321000,Social Community Care Supplies & Services - Adult
5432895,CIVICA UK LIMITED,Multiple Heads of Service,Multiple Strategic Directorates,Computer Software,14/10/21,"1,500.00 ",271600,Information Communication Technology
5435203,TAMESIDE FIRE PROTECTION SERVICES LTD,Adult Social Care,Adults,Firefighting Equipment,14/10/21,"1,264.20 ",UNCLASS,Unclassifiable
5435193,TAMESIDE LINK,Adult Social Care,Adults,Voluntary Organisations Fees,14/10/21,"25,425.84 ",UNCLASS,Unclassifiable
5432898,MHR International UK Limited,People and Workforce Development,Governance,Computer Software,14/10/21,"2,808.00 ",UNCLASS,Unclassifiable
5435232,FENTONS MINIBUSES LTD,Education,Children's Services,Transport Of Ola Pupils,14/10/21,"2,422.50 ",UNCLASS,Unclassifiable
5435242,Redacted Supplier,Operations and Neighbourhoods,Operations and Neighbourhoods,Hired Transport,15/10/21,"1,155.00 ",UNCLASS,Unclassifiable
5435246,Redacted Supplier,Education,Children's Services,Transport Of Ola Pupils,15/10/21,840.00 ,360000,Public Transport
5435243,Redacted Supplier,Operations and Neighbourhoods,Operations and Neighbourhoods,Hired Transport,15/10/21,"2,451.00 ",UNCLASS,Unclassifiable
5433215,Coral Products (Mouldings) Ltd,Operations and Neighbourhoods,Operations and Neighbourhoods,Purchase Wheeled Bins,15/10/21,"2,138.40 ",UNCLASS,Unclassifiable
5433105,Sandcastle Care LTD,Childrens Services,Children's Services,Childrens Homes Outside Local Authority Fees,15/10/21,"25,692.86 ",321000,Social Community Care Supplies & Services - Adult
5433104,Sandcastle Care LTD,Childrens Services,Children's Services,Childrens Homes Outside Local Authority Fees,15/10/21,"25,692.86 ",UNCLASS,Unclassifiable
5433109,Sandcastle Care LTD,Childrens Services,Children's Services,Childrens Homes Outside Local Authority Fees,15/10/21,"25,692.86 ",321000,Social Community Care Supplies & Services - Adult
5433106,Sandcastle Care LTD,Childrens Services,Children's Services,Childrens Homes Outside Local Authority Fees,15/10/21,"18,214.29 ",321000,Social Community Care Supplies & Services - Adult
5433108,Sandcastle Care LTD,Childrens Services,Children's Services,Childrens Homes Outside Local Authority Fees,15/10/21,"25,692.86 ",321000,Social Community Care Supplies & Services - Adult
5433057,Beacon Counselling,People and Workforce Development,Governance,Professional Medical Services,15/10/21,"2,400.00 ",310000,Healthcare
5433039,G2V Recruitment Group Limited t/a Vivid Resourcing,Place,Growth,Recruitment Campaign,15/10/21,500.00 ,280000,Legal Services
5433035,G2V Recruitment Group Limited t/a Vivid Resourcing,Place,Growth,Agency Staff,15/10/21,"2,500.00 ",280000,Legal Services
5433038,G2V Recruitment Group Limited t/a Vivid Resourcing,Place,Growth,Recruitment Campaign,15/10/21,"2,371.70 ",280000,Legal Services
5433037,G2V Recruitment Group Limited t/a Vivid Resourcing,Place,Growth,Recruitment Campaign,15/10/21,"3,250.00 ",280000,Legal Services
5431148,Stepping Stone Projects,Childrens Services,Children's Services,Living With Formal Support,15/10/21,998.00 ,-999999,Unclassifiable
5431150,Stepping Stone Projects,Childrens Services,Children's Services,Living With Formal Support,15/10/21,"3,244.65 ",-999999,Unclassifiable
5431152,Stepping Stone Projects,Childrens Services,Children's Services,Living With Formal Support,15/10/21,"1,497.00 ",-999999,Unclassifiable
5433243,Stepping Stone Projects,Childrens Services,Children's Services,Living With Formal Support,15/10/21,"1,497.00 ",-999999,Unclassifiable
5433244,Stepping Stone Projects,Childrens Services,Children's Services,Living With Formal Support,15/10/21,"3,950.00 ",-999999,Unclassifiable
5433246,Stepping Stone Projects,Childrens Services,Children's Services,Living With Formal Support,15/10/21,"1,830.00 ",-999999,Unclassifiable
5433247,Stepping Stone Projects,Childrens Services,Children's Services,Living With Formal Support,15/10/21,"1,497.00 ",-999999,Unclassifiable
5433242,Stepping Stone Projects,Childrens Services,Children's Services,Living With Formal Support,15/10/21,998.00 ,-999999,Unclassifiable
5433147,Optima Health,People and Workforce Development,Governance,Fees,15/10/21,"6,441.19 ",311410,Healthcare
5433003,Cathmor,Childrens Services,Children's Services,Living With Formal Support,15/10/21,"5,485.71 ",-999999,Unclassifiable
5433006,Cathmor,Childrens Services,Children's Services,Living With Formal Support,15/10/21,"5,485.71 ",-999999,Unclassifiable
5433008,Cathmor,Childrens Services,Children's Services,Living With Formal Support,15/10/21,"3,835.71 ",-999999,Unclassifiable
5433011,Cathmor,Childrens Services,Children's Services,Living With Formal Support,15/10/21,"2,812.86 ",-999999,Unclassifiable
5433013,Cathmor,Childrens Services,Children's Services,Living With Formal Support,15/10/21,"3,835.71 ",-999999,Unclassifiable
5432979,Cathmor,Childrens Services,Children's Services,Living With Formal Support,15/10/21,"5,485.71 ",-999999,Unclassifiable
5432982,Cathmor,Childrens Services,Children's Services,Living With Formal Support,15/10/21,"5,485.71 ",-999999,Unclassifiable
5433065,Amore Social Care Ltd,Childrens Services,Children's Services,Childrens Homes Outside Local Authority Fees,15/10/21,"13,911.16 ",310000,Healthcare
5433296,Avoira Ltd,Digital Tameside,Finance & IT,Telephone Landline Costs,15/10/21,"5,133.96 ",-999999,Unclassifiable
5433069,Tough Cookies Ed CIC,Population Health,Population Health,Project Costs,15/10/21,"6,300.00 ",UNCLASS,Unclassifiable
5434424,Headway Education,Individual Schools Budget,Children's Services,Professional Child Services,15/10/21,"2,600.00 ",-999999,Unclassifiable
460436,DOMAIN CARE NORTH WEST LTD,Adult Social Care,Adults,Nursing Home Long Stay Fees,15/10/21,"8,120.74 ",321100,Social Community Care Supplies & Services - Children
5435767,WORKS 4U SUPPORT SERVICES LIMITED,Education,Children's Services,Independent School Fees,15/10/21,"10,140.00 ",260000,Human Resources
5433077,TELESHORE (UK) LTD,Operations and Neighbourhoods,Operations and Neighbourhoods,General Equipment Purchase,15/10/21,"2,072.00 ",120000,Cemetery & Crematorium
5433269,BOOTS UK LTD,Population Health,Population Health,Local Enhanced Services,15/10/21,"1,147.38 ",150000,Consultancy
5436123,CYCLESCHEME LTD,(blank),(blank),Debits,15/10/21,"4,150.00 ",-999999,Unclassifiable
5433149,Kingfisher Design & Management Ltd,Operations and Neighbourhoods,Operations and Neighbourhoods,Engineers -External,15/10/21,927.00 ,260000,Human Resources
5433042,VISION FOR EDUCATION LIMITED,Education,Children's Services,Professional Services,15/10/21,988.00 ,170000,Education
5433150,Tynetec a group brand of Legrand Electric Ltd,Adult Social Care,Adults,It Equipment,15/10/21,"8,446.00 ",270000,Information Communication Technology
5435778,PEOPLE FIRST TAMESIDE,Adult Social Care,Adults,Homecare Fees,15/10/21,"1,003.50 ",321000,Social Community Care Supplies & Services - Adult
5435781,PEOPLE FIRST TAMESIDE,Adult Social Care,Adults,Homecare Fees,15/10/21,"1,404.90 ",321000,Social Community Care Supplies & Services - Adult
5435777,PEOPLE FIRST TAMESIDE,Adult Social Care,Adults,Homecare Fees,15/10/21,"1,043.64 ",321000,Social Community Care Supplies & Services - Adult
5433081,PROFILE SECURITY SERVICES LIMITED,Operations and Neighbourhoods,Operations and Neighbourhoods,General Materials,15/10/21,"6,189.30 ",190000,Facilities & Management Services
5435296,PROVIDENCE FURNITURE,Adult Social Care,Adults,Fixtures & Fittings Purchase,15/10/21,925.00 ,210000,Furniture & Soft Furnishings
5435297,ASHTON PIONEER HOMES,Operations and Neighbourhoods,Operations and Neighbourhoods,Miscellaneous Expenses,15/10/21,"4,022.17 ",329999,Social Community Care Supplies & Services
5433976,INSPIREDSPACES TAMESIDE (PROJECTCO2) LTD,Asset & Investment Partnership Management,Growth,Free School Meal Costs,15/10/21,"17,766.56 ",170000,Education
5433976,INSPIREDSPACES TAMESIDE (PROJECTCO2) LTD,Asset & Investment Partnership Management,Growth,Refreshments,15/10/21,"1,034.22 ",170000,Education
5433304,MATTHEWS & GOODMAN LLP,Place,Growth,Fees,15/10/21,781.90 ,150000,Consultancy
5435301,THE FAMILY UNIT LTD,Childrens Services,Children's Services,Living With Formal Support,15/10/21,"8,000.00 ",321000,Social Community Care Supplies & Services - Adult
5435302,THE FAMILY UNIT LTD,Childrens Services,Children's Services,Living With Formal Support,15/10/21,"10,320.00 ",321000,Social Community Care Supplies & Services - Adult
5435302,THE FAMILY UNIT LTD,Childrens Services,Children's Services,Semi independent - Weekly Living Allowances,15/10/21,236.80 ,321000,Social Community Care Supplies & Services - Adult
5435304,THE FAMILY UNIT LTD,Childrens Services,Children's Services,Living With Formal Support,15/10/21,"3,600.00 ",321000,Social Community Care Supplies & Services - Adult
5435304,THE FAMILY UNIT LTD,Childrens Services,Children's Services,Semi independent - Weekly Living Allowances,15/10/21,236.80 ,321000,Social Community Care Supplies & Services - Adult
5435305,THE FAMILY UNIT LTD,Childrens Services,Children's Services,Childrens Homes Outside Local Authority Fees,15/10/21,"48,000.00 ",321000,Social Community Care Supplies & Services - Adult
5436156,CURZON ASHTON FOOTBALL CLUB,Contingency,Contingency,Room Hire,15/10/21,"4,500.00 ",290000,Arts & Leisure Services
5433298,Redacted Supplier,Hosted Services,Hosted Services,Professional Services,15/10/21,"4,000.00 ",UNCLASS,Unclassifiable
5433078,BC EDUCATION LTD,Education,Children's Services,Professional Consultancy Services,15/10/21,"9,000.00 ",261500,Human Resources
5433043,Andrew Jenner Ltd t/a RCD,Operations and Neighbourhoods,Operations and Neighbourhoods,General Materials,15/10/21,"1,433.13 ",340000,Stationery
5433045,Andrew Jenner Ltd t/a RCD,Operations and Neighbourhoods,Operations and Neighbourhoods,General Materials,15/10/21,"1,433.13 ",340000,Stationery
5435788,NEW CHARTER HOUSING TRUST GROUP,Childrens Services,Children's Services,Living With Formal Support,15/10/21,"1,274.60 ",-999999,Unclassifiable
5435713,NEW CHARTER HOUSING TRUST GROUP,Childrens Services,Children's Services,Living With Formal Support,15/10/21,"1,274.60 ",-999999,Unclassifiable
5435717,NEW CHARTER HOUSING TRUST GROUP,Childrens Services,Children's Services,Living With Formal Support,15/10/21,"1,019.68 ",-999999,Unclassifiable
5435327,NEW CHARTER HOUSING TRUST GROUP,Adult Social Care,Adults,Non-Authority Accommodation Rental,15/10/21,"4,432.92 ",-999999,Unclassifiable
5435329,NEW CHARTER HOUSING TRUST GROUP,Childrens Services,Children's Services,Living With Formal Support,15/10/21,"1,307.32 ",-999999,Unclassifiable
5435325,NEW CHARTER HOUSING TRUST GROUP,Adult Social Care,Adults,Non-Authority Accommodation Rental,15/10/21,"4,608.08 ",-999999,Unclassifiable
5435787,NEW CHARTER HOUSING TRUST GROUP,Childrens Services,Children's Services,Living With Formal Support,15/10/21,"1,019.68 ",-999999,Unclassifiable
5435715,NEW CHARTER HOUSING TRUST GROUP,Childrens Services,Children's Services,Living With Formal Support,15/10/21,"1,019.68 ",-999999,Unclassifiable
5435771,NEW CHARTER HOUSING TRUST GROUP,Childrens Services,Children's Services,Living With Formal Support,15/10/21,"1,019.68 ",-999999,Unclassifiable
5435333,NEW CHARTER HOUSING TRUST GROUP,Childrens Services,Children's Services,Living With Formal Support,15/10/21,"1,036.80 ",-999999,Unclassifiable
5435714,NEW CHARTER HOUSING TRUST GROUP,Childrens Services,Children's Services,Living With Formal Support,15/10/21,"1,019.68 ",-999999,Unclassifiable
5433090,UK CONTAINER MAINTENANCE LTD,Operations and Neighbourhoods,Operations and Neighbourhoods,Purchase Wheeled Bins,15/10/21,"1,000.00 ",390000,"Works - Construction, Repair & Maintenance"
5435764,ALBION MILL CARPETS,Adult Social Care,Adults,Fixtures & Fittings Purchase,15/10/21,"2,916.66 ",100000,Building Construction Materials
5434057,INSPIREDSPACES TAMESIDE LTD,(blank),(blank),Adaptations - Jobs <#500,15/10/21,"28,879.03 ",390000,"Works - Construction, Repair & Maintenance"
5434057,INSPIREDSPACES TAMESIDE LTD,(blank),(blank),Fees,15/10/21,577.57 ,390000,"Works - Construction, Repair & Maintenance"
5434869,INSPIREDSPACES TAMESIDE LTD,(blank),(blank),Building Works,15/10/21,"40,876.78 ",390000,"Works - Construction, Repair & Maintenance"
5434863,INSPIREDSPACES TAMESIDE LTD,(blank),(blank),Fees,15/10/21,"22,543.65 ",390000,"Works - Construction, Repair & Maintenance"
5434864,INSPIREDSPACES TAMESIDE LTD,(blank),(blank),Fees,15/10/21,"164,275.52 ",390000,"Works - Construction, Repair & Maintenance"
5434868,INSPIREDSPACES TAMESIDE LTD,(blank),(blank),Fees,15/10/21,"169,005.53 ",390000,"Works - Construction, Repair & Maintenance"
5433080,LIBERTY SUPPORT SERVICES LTD,Adult Social Care,Adults,Homecare Fees,15/10/21,"19,030.59 ",321000,Social Community Care Supplies & Services - Adult
5435390,STEPPING STONES CHILDRENS HOMES LTD,Childrens Services,Children's Services,Childrens Homes Outside Local Authority Fees,15/10/21,"42,140.00 ",UNCLASS,Unclassifiable
5435392,STEPPING STONES CHILDRENS HOMES LTD,Childrens Services,Children's Services,Childrens Homes Outside Local Authority Fees,15/10/21,"20,271.42 ",UNCLASS,Unclassifiable
5436055,STEPPING STONES CHILDRENS HOMES LTD,Childrens Services,Children's Services,Childrens Homes Outside Local Authority Fees,15/10/21,"10,054.85 ",321100,Social Community Care Supplies & Services - Children
5435758,STEPPING STONES CHILDRENS HOMES LTD,Childrens Services,Children's Services,Childrens Homes Outside Local Authority Fees,15/10/21,"43,000.00 ",321100,Social Community Care Supplies & Services - Children
5435354,STEPPING STONES CHILDRENS HOMES LTD,Childrens Services,Children's Services,Childrens Homes Outside Local Authority Fees,15/10/21,"15,714.28 ",321100,Social Community Care Supplies & Services - Children
5435391,STEPPING STONES CHILDRENS HOMES LTD,Childrens Services,Children's Services,Childrens Homes Outside Local Authority Fees,15/10/21,"27,022.43 ",321100,Social Community Care Supplies & Services - Children
5433055,Oxford Innovation LTD - ASHTON OLD BATHS,Place,Growth,Building Maintenance,15/10/21,"2,420.00 ",190000,Facilities & Management Services
5432976,DHL Parcel UK Ltd (UK Mail),Exchequer,Governance,Printing And Stationery,15/10/21,"2,496.62 ",300000,Mail Services
5432949,DHL Parcel UK Ltd (UK Mail),Education,Children's Services,Professional Services,15/10/21,"1,285.95 ",300000,Mail Services
5435183,NMA Travel LTD,Childrens Services,Children's Services,Transport Of Pupils,15/10/21,"1,100.00 ",360000,Public Transport
5433044,Compass Fostering North LTD,Childrens Services,Children's Services,Foster Carer Agency Fees,15/10/21,"1,494.99 ",321100,Social Community Care Supplies & Services - Children
5432997,Compass Fostering North LTD,Childrens Services,Children's Services,Foster Carer Agency Fees,15/10/21,"3,334.50 ",UNCLASS,Unclassifiable
5432992,Compass Fostering North LTD,Childrens Services,Children's Services,Foster Carer Agency Fees,15/10/21,"3,322.20 ",321100,Social Community Care Supplies & Services - Children
5433041,Compass Fostering North LTD,Childrens Services,Children's Services,Foster Carer Agency Fees,15/10/21,"1,455.57 ",321100,Social Community Care Supplies & Services - Children
5433000,Compass Fostering North LTD,Childrens Services,Children's Services,Foster Carer Agency Fees,15/10/21,"3,159.00 ",321100,Social Community Care Supplies & Services - Children
5433047,Compass Fostering North LTD,Childrens Services,Children's Services,Foster Carer Agency Fees,15/10/21,"3,229.50 ",321100,Social Community Care Supplies & Services - Children
5432998,Compass Fostering North LTD,Childrens Services,Children's Services,Foster Carer Agency Fees,15/10/21,"3,159.00 ",321100,Social Community Care Supplies & Services - Children
5433002,Compass Fostering North LTD,Childrens Services,Children's Services,Foster Carer Agency Fees,15/10/21,"3,094.20 ",321100,Social Community Care Supplies & Services - Children
5433034,Compass Fostering North LTD,Childrens Services,Children's Services,Foster Carer Agency Fees,15/10/21,"1,494.99 ",321100,Social Community Care Supplies & Services - Children
5432988,Compass Fostering North LTD,Childrens Services,Children's Services,Foster Carer Agency Fees,15/10/21,"3,497.10 ",321100,Social Community Care Supplies & Services - Children
5432993,Compass Fostering North LTD,Childrens Services,Children's Services,Foster Carer Agency Fees,15/10/21,"3,322.20 ",321100,Social Community Care Supplies & Services - Children
5433001,Compass Fostering North LTD,Childrens Services,Children's Services,Foster Carer Agency Fees,15/10/21,"3,112.80 ",321100,Social Community Care Supplies & Services - Children
5433101,Greatwood House t/a Meridian Healthcare LTD,Contingency,Contingency,Nursing Home Long Stay Fees,15/10/21,"10,216.71 ",321000,Social Community Care Supplies & Services - Adult
5433070,FOSTER CARE ASSOCIATES LTD (FCA),Childrens Services,Children's Services,Foster Carer Agency Fees,15/10/21,"3,899.70 ",321000,Social Community Care Supplies & Services - Adult
5433068,FOSTER CARE ASSOCIATES LTD (FCA),Childrens Services,Children's Services,Foster Carer Agency Fees,15/10/21,"3,132.60 ",321000,Social Community Care Supplies & Services - Adult
5433059,FOSTER CARE ASSOCIATES LTD (FCA),Childrens Services,Children's Services,Foster Carer Agency Fees,15/10/21,"3,809.40 ",321000,Social Community Care Supplies & Services - Adult
5433074,FOSTER CARE ASSOCIATES LTD (FCA),Childrens Services,Children's Services,Foster Carer Agency Fees,15/10/21,"3,809.40 ",321000,Social Community Care Supplies & Services - Adult
5433071,FOSTER CARE ASSOCIATES LTD (FCA),Childrens Services,Children's Services,Foster Carer Agency Fees,15/10/21,"5,816.40 ",321000,Social Community Care Supplies & Services - Adult
5433056,FOSTER CARE ASSOCIATES LTD (FCA),Childrens Services,Children's Services,Foster Carer Agency Fees,15/10/21,"3,304.50 ",321000,Social Community Care Supplies & Services - Adult
5433066,FOSTER CARE ASSOCIATES LTD (FCA),Childrens Services,Children's Services,Foster Carer Agency Fees,15/10/21,"3,302.85 ",321000,Social Community Care Supplies & Services - Adult
5433053,FOSTER CARE ASSOCIATES LTD (FCA),Childrens Services,Children's Services,Foster Carer Agency Fees,15/10/21,"3,571.50 ",321000,Social Community Care Supplies & Services - Adult
5433072,FOSTER CARE ASSOCIATES LTD (FCA),Childrens Services,Children's Services,Foster Carer Agency Fees,15/10/21,"3,304.50 ",321000,Social Community Care Supplies & Services - Adult
5433067,FOSTER CARE ASSOCIATES LTD (FCA),Childrens Services,Children's Services,Foster Carer Agency Fees,15/10/21,"3,536.12 ",321000,Social Community Care Supplies & Services - Adult
5435404,HAUGHTON-THORNLEY MEDICAL CENTRE,Population Health,Population Health,Local Enhanced Services,15/10/21,"1,079.80 ",310000,Healthcare
5435405,FIRST AID FOR ALL LTD,Operations and Neighbourhoods,Operations and Neighbourhoods,Training Course Costs,15/10/21,894.00 ,260000,Human Resources
5433145,Redacted Supplier,Education,Children's Services,Non-Maintained School Fees,15/10/21,"21,716.87 ",-999999,Unclassifiable
5433142,Redacted Supplier,Education,Children's Services,Non-Maintained School Fees,15/10/21,"21,642.36 ",-999999,Unclassifiable
5435571,NEXUS MOVE LIMITED PREVIOUSLY RADIO CABS (ASHTON)LTD,Education,Children's Services,Transport Of Post 16 Pupils,15/10/21,663.00 ,360000,Public Transport
5435476,NEXUS MOVE LIMITED PREVIOUSLY RADIO CABS (ASHTON)LTD,Education,Children's Services,Transport Of Pupils,15/10/21,"1,824.00 ",360000,Public Transport
5435488,NEXUS MOVE LIMITED PREVIOUSLY RADIO CABS (ASHTON)LTD,Education,Children's Services,Transport Of Pupils,15/10/21,"1,862.00 ",360000,Public Transport
5435543,NEXUS MOVE LIMITED PREVIOUSLY RADIO CABS (ASHTON)LTD,Education,Children's Services,Transport Of Pupils,15/10/21,"1,776.00 ",360000,Public Transport
5435551,NEXUS MOVE LIMITED PREVIOUSLY RADIO CABS (ASHTON)LTD,Operations and Neighbourhoods,Operations and Neighbourhoods,Hired Transport,15/10/21,"6,285.00 ",360000,Public Transport
5435599,NEXUS MOVE LIMITED PREVIOUSLY RADIO CABS (ASHTON)LTD,Education,Children's Services,Transport Of Ola Pupils,15/10/21,880.00 ,360000,Public Transport
5435509,NEXUS MOVE LIMITED PREVIOUSLY RADIO CABS (ASHTON)LTD,Education,Children's Services,Transport Of Pupils,15/10/21,"1,680.00 ",360000,Public Transport
5435530,NEXUS MOVE LIMITED PREVIOUSLY RADIO CABS (ASHTON)LTD,Education,Children's Services,Transport Of Pupils,15/10/21,"2,120.00 ",360000,Public Transport
5435532,NEXUS MOVE LIMITED PREVIOUSLY RADIO CABS (ASHTON)LTD,Education,Children's Services,Transport Of Ola Pupils,15/10/21,"2,520.00 ",360000,Public Transport
5435559,NEXUS MOVE LIMITED PREVIOUSLY RADIO CABS (ASHTON)LTD,Education,Children's Services,Transport Of Post 16 Pupils,15/10/21,840.00 ,360000,Public Transport
5435572,NEXUS MOVE LIMITED PREVIOUSLY RADIO CABS (ASHTON)LTD,Education,Children's Services,Transport Of Pupils,15/10/21,"1,184.00 ",360000,Public Transport
5435577,NEXUS MOVE LIMITED PREVIOUSLY RADIO CABS (ASHTON)LTD,Education,Children's Services,Transport Of Ola Pupils,15/10/21,"1,017.50 ",360000,Public Transport
5435480,NEXUS MOVE LIMITED PREVIOUSLY RADIO CABS (ASHTON)LTD,Operations and Neighbourhoods,Operations and Neighbourhoods,Hired Transport,15/10/21,"1,349.00 ",360000,Public Transport
5435482,NEXUS MOVE LIMITED PREVIOUSLY RADIO CABS (ASHTON)LTD,Education,Children's Services,Transport Of Pupils,15/10/21,"1,961.00 ",360000,Public Transport
5435548,NEXUS MOVE LIMITED PREVIOUSLY RADIO CABS (ASHTON)LTD,Education,Children's Services,Transport Of Pupils,15/10/21,"1,961.00 ",360000,Public Transport
5435567,NEXUS MOVE LIMITED PREVIOUSLY RADIO CABS (ASHTON)LTD,Education,Children's Services,Transport Of Ola Pupils,15/10/21,"1,792.00 ",360000,Public Transport
5435587,NEXUS MOVE LIMITED PREVIOUSLY RADIO CABS (ASHTON)LTD,Education,Children's Services,Transport Of Pupils,15/10/21,"1,400.00 ",360000,Public Transport
5435589,NEXUS MOVE LIMITED PREVIOUSLY RADIO CABS (ASHTON)LTD,Education,Children's Services,Transport Of Ola Pupils,15/10/21,"1,045.00 ",360000,Public Transport
5435594,NEXUS MOVE LIMITED PREVIOUSLY RADIO CABS (ASHTON)LTD,Education,Children's Services,Transport Of Post 16 Pupils,15/10/21,605.00 ,360000,Public Transport
5435533,NEXUS MOVE LIMITED PREVIOUSLY RADIO CABS (ASHTON)LTD,Education,Children's Services,Transport Of Post 16 Pupils,15/10/21,962.50 ,360000,Public Transport
5435512,NEXUS MOVE LIMITED PREVIOUSLY RADIO CABS (ASHTON)LTD,Education,Children's Services,Transport Of Ola Pupils,15/10/21,"1,440.00 ",UNCLASS,Unclassifiable
5435518,NEXUS MOVE LIMITED PREVIOUSLY RADIO CABS (ASHTON)LTD,Operations and Neighbourhoods,Operations and Neighbourhoods,Hired Transport,15/10/21,643.50 ,360000,Public Transport
5435529,NEXUS MOVE LIMITED PREVIOUSLY RADIO CABS (ASHTON)LTD,Education,Children's Services,Transport Of Ola Pupils,15/10/21,"2,520.00 ",360000,Public Transport
5435539,NEXUS MOVE LIMITED PREVIOUSLY RADIO CABS (ASHTON)LTD,Education,Children's Services,Transport Of Pupils,15/10/21,"1,961.00 ",360000,Public Transport
5435603,NEXUS MOVE LIMITED PREVIOUSLY RADIO CABS (ASHTON)LTD,Education,Children's Services,Transport Of Pupils,15/10/21,822.50 ,360000,Public Transport
5435538,NEXUS MOVE LIMITED PREVIOUSLY RADIO CABS (ASHTON)LTD,Education,Children's Services,Transport Of Pupils,15/10/21,"2,109.00 ",UNCLASS,Unclassifiable
5435527,NEXUS MOVE LIMITED PREVIOUSLY RADIO CABS (ASHTON)LTD,Education,Children's Services,Transport Of Pupils,15/10/21,"2,280.00 ",UNCLASS,Unclassifiable
5435504,NEXUS MOVE LIMITED PREVIOUSLY RADIO CABS (ASHTON)LTD,Education,Children's Services,Transport Of Post 16 Pupils,15/10/21,"1,728.00 ",UNCLASS,Unclassifiable
5435484,NEXUS MOVE LIMITED PREVIOUSLY RADIO CABS (ASHTON)LTD,Operations and Neighbourhoods,Operations and Neighbourhoods,Hired Transport,15/10/21,559.50 ,UNCLASS,Unclassifiable
5433010,SWIIS FOSTER CARE LTD,Childrens Services,Children's Services,Foster Carer Agency Fees,15/10/21,"1,694.98 ",321100,Social Community Care Supplies & Services - Children
5433020,SWIIS FOSTER CARE LTD,Childrens Services,Children's Services,Foster Carer Agency Fees,15/10/21,787.78 ,321100,Social Community Care Supplies & Services - Children
5433015,SWIIS FOSTER CARE LTD,Childrens Services,Children's Services,Foster Carer Agency Fees,15/10/21,696.99 ,321100,Social Community Care Supplies & Services - Children
5433017,SWIIS FOSTER CARE LTD,Childrens Services,Children's Services,Foster Carer Agency Fees,15/10/21,760.48 ,321100,Social Community Care Supplies & Services - Children
5435276,MANLEC ELECTRICAL(MANCHESTER) LTD,Housing,Director of Place,Adaptations - Jobs <#500,15/10/21,720.50 ,390000,"Works - Construction, Repair & Maintenance"
5435268,MANLEC ELECTRICAL(MANCHESTER) LTD,Housing,Director of Place,Adaptations - Small Jobs,15/10/21,800.00 ,390000,"Works - Construction, Repair & Maintenance"
5435278,MANLEC ELECTRICAL(MANCHESTER) LTD,Housing,Director of Place,Adaptations - Small Jobs,15/10/21,870.00 ,390000,"Works - Construction, Repair & Maintenance"
5435265,MANLEC ELECTRICAL(MANCHESTER) LTD,Housing,Director of Place,Adaptations - Small Jobs,15/10/21,949.00 ,390000,"Works - Construction, Repair & Maintenance"
5435274,MANLEC ELECTRICAL(MANCHESTER) LTD,Housing,Director of Place,Adaptations - Jobs <#500,15/10/21,550.00 ,390000,"Works - Construction, Repair & Maintenance"
5435269,MANLEC ELECTRICAL(MANCHESTER) LTD,Housing,Director of Place,Adaptations - Small Jobs,15/10/21,849.00 ,390000,"Works - Construction, Repair & Maintenance"
5433119,M NELSON & SON,Multiple Heads of Service,Multiple Strategic Directorates,CIS Labour Credits,15/10/21,"-1,100.00 ",390000,"Works - Construction, Repair & Maintenance"
5433119,M NELSON & SON,Multiple Heads of Service,Multiple Strategic Directorates,CIS Labour Debits,15/10/21,"1,100.00 ",390000,"Works - Construction, Repair & Maintenance"
5433119,M NELSON & SON,Operations and Neighbourhoods,Operations and Neighbourhoods,External  Consultants,15/10/21,"1,550.00 ",390000,"Works - Construction, Repair & Maintenance"
5435769,A & E FURNITURE LTD T.A THE PAVILION,Adult Social Care,Adults,Fixtures & Fittings Purchase,15/10/21,799.00 ,210000,Furniture & Soft Furnishings
5432899,INTEGRATED DOCUMENT SOLUTIONS LTD,Digital Tameside,Finance & IT,Computer Software,15/10/21,"4,521.26 ",190000,Facilities & Management Services
5435683,NU FIRE & SECURITY LTD,Operations and Neighbourhoods,Operations and Neighbourhoods,General Materials,15/10/21,525.00 ,190000,Facilities & Management Services
5433140,NPOWER LIMITED,Place,Growth,Electricity,15/10/21,"14,248.11 ",370000,Utilities
5433135,NPOWER LIMITED,Operations and Neighbourhoods,Operations and Neighbourhoods,Electricity,15/10/21,"87,156.28 ",370000,Utilities
5433277,BOND SOLON TRAINING LTD,Quality and Safeguarding,Quality and Safeguarding,Legal Fees,15/10/21,"2,000.00 ",-999999,Unclassifiable
5435371,STAMFORD CARS UK LTD,Operations and Neighbourhoods,Operations and Neighbourhoods,Hired Transport,15/10/21,797.50 ,360000,Public Transport
5435370,STAMFORD CARS UK LTD,Operations and Neighbourhoods,Operations and Neighbourhoods,Transport Of Pupils,15/10/21,"1,710.00 ",360000,Public Transport
5430308,Changes Support Ltd,Childrens Services,Children's Services,Living With Formal Support,18/10/21,"4,256.00 ",321100,Social Community Care Supplies & Services - Children
5430308,Changes Support Ltd,Childrens Services,Children's Services,Living With Formal Support,18/10/21,236.80 ,321100,Social Community Care Supplies & Services - Children
5436443,Carrington West Ltd,Place,Growth,Professional Services,18/10/21,900.90 ,-999999,Unclassifiable
5436446,Carrington West Ltd,Place,Growth,Professional Services,18/10/21,900.90 ,-999999,Unclassifiable
5433267,The Market Co,Operations and Neighbourhoods,Operations and Neighbourhoods,"Marketing, Publicity and Recruitment",18/10/21,"2,100.00 ",UNCLASS,Unclassifiable
5433294,TELEFONICA O2 (UK) LTD,Digital Tameside,Finance & IT,Mobile Telephones,18/10/21,"6,733.78 ",270000,Information Communication Technology
5434032,COMFORT CALL LIMITED,Adult Social Care,Adults,Homecare Fees,18/10/21,"34,776.77 ",310000,Healthcare
5436296,PLATINUM STAIRLIFTS LIMITED,Housing,Director of Place,Improvement Grants - Final Mandatory,18/10/21,"1,812.50 ",321000,Social Community Care Supplies & Services - Adult
5436301,PLATINUM STAIRLIFTS LIMITED,Housing,Director of Place,Improvement Grants - Final Mandatory,18/10/21,"3,525.00 ",321000,Social Community Care Supplies & Services - Adult
5436303,PLATINUM STAIRLIFTS LIMITED,Housing,Director of Place,Improvement Grants - Final Mandatory,18/10/21,"6,089.68 ",321000,Social Community Care Supplies & Services - Adult
5436310,PLATINUM STAIRLIFTS LIMITED,Housing,Director of Place,Improvement Grants - Final Mandatory,18/10/21,"2,541.36 ",321000,Social Community Care Supplies & Services - Adult
5436313,PLATINUM STAIRLIFTS LIMITED,Housing,Director of Place,Improvement Grants - Final Mandatory,18/10/21,"2,988.33 ",321000,Social Community Care Supplies & Services - Adult
5436300,PLATINUM STAIRLIFTS LIMITED,Housing,Director of Place,Improvement Grants - Final Mandatory,18/10/21,"1,725.00 ",321000,Social Community Care Supplies & Services - Adult
5436309,PLATINUM STAIRLIFTS LIMITED,Housing,Director of Place,Improvement Grants - Final Mandatory,18/10/21,"1,975.00 ",321000,Social Community Care Supplies & Services - Adult
5436314,PLATINUM STAIRLIFTS LIMITED,Housing,Director of Place,Improvement Grants - Final Mandatory,18/10/21,"3,575.00 ",321000,Social Community Care Supplies & Services - Adult
5436304,PLATINUM STAIRLIFTS LIMITED,Housing,Director of Place,Improvement Grants - Final Mandatory,18/10/21,"2,125.00 ",321000,Social Community Care Supplies & Services - Adult
5436308,PLATINUM STAIRLIFTS LIMITED,Housing,Director of Place,Improvement Grants - Final Mandatory,18/10/21,"2,150.31 ",321000,Social Community Care Supplies & Services - Adult
5436311,PLATINUM STAIRLIFTS LIMITED,Housing,Director of Place,Improvement Grants - Final Mandatory,18/10/21,"1,881.25 ",321000,Social Community Care Supplies & Services - Adult
5436316,PLATINUM STAIRLIFTS LIMITED,Housing,Director of Place,Improvement Grants - Final Mandatory,18/10/21,"3,725.00 ",321000,Social Community Care Supplies & Services - Adult
5436318,PLATINUM STAIRLIFTS LIMITED,Housing,Director of Place,Improvement Grants - Final Mandatory,18/10/21,"2,306.25 ",321000,Social Community Care Supplies & Services - Adult
5436305,PLATINUM STAIRLIFTS LIMITED,Housing,Director of Place,Improvement Grants - Final Mandatory,18/10/21,"2,081.25 ",321000,Social Community Care Supplies & Services - Adult
5436307,PLATINUM STAIRLIFTS LIMITED,Housing,Director of Place,Improvement Grants - Final Mandatory,18/10/21,"2,225.00 ",321000,Social Community Care Supplies & Services - Adult
5436312,PLATINUM STAIRLIFTS LIMITED,Housing,Director of Place,Improvement Grants - Final Mandatory,18/10/21,"6,212.50 ",321000,Social Community Care Supplies & Services - Adult
5436315,PLATINUM STAIRLIFTS LIMITED,Housing,Director of Place,Improvement Grants - Final Mandatory,18/10/21,"2,075.00 ",321000,Social Community Care Supplies & Services - Adult
5436319,PLATINUM STAIRLIFTS LIMITED,Housing,Director of Place,Improvement Grants - Final Mandatory,18/10/21,"2,075.00 ",321000,Social Community Care Supplies & Services - Adult
5435215,INSPIREDSPACES TAMESIDE LTD,Place,Growth,Fees,18/10/21,505.56 ,390000,"Works - Construction, Repair & Maintenance"
5435215,INSPIREDSPACES TAMESIDE LTD,Place,Growth,PFI Facilities Management Services,18/10/21,"25,278.22 ",390000,"Works - Construction, Repair & Maintenance"
5435217,INSPIREDSPACES TAMESIDE LTD,(blank),(blank),Adaptations - Jobs <#500,18/10/21,"31,379.35 ",390000,"Works - Construction, Repair & Maintenance"
5435217,INSPIREDSPACES TAMESIDE LTD,(blank),(blank),Fees,18/10/21,627.58 ,390000,"Works - Construction, Repair & Maintenance"
5435216,INSPIREDSPACES TAMESIDE LTD,Place,Growth,Fees,18/10/21,505.87 ,390000,"Works - Construction, Repair & Maintenance"
5435216,INSPIREDSPACES TAMESIDE LTD,Place,Growth,PFI Facilities Management Services,18/10/21,"25,293.56 ",390000,"Works - Construction, Repair & Maintenance"
5433259,S & M Builders,Operations and Neighbourhoods,Operations and Neighbourhoods,Engineers Works,18/10/21,"2,990.00 ",390000,"Works - Construction, Repair & Maintenance"
5433257,S & M Builders,Operations and Neighbourhoods,Operations and Neighbourhoods,Waste Disposal Fees,18/10/21,"1,396.00 ",390000,"Works - Construction, Repair & Maintenance"
5433260,S & M Builders,Operations and Neighbourhoods,Operations and Neighbourhoods,Engineers Works,18/10/21,860.00 ,390000,"Works - Construction, Repair & Maintenance"
5435930,DIRECT CARE (TAMESIDE) LTD,Adult Social Care,Adults,Homecare Fees,18/10/21,"39,756.11 ",321000,Social Community Care Supplies & Services - Adult
5435931,DIRECT CARE (TAMESIDE) LTD,Adult Social Care,Adults,Homecare Fees,18/10/21,"47,442.04 ",321000,Social Community Care Supplies & Services - Adult
5412269,GREATER MANCHESTER COMBINED AUTHORITY,Operations and Neighbourhoods,Operations and Neighbourhoods,GMC Waste Disposal Levy,18/10/21,"1,253,000.00 ",-999999,Unclassifiable
5435826,TAMESIDE SPORTS TRUST,Education,Children's Services,Independent School Fees,18/10/21,"11,277.78 ",290000,Arts & Leisure Services
5433467,TAMESIDE SPORTS TRUST,Adult Social Care,Adults,Professional Services,18/10/21,"36,879.60 ",290000,Arts & Leisure Services
5435500,NEXUS MOVE LIMITED PREVIOUSLY RADIO CABS (ASHTON)LTD,Education,Children's Services,Transport Of Pupils,18/10/21,"2,394.00 ",360000,Public Transport
470928,AGGREGATE INDUSTRIES UK LIMITED,Operations and Neighbourhoods,Operations and Neighbourhoods,General Materials,19/10/21,"9,444.39 ",230000,Highway Equipment & Materials
470928,EAGLE CIVIL ENGINEERING LTD,Operations and Neighbourhoods,Operations and Neighbourhoods,Sub-contractor Services,19/10/21,"12,570.00 ",391411,"Works - Construction, Repair & Maintenance"
470928,PG FABRICATIONS,Multiple Heads of Service,Multiple Strategic Directorates,Tax Retained Sub Contractors,19/10/21,-280.00 ,390000,"Works - Construction, Repair & Maintenance"
470928,PG FABRICATIONS,Operations and Neighbourhoods,Operations and Neighbourhoods,Sub-contractor Services,19/10/21,"1,400.00 ",390000,"Works - Construction, Repair & Maintenance"
470928,TARMAC CENTRAL LIMITED,Operations and Neighbourhoods,Operations and Neighbourhoods,General Materials,19/10/21,"5,735.14 ",230000,Highway Equipment & Materials
470928,BRAMHALL SURFACING LTD,Operations and Neighbourhoods,Operations and Neighbourhoods,Sub-contractor Services,19/10/21,"9,940.28 ",390000,"Works - Construction, Repair & Maintenance"
470928,STALYBRIDGE READYMIX LTD,Operations and Neighbourhoods,Operations and Neighbourhoods,General Materials,19/10/21,"2,696.00 ",231200,Highway Equipment & Materials
470928,INSTARMAC GROUP PLC,Civil Engineers,Director of Place,Debits Goods Received,19/10/21,"2,723.72 ",230000,Highway Equipment & Materials
470928,TOTALLY LOCAL COMPANY LIMITED,Operations and Neighbourhoods,Operations and Neighbourhoods,Tipping Facility Fees,19/10/21,880.00 ,190000,Facilities & Management Services
470928,NORTHWEST UTILITY SOLUTIONS LTD,Operations and Neighbourhoods,Operations and Neighbourhoods,Sub-contractor Services,19/10/21,"5,672.50 ",370000,Utilities
470928,TRAFFIC DIRECT LTD,Operations and Neighbourhoods,Operations and Neighbourhoods,Sub-contractor Services,19/10/21,"1,700.00 ",350000,Street & Traffic Management
470928,LIMELIGHT SIGNS LIMITED,Engineers Client,Director of Place,General Materials,19/10/21,724.50 ,230000,Highway Equipment & Materials
470928,COMPASS MINERALS UK LTD,Civil Engineers,Director of Place,Debits Goods Received,19/10/21,"6,562.03 ",230000,Highway Equipment & Materials
470928,ALTITUDE SERVICES,Operations and Neighbourhoods,Operations and Neighbourhoods,Sub-contractor Services,19/10/21,"22,600.25 ",230000,Highway Equipment & Materials
470928,MAC BUILDING PRODUCTS LTD,Civil Engineers,Director of Place,Debits Goods Received,19/10/21,828.57 ,100000,Building Construction Materials
470928,NWT Supplies Ltd t/a Online rock salt,Operations and Neighbourhoods,Operations and Neighbourhoods,General Materials,19/10/21,"1,708.52 ",230000,Highway Equipment & Materials
470928,ZEBRITE LTD,Civil Engineers,Director of Place,Debits Goods Received,19/10/21,"17,500.00 ",230000,Highway Equipment & Materials
470928,REDDILIGHT LTD,Civil Engineers,Director of Place,Debits Goods Received,19/10/21,"1,560.00 ",230000,Highway Equipment & Materials
470928,BAY FREIGHT LTD,Operations and Neighbourhoods,Operations and Neighbourhoods,General Materials,22/10/21,"1,112.50 ",-999999,Unclassifiable
5436516,Inspire Scotland Limited,Childrens Services,Children's Services,Childrens Homes Outside Local Authority Fees,19/10/21,"7,590.00 ",321100,Social Community Care Supplies & Services - Children
5431443,CFS CARE LIMITED,Childrens Services,Children's Services,Living With Formal Support,19/10/21,"5,314.29 ",321100,Social Community Care Supplies & Services - Children
5431443,CFS CARE LIMITED,Childrens Services,Children's Services,Semi independent - Weekly Living Allowances,19/10/21,294.50 ,321100,Social Community Care Supplies & Services - Children
5432764,Little Rocky's Ltd,Individual Schools Budget,Children's Services,Professional Services,19/10/21,"2,220.00 ",260000,Human Resources
5434958,THRIVE CHILDCARE SERVICES LTD,Childrens Services,Children's Services,Childrens Homes Outside Local Authority Fees,19/10/21,"24,428.70 ",321100,Social Community Care Supplies & Services - Children
5434957,THRIVE CHILDCARE SERVICES LTD,Childrens Services,Children's Services,Childrens Homes Outside Local Authority Fees,19/10/21,"6,514.32 ",321100,Social Community Care Supplies & Services - Children
5433778,TPR Care Services Ltd,Childrens Services,Children's Services,Living With Formal Support,19/10/21,"1,229.20 ",321100,Social Community Care Supplies & Services - Children
5436376,TPR Care Services Ltd,Childrens Services,Children's Services,Living With Formal Support,19/10/21,"1,229.20 ",321100,Social Community Care Supplies & Services - Children
5436380,TPR Care Services Ltd,Childrens Services,Children's Services,Living With Formal Support,19/10/21,"1,544.20 ",321100,Social Community Care Supplies & Services - Children
5435295,OLDHAM COUNCIL,Education,Children's Services,Other Local Authorities Fees,19/10/21,"4,828.00 ",-999999,Unclassifiable
5435298,SALFORD CITY COUNCIL,Education,Children's Services,Professional Services,19/10/21,"110,220.00 ",-999999,Unclassifiable
5436494,Gallagher Bassett International Ltd,Multiple Heads of Service,Multiple Strategic Directorates,Transport Insurance,19/10/21,"74,360.09 ",-999999,Unclassifiable
5436494,Gallagher Bassett International Ltd,Finance,Finance & IT,Professional Services,19/10/21,12.76 ,-999999,Unclassifiable
5436494,Gallagher Bassett International Ltd,Finance,Finance & IT,Transport Insurance,19/10/21,108.00 ,-999999,Unclassifiable
5435356,INSPIREDSPACES TAMESIDE LTD,Place,Growth,Fees,19/10/21,264.62 ,390000,"Works - Construction, Repair & Maintenance"
5435356,INSPIREDSPACES TAMESIDE LTD,Place,Growth,PFI Facilities Management Services,19/10/21,"13,231.17 ",390000,"Works - Construction, Repair & Maintenance"
5435402,MANCHESTER CITY COUNCIL,Population Health,Population Health,Contributions,19/10/21,"4,000.06 ",UNCLASS,Unclassifiable
5436277,PROGRESSIVE CARE LTD,Childrens Services,Children's Services,Childrens Homes Outside Local Authority Fees,19/10/21,"11,846.43 ",321000,Social Community Care Supplies & Services - Adult
5432196,ALBERT JONES MEMORIALS,Operations and Neighbourhoods,Operations and Neighbourhoods,General Materials,19/10/21,675.00 ,120000,Cemetery & Crematorium
5433370,Furniture Resource Centre Ltd,Operations and Neighbourhoods,Operations and Neighbourhoods,Fixtures & Fittings Purchase,20/10/21,516.46 ,UNCLASS,Unclassifiable
5433367,Furniture Resource Centre Ltd,Operations and Neighbourhoods,Operations and Neighbourhoods,Fixtures & Fittings Purchase,20/10/21,677.39 ,UNCLASS,Unclassifiable
5433400,KBW Barristers Chambers,Childrens Services,Children's Services,Legal Fees,20/10/21,500.00 ,280000,Legal Services
5433402,Prestige Adolescent Care & Education Ltd,Childrens Services,Children's Services,Childrens Homes Outside Local Authority Fees,20/10/21,"14,785.80 ",321117,Social Community Care Supplies & Services - Children
5433404,LOCAL CARE FORCE,Adult Social Care,Adults,Homecare Fees,20/10/21,"1,788.00 ",310000,Healthcare
5436522,Wellbeing Property Solutions Ltd,Childrens Services,Children's Services,Childrens Homes Outside Local Authority Fees,20/10/21,700.00 ,261000,Human Resources
5436521,Positive Care Solutions Ltd,Childrens Services,Children's Services,Childrens Homes Outside Local Authority Fees,20/10/21,"8,700.00 ",261000,Human Resources
5436520,Positive Care Solutions Ltd,Childrens Services,Children's Services,Childrens Homes Outside Local Authority Fees,20/10/21,"7,300.00 ",261000,Human Resources
5433411,Amore Social Care Ltd,Childrens Services,Children's Services,Childrens Homes Outside Local Authority Fees,20/10/21,"12,543.36 ",310000,Healthcare
5433412,PRO VENTURE CONSULTING,Childrens Services,Children's Services,Project Expenditure Home Office,20/10/21,"6,625.00 ",-999999,Unclassifiable
5433413,COVE CARE RESIDENTIAL LTD,Childrens Services,Children's Services,Childrens Homes Outside Local Authority Fees,20/10/21,"45,878.72 ",321100,Social Community Care Supplies & Services - Children
5433414,Mainer Associates Ltd,Tameside Investment Partnership,Director of Place,Consultancies,20/10/21,"2,675.00 ",150000,Consultancy
5433415,CENTRE FOR GOVERNANCE AND SCRUTINY,Policy and Communications,Governance,Training Course Costs,20/10/21,800.00 ,UNCLASS,Unclassifiable
5433417,DOMAIN CARE NORTH WEST LTD,Adult Social Care,Adults,Homecare Fees,20/10/21,"1,256.68 ",321100,Social Community Care Supplies & Services - Children
5433426,Tynetec a group brand of Legrand Electric Ltd,Adult Social Care,Adults,It Equipment,20/10/21,"5,439.87 ",270000,Information Communication Technology
5433425,Tynetec a group brand of Legrand Electric Ltd,Adult Social Care,Adults,It Equipment,20/10/21,804.20 ,270000,Information Communication Technology
5433217,Reach Publishing Services Limited,Contingency,Contingency,Printing And Stationery,20/10/21,"1,160.00 ",908001,Public Bodies
5434825,ABLE CARE AND SUPPORT SERVICES LTD,Adult Social Care,Adults,Homecare Fees,20/10/21,"21,579.25 ",321000,Social Community Care Supplies & Services - Adult
5430220,Gallagher Bassett International Ltd,Multiple Heads of Service,Multiple Strategic Directorates,Professional Services,20/10/21,"1,950.00 ",-999999,Unclassifiable
5430220,Gallagher Bassett International Ltd,Finance,Finance & IT,Professional Services,20/10/21,"7,355.00 ",-999999,Unclassifiable
5435629,INSPIREDSPACES TAMESIDE LTD,Place,Growth,Fees,20/10/21,871.33 ,390000,"Works - Construction, Repair & Maintenance"
5435629,INSPIREDSPACES TAMESIDE LTD,Place,Growth,PFI Facilities Management Services,20/10/21,"43,566.45 ",390000,"Works - Construction, Repair & Maintenance"
5436606,INSPIREDSPACES TAMESIDE LTD,(blank),(blank),Asbestos Removal,20/10/21,"4,474.74 ",390000,"Works - Construction, Repair & Maintenance"
5433392,PROGRESSIVE CARE LTD,Childrens Services,Children's Services,Childrens Homes Outside Local Authority Fees,20/10/21,"11,846.43 ",321000,Social Community Care Supplies & Services - Adult
5433395,CREATIVE SUPPORT LTD,Adult Social Care,Adults,Homecare Fees,20/10/21,812.69 ,321000,Social Community Care Supplies & Services - Adult
5433394,CREATIVE SUPPORT LTD,Adult Social Care,Adults,Homecare Fees,20/10/21,514.77 ,321000,Social Community Care Supplies & Services - Adult
5433393,CREATIVE SUPPORT LTD,Adult Social Care,Adults,Homecare Fees,20/10/21,922.45 ,321000,Social Community Care Supplies & Services - Adult
5433435,ASKEWS  AND HOLTS LIBRARY SERVICES LTD,Operations and Neighbourhoods,Operations and Neighbourhoods,Purchase Books,20/10/21,"1,707.55 ",170000,Education
5433876,KIELY BROS LTD,(blank),(blank),Highway Construction,20/10/21,"27,850.17 ",391411,"Works - Construction, Repair & Maintenance"
5433431,OCR,Place,Growth,Examination Fees,20/10/21,638.00 ,170000,Education
5433499,We Support LTD,Adult Social Care,Adults,Homecare Fees,21/10/21,"5,493.60 ",321000,Social Community Care Supplies & Services - Adult
3250835,BURNT TREE GROUP LIMITED,Operations and Neighbourhoods,Operations and Neighbourhoods,Additional Hire,21/10/21,395.30 ,380000,Vehicle Management
3250835,BURNT TREE GROUP LIMITED,Operations and Neighbourhoods,Operations and Neighbourhoods,Replacement Hire,21/10/21,849.41 ,380000,Vehicle Management
3250835,BURNT TREE GROUP LIMITED,Operations and Neighbourhoods,Operations and Neighbourhoods,Workshop Recharges including Misuse & Damage Costs,21/10/21,459.36 ,380000,Vehicle Management
3250835,DENNIS EAGLE LTD,Transport,Director of Place,Debits Goods Received,21/10/21,832.37 ,380000,Vehicle Management
3250835,DENNIS EAGLE LTD,Operations and Neighbourhoods,Operations and Neighbourhoods,General Materials,21/10/21,"2,860.67 ",380000,Vehicle Management
3250835,F. R. SHARROCK LIMITED,Transport,Director of Place,Debits Goods Received,21/10/21,739.55 ,908001,Public Bodies
3250835,JOHNSTON SWEEPERS LTD,Operations and Neighbourhoods,Operations and Neighbourhoods,General Materials,21/10/21,"1,356.15 ",180000,Environmental Services
3250835,TERBERG MATEC UK LTD,Operations and Neighbourhoods,Operations and Neighbourhoods,Sub-contractor Services,21/10/21,"2,418.61 ",180000,Environmental Services
3250835,PEAK PARTS,Operations and Neighbourhoods,Operations and Neighbourhoods,Consumable Materials,21/10/21,604.24 ,380000,Vehicle Management
3250835,A & J MOTORSPARES,Transport,Director of Place,Debits Goods Received,21/10/21,261.96 ,380000,Vehicle Management
3250835,A & J MOTORSPARES,Operations and Neighbourhoods,Operations and Neighbourhoods,General Materials,21/10/21,"1,158.50 ",380000,Vehicle Management
3250835,AUTOSMART INTERNATIONAL,Operations and Neighbourhoods,Operations and Neighbourhoods,Consumable Materials,21/10/21,248.43 ,380000,Vehicle Management
3250835,AUTOSMART INTERNATIONAL,Operations and Neighbourhoods,Operations and Neighbourhoods,General Equipment Repair & Maintenance,21/10/21,261.67 ,380000,Vehicle Management
3250835,PETER DOUGLASS PLATFORMS,Operations and Neighbourhoods,Operations and Neighbourhoods,Replacement Hire,21/10/21,"1,944.00 ",380000,Vehicle Management
3250835,JDS TRUCKS LIMITED,Transport,Director of Place,Debits Goods Received,21/10/21,404.48 ,381000,Vehicle Management
3250835,JDS TRUCKS LIMITED,Operations and Neighbourhoods,Operations and Neighbourhoods,General Materials,21/10/21,"3,600.09 ",381000,Vehicle Management
3250835,MANCHESTER BREAKDOWN SERVICES LTD,Operations and Neighbourhoods,Operations and Neighbourhoods,Sub-contractor Services,21/10/21,657.50 ,380000,Vehicle Management
3250835,FUCHS LUBRICANTS UK PLC,Transport,Director of Place,Debits Goods Received,21/10/21,"2,491.47 ",390000,"Works - Construction, Repair & Maintenance"
3250835,HAROLD L SMITH TRANSMISSIONS LTD,Operations and Neighbourhoods,Operations and Neighbourhoods,General Materials,21/10/21,"2,300.00 ",230000,Highway Equipment & Materials
3250835,AIR PRODUCTS PLC,Operations and Neighbourhoods,Operations and Neighbourhoods,General Equipment Repair & Maintenance,21/10/21,"1,015.04 ",370000,Utilities
5436752,Redacted Supplier,Governance,Governance,Elections Officer Fees,21/10/21,"3,300.00 ",UNCLASS,Unclassifiable
5435978,CBS Building and Maintenance,(blank),(blank),Engineers -External,21/10/21,667.00 ,100000,Building Construction Materials
5435979,jhweb Design,Operations and Neighbourhoods,Operations and Neighbourhoods,General Materials,21/10/21,650.00 ,270000,Information Communication Technology
5433512,YOUNG PEOPLE FIRST LIMITED,Childrens Services,Children's Services,Living With Formal Support,21/10/21,"2,100.00 ",321100,Social Community Care Supplies & Services - Children
5433512,YOUNG PEOPLE FIRST LIMITED,Childrens Services,Children's Services,Semi independent - Weekly Living Allowances,21/10/21,59.20 ,321100,Social Community Care Supplies & Services - Children
5433514,YOUNG PEOPLE FIRST LIMITED,Childrens Services,Children's Services,Living With Formal Support,21/10/21,850.00 ,321100,Social Community Care Supplies & Services - Children
5433513,YOUNG PEOPLE FIRST LIMITED,Childrens Services,Children's Services,Living With Formal Support,21/10/21,"1,225.00 ",321100,Social Community Care Supplies & Services - Children
5436630,Cromwood Housing Ltd,Operations and Neighbourhoods,Operations and Neighbourhoods,Other Accomodation Related Costs,21/10/21,"24,180.00 ",250000,Housing Management
5433549,Paramount Children's Services,Childrens Services,Children's Services,Childrens Homes Outside Local Authority Fees,21/10/21,"19,980.00 ",321018,Social Community Care Supplies & Services
5433551,Footsteps A Path To Change 08 Ltd,Childrens Services,Children's Services,Childrens Homes Outside Local Authority Fees,21/10/21,"18,644.95 ",250000,Housing Management
5433570,Brook,Population Health,Population Health,Professional Services,21/10/21,"1,187.00 ",-999999,Unclassifiable
5433557,Holmes Carpets,Adult Social Care,Adults,Fixtures & Fittings Purchase,21/10/21,"1,541.61 ",UNCLASS,Unclassifiable
5433555,Holmes Carpets,Adult Social Care,Adults,Fixtures & Fittings Purchase,21/10/21,681.17 ,UNCLASS,Unclassifiable
5436751,Redacted Supplier,Governance,Governance,Elections Officer Fees,21/10/21,"3,300.00 ",UNCLASS,Unclassifiable
5436026,WORKS 4U SUPPORT SERVICES LIMITED,Education,Children's Services,Post 16 FE College Fees,21/10/21,"291,197.00 ",260000,Human Resources
5433573,Randstad Public Services Limited,Individual Schools Budget,Children's Services,Agency Staff,21/10/21,597.00 ,170000,Education
5433576,Tynetec a group brand of Legrand Electric Ltd,Adult Social Care,Adults,It Equipment,21/10/21,"2,111.50 ",270000,Information Communication Technology
5435121,ROCHDALE MBC,Hosted Services,Hosted Services,Chief/Ground Rent,21/10/21,"1,400.00 ",UNCLASS,Unclassifiable
5435121,ROCHDALE MBC,Hosted Services,Hosted Services,Sub-contractor Services,21/10/21,"2,550.00 ",UNCLASS,Unclassifiable
5435708,ROCHDALE MBC,Adult Social Care,Adults,Residential Home Long Stay Fees,21/10/21,"2,267.13 ",UNCLASS,Unclassifiable
5435709,ROCHDALE MBC,Adult Social Care,Adults,Residential Home Long Stay Fees,21/10/21,"2,192.86 ",UNCLASS,Unclassifiable
5435707,ROCHDALE MBC,Adult Social Care,Adults,Residential Home Long Stay Fees,21/10/21,"2,192.86 ",UNCLASS,Unclassifiable
5435710,ROCHDALE MBC,Adult Social Care,Adults,Residential Home Long Stay Fees,21/10/21,"2,267.13 ",UNCLASS,Unclassifiable
5433561,SURVEY OPERATIONS LTD,(blank),(blank),Fees,21/10/21,575.00 ,UNCLASS,Unclassifiable
5434757,COMMUNITY INTEGRATED CARE,Adult Social Care,Adults,Homecare Fees,21/10/21,"111,972.27 ",321000,Social Community Care Supplies & Services - Adult
5434754,COMMUNITY INTEGRATED CARE,Adult Social Care,Adults,Homecare Fees,21/10/21,670.80 ,321000,Social Community Care Supplies & Services - Adult
5434753,COMMUNITY INTEGRATED CARE,Adult Social Care,Adults,Homecare Fees,21/10/21,577.92 ,321000,Social Community Care Supplies & Services - Adult
5434756,COMMUNITY INTEGRATED CARE,Adult Social Care,Adults,Homecare Fees,21/10/21,"122,019.89 ",321000,Social Community Care Supplies & Services - Adult
5436029,ABLE CARE AND SUPPORT SERVICES LTD,Adult Social Care,Adults,Homecare Fees,21/10/21,"11,337.53 ",321000,Social Community Care Supplies & Services - Adult
5433579,JENOPTIK TRAFFIC SOLUTIONS UK LTD,Operations and Neighbourhoods,Operations and Neighbourhoods,Fees,21/10/21,"2,898.00 ",350000,Street & Traffic Management
5431663,CARE 4 CHILDREN RESIDENTIAL SERVICES LTD,Childrens Services,Children's Services,Foster Carer Agency Fees,21/10/21,"5,571.30 ",321100,Social Community Care Supplies & Services - Children
5433537,COMPUTEAM LTD,Individual Schools Budget,Children's Services,Computer Software,21/10/21,"4,957.00 ",270000,Information Communication Technology
5433536,COMPUTEAM LTD,Individual Schools Budget,Children's Services,Computer Hardware Maintenance Costs,21/10/21,"1,105.88 ",270000,Information Communication Technology
5436769,Redacted Supplier,Governance,Governance,Elections Officer Fees,21/10/21,"6,400.00 ",UNCLASS,Unclassifiable
5435795,STOCKPORT MBC,Corporate Costs,Corporate Costs,Coroners Service Costs,21/10/21,"165,000.00 ",321100,Social Community Care Supplies & Services - Children
5436036,DIRECT CARE (TAMESIDE) LTD,Adult Social Care,Adults,Homecare Fees,21/10/21,"39,463.95 ",321000,Social Community Care Supplies & Services - Adult
5433548,ADULLAM HOMES HOUSING ASSOC LTD,Operations and Neighbourhoods,Operations and Neighbourhoods,"Marketing, Publicity and Recruitment",21/10/21,"13,778.00 ",321000,Social Community Care Supplies & Services - Adult
5434737,CREATIVE SUPPORT LTD,Adult Social Care,Adults,Homecare Fees,21/10/21,"159,940.84 ",321000,Social Community Care Supplies & Services - Adult
5434738,CREATIVE SUPPORT LTD,Adult Social Care,Adults,Homecare Fees,21/10/21,"180,926.35 ",321000,Social Community Care Supplies & Services - Adult
5433583,ULVERSCROFT LARGE PRINT  BOOKS LTD,Operations and Neighbourhoods,Operations and Neighbourhoods,Purchase Books,21/10/21,"1,245.41 ",170000,Education
5436272,GEORGE COX & SONS LTD,(blank),(blank),Engineers -External,21/10/21,"27,439.33 ",109999,Building Construction Materials
5433581,NPOWER LIMITED,Place,Growth,Electricity,21/10/21,"21,155.48 ",370000,Utilities
5436860,SANTANDER UK PLC,Finance,Finance & IT,National Giro,22/10/21,"4,370.97 ",200000,Financial Services
5436864,WORLDPAY,Finance,Finance & IT,National Giro,22/10/21,"10,572.41 ",200000,Financial Services
5436881,BARCLAYCARD COMMERCIAL,Childrens Services,Children's Services,Procurement Hub Holding Account,22/10/21,"14,873.75 ",200000,Financial Services
5436881,BARCLAYCARD COMMERCIAL,Individual Schools Budget,Children's Services,Procurement Hub Holding Account,22/10/21,"1,515.12 ",200000,Financial Services
5436881,BARCLAYCARD COMMERCIAL,Operations and Neighbourhoods,Operations and Neighbourhoods,Procurement Hub Holding Account,22/10/21,"1,412.44 ",200000,Financial Services
5436881,BARCLAYCARD COMMERCIAL,Education,Children's Services,Procurement Hub Holding Account,22/10/21,238.09 ,200000,Financial Services
5436881,BARCLAYCARD COMMERCIAL,Hosted Services,Hosted Services,Procurement Hub Holding Account,22/10/21,936.87 ,200000,Financial Services
5436881,BARCLAYCARD COMMERCIAL,Adult Social Care,Adults,Procurement Hub Holding Account,22/10/21,803.22 ,200000,Financial Services
5436881,BARCLAYCARD COMMERCIAL,Place,Growth,Procurement Hub Holding Account,22/10/21,79.10 ,200000,Financial Services
5436881,BARCLAYCARD COMMERCIAL,Digital Tameside,Finance & IT,Procurement Hub Holding Account,22/10/21,"1,622.14 ",200000,Financial Services
5436881,BARCLAYCARD COMMERCIAL,Policy and Communications,Governance,Procurement Hub Holding Account,22/10/21,374.00 ,200000,Financial Services
5436881,BARCLAYCARD COMMERCIAL,Finance,Finance & IT,Procurement Hub Holding Account,22/10/21,495.39 ,200000,Financial Services
5436396,HMCTS (FOR PAYMENT BY ACCOUNT),Exchequer,Governance,Court Fees,22/10/21,"1,550.50 ",-999999,Unclassifiable
5436397,HMCTS (FOR PAYMENT BY ACCOUNT),Childrens Services,Children's Services,Court Fees,22/10/21,"27,550.00 ",-999999,Unclassifiable
5436590,AD HOC CHAPS PAYMENT,(blank),(blank),Refreshments,22/10/21,"78,393.60 ",400002,Chaps Payments
5436594,AD HOC CHAPS PAYMENT,(blank),(blank),Refreshments,22/10/21,"2,617.87 ",400002,Chaps Payments
5436786,AD HOC CHAPS PAYMENT,Multiple Heads of Service,Multiple Strategic Directorates,Salaries & Wages Advances(Hold),22/10/21,850.00 ,400002,Chaps Payments
5436804,AD HOC CHAPS PAYMENT,Multiple Heads of Service,Multiple Strategic Directorates,Salaries & Wages Advances(Hold),22/10/21,625.00 ,400002,Chaps Payments
5436592,AD HOC CHAPS PAYMENT,(blank),(blank),Refreshments,22/10/21,"47,171.10 ",400002,Chaps Payments
5436511,AD HOC CHAPS PAYMENT,Multiple Heads of Service,Multiple Strategic Directorates,Debits,22/10/21,710.15 ,400002,Chaps Payments
5436503,AD HOC CHAPS PAYMENT,Contingency,Contingency,COVID-19 Infection Control Fund,22/10/21,"8,349.53 ",400002,Chaps Payments
5436883,AD HOC CHAPS PAYMENT,Multiple Heads of Service,Multiple Strategic Directorates,Salaries & Wages Advances(Hold),22/10/21,"1,824.08 ",400002,Chaps Payments
5436596,AD HOC CHAPS PAYMENT,(blank),(blank),Refreshments,22/10/21,"40,185.00 ",400002,Chaps Payments
5436867,AD HOC CHAPS PAYMENT,Operations and Neighbourhoods,Operations and Neighbourhoods,Other Accomodation Related Costs,22/10/21,"1,020.00 ",400002,Chaps Payments
5436790,AD HOC CHAPS PAYMENT,Multiple Heads of Service,Multiple Strategic Directorates,Tax Paid Sub Contractors,22/10/21,"1,871.00 ",UNCLASS,Unclassifiable
5436869,AD HOC CHAPS PAYMENT,Operations and Neighbourhoods,Operations and Neighbourhoods,Other Accomodation Related Costs,22/10/21,"1,680.00 ",400002,Chaps Payments
5436796,AD HOC CHAPS PAYMENT,Multiple Heads of Service,Multiple Strategic Directorates,Salaries & Wages Advances(Hold),22/10/21,"2,420.00 ",400002,Chaps Payments
5433842,HC Assessment Ltd,Adult Social Care,Adults,Professional Services,22/10/21,"2,177.85 ",UNCLASS,Unclassifiable
5433970,Furniture Resource Centre Ltd,Operations and Neighbourhoods,Operations and Neighbourhoods,Fixtures & Fittings Purchase,22/10/21,788.71 ,UNCLASS,Unclassifiable
5433963,Furniture Resource Centre Ltd,Operations and Neighbourhoods,Operations and Neighbourhoods,Fixtures & Fittings Purchase,22/10/21,521.84 ,UNCLASS,Unclassifiable
5433907,Furniture Resource Centre Ltd,Operations and Neighbourhoods,Operations and Neighbourhoods,Fixtures & Fittings Purchase,22/10/21,716.73 ,UNCLASS,Unclassifiable
5433961,Furniture Resource Centre Ltd,Operations and Neighbourhoods,Operations and Neighbourhoods,Fixtures & Fittings Purchase,22/10/21,532.84 ,UNCLASS,Unclassifiable
5433964,Furniture Resource Centre Ltd,Childrens Services,Children's Services,"Fixtures,Fittings & Furniture Purchase (Service Users)",22/10/21,898.43 ,100000,Building Construction Materials
5433966,Furniture Resource Centre Ltd,Operations and Neighbourhoods,Operations and Neighbourhoods,Fixtures & Fittings Purchase,22/10/21,521.84 ,UNCLASS,Unclassifiable
5433831,Furniture Resource Centre Ltd,Operations and Neighbourhoods,Operations and Neighbourhoods,Fixtures & Fittings Purchase,22/10/21,717.93 ,UNCLASS,Unclassifiable
5433975,Furniture Resource Centre Ltd,Operations and Neighbourhoods,Operations and Neighbourhoods,Fixtures & Fittings Purchase,22/10/21,"1,152.72 ",UNCLASS,Unclassifiable
5433629,G2V Recruitment Group Limited t/a Vivid Resourcing,Place,Growth,Recruitment Campaign,22/10/21,"2,371.70 ",280000,Legal Services
5433626,G2V Recruitment Group Limited t/a Vivid Resourcing,Place,Growth,Agency Staff,22/10/21,"2,500.00 ",280000,Legal Services
5433845,CARTER BROWN - THE EXPERT SERVICE LIMITED,Childrens Services,Children's Services,Professional Child Services,22/10/21,"2,620.80 ",280000,Legal Services
5433948,EDGE HILL UNIVERSITY,People and Workforce Development,Governance,Fees,22/10/21,680.00 ,908001,Public Bodies
5433947,EDGE HILL UNIVERSITY,People and Workforce Development,Governance,Training Course Costs,22/10/21,"1,360.00 ",908001,Public Bodies
5436946,Carrington West Ltd,Place,Growth,Professional Services,22/10/21,900.90 ,-999999,Unclassifiable
5433808,Cathmor,Childrens Services,Children's Services,Living With Formal Support,22/10/21,"1,917.86 ",-999999,Unclassifiable
5433808,Cathmor,Childrens Services,Children's Services,Living With Formal Support,22/10/21,126.86 ,-999999,Unclassifiable
5433868,Cathmor,Childrens Services,Children's Services,Professional Services,22/10/21,"3,963.57 ",-999999,Unclassifiable
